Workbook

Sheet Introduction

Sheet Sources
B1: Light Blue cells require input values from the user.
B2: Yellow cells are optional to override a default or calculated values.
B3: Grey cells are calculated values and are not editable by the user.
E5: This worksheet includes both "Primary Sources" and "Secondary Sources" of pollutants. For a more detailed description of these sources, consult Chapters 3 (Primary Sources) and 4 (Secondary Sources) of the WTM Documentation. Use check boxes to the left to select sources you would like to model, and enter data in blue boxes below. More detailed guidance is provided in text above sources, as well as in pop-up boxes above some pollutant sources. To begin with, enter the watershed area, annual rainfall and approximate stream length below. For many of the sources below, "mouse over" guidance appears if you click on the source name.
B19: Watershed Data
B20: Watershed Area (acres) | D20: =IF(C20<>D71,"Total watershed area does not match to the sum of land use areas (" & D71 &")","") -> Total watershed area does not match to the sum of land use areas (0.001)
B21: Annual Rainfall (inches)
B22: Stream Length (miles)
B24: Loading rates from primary sources are calculated as a product of the loading rate for each pollutant and the land area. Fill in blue boxes for land area and distribution of soils to calculate loading rates. You may also override the default (calculated) loading rates by entering alternative loading rates or runoff rates (in lb/acre) to the right of the grey cells. While the annual runoff rate is reported in the grey boxes below, it cannot be altered here, and needs to be adjusted by adjusting data such as the runoff coefficients and turf/impervious cover associated with the land use on the "Defaults" tab. To alter the root data (pollutant concentrations and turf/impervious cover associated with each land use), or to add additional land use categories, go to the "Defaults" tab and select the "Primary Sources" check box. On the Defaults tab, you may add new land uses by typing a new description in blank "Detailed Description" boxes.
B25: PRIMARY SOURCES - Land Use
C26: Annual Loading Rates (Calculated) - User can override this using the optional cells to the right. | J26: Annual Loading Rates - User Defined (Optional to override calculated value)
B27: Land Use | D27: Area | E27: TN | F27: TP | G27: TSS | H27: FC | I27: Runoff | J27: TN | K27: TP | L27: TSS | M27: FC
B28: Category | C28: Detailed Description | E28: (lb/acre) | F28: (lb/acre) | G28: (lbs/acre) | H28: (# billion/acre) | I28: (inches/year) | J28: (lb/acre) | K28: (lb/acre) | L28: (lbs/acre) | M28: (# billion/acre)
B29: =IF(Defaults!B25<>"",Defaults!B25,"") -> Residential | C29: =IF(Defaults!C25<>"",Defaults!C25,"") -> LDR (<1du/acre) | E29: =IF(J29<>"",J29,0.226*Defaults!F25*Calculations!$J5) -> 0 | F29: =IF(K29<>"",K29,0.226*Defaults!G25*Calculations!$J5) -> 0 | G29: =IF(L29<>"",L29,0.226*Defaults!H25*Calculations!$J5) -> 0 | H29: =IF(M29<>"",M29,0.00103*Defaults!I25*Calculations!$J5) -> 0 | I29: =Calculations!J5 -> 0
B30: =IF(Defaults!B26<>"",Defaults!B26,"") -> Residential | C30: =IF(Defaults!C26<>"",Defaults!C26,"") -> MDR (1-4 du/acre) | E30: =IF(J30<>"",J30,0.226*Defaults!F26*Calculations!$J6) -> 0 | F30: =IF(K30<>"",K30,0.226*Defaults!G26*Calculations!$J6) -> 0 | G30: =IF(L30<>"",L30,0.226*Defaults!H26*Calculations!$J6) -> 0 | H30: =IF(M30<>"",M30,0.00103*Defaults!I26*Calculations!$J6) -> 0 | I30: =Calculations!J6 -> 0
B31: =IF(Defaults!B27<>"",Defaults!B27,"") -> Residential | C31: =IF(Defaults!C27<>"",Defaults!C27,"") -> HDR (>4 du/acre) | E31: =IF(J31<>"",J31,0.226*Defaults!F27*Calculations!$J7) -> 0 | F31: =IF(K31<>"",K31,0.226*Defaults!G27*Calculations!$J7) -> 0 | G31: =IF(L31<>"",L31,0.226*Defaults!H27*Calculations!$J7) -> 0 | H31: =IF(M31<>"",M31,0.00103*Defaults!I27*Calculations!$J7) -> 0 | I31: =Calculations!J7 -> 0
B32: =IF(Defaults!B28<>"",Defaults!B28,"") -> Residential | C32: =IF(Defaults!C28<>"",Defaults!C28,"") -> Multifamily | E32: =IF(J32<>"",J32,0.226*Defaults!F28*Calculations!$J8) -> 0 | F32: =IF(K32<>"",K32,0.226*Defaults!G28*Calculations!$J8) -> 0 | G32: =IF(L32<>"",L32,0.226*Defaults!H28*Calculations!$J8) -> 0 | H32: =IF(M32<>"",M32,0.00103*Defaults!I28*Calculations!$J8) -> 0 | I32: =Calculations!J8 -> 0
B33: =IF(Defaults!B29<>"",Defaults!B29,"") -> Residential | C33: =IF(Defaults!C29<>"",Defaults!C29,"") ->  | E33: =IF(J33<>"",J33,0.226*Defaults!F29*Calculations!$J9) -> 0 | F33: =IF(K33<>"",K33,0.226*Defaults!G29*Calculations!$J9) -> 0 | G33: =IF(L33<>"",L33,0.226*Defaults!H29*Calculations!$J9) -> 0 | H33: =IF(M33<>"",M33,0.00103*Defaults!I29*Calculations!$J9) -> 0 | I33: =Calculations!J9 -> 0
B34: =IF(Defaults!B30<>"",Defaults!B30,"") -> Residential | C34: =IF(Defaults!C30<>"",Defaults!C30,"") ->  | E34: =IF(J34<>"",J34,0.226*Defaults!F30*Calculations!$J10) -> 0 | F34: =IF(K34<>"",K34,0.226*Defaults!G30*Calculations!$J10) -> 0 | G34: =IF(L34<>"",L34,0.226*Defaults!H30*Calculations!$J10) -> 0 | H34: =IF(M34<>"",M34,0.00103*Defaults!I30*Calculations!$J10) -> 0 | I34: =Calculations!J10 -> 0
B35: =IF(Defaults!B31<>"",Defaults!B31,"") -> Residential | C35: =IF(Defaults!C31<>"",Defaults!C31,"") ->  | E35: =IF(J35<>"",J35,0.226*Defaults!F31*Calculations!$J11) -> 0 | F35: =IF(K35<>"",K35,0.226*Defaults!G31*Calculations!$J11) -> 0 | G35: =IF(L35<>"",L35,0.226*Defaults!H31*Calculations!$J11) -> 0 | H35: =IF(M35<>"",M35,0.00103*Defaults!I31*Calculations!$J11) -> 0 | I35: =Calculations!J11 -> 0
B36: =IF(Defaults!B32<>"",Defaults!B32,"") -> Residential | C36: =IF(Defaults!C32<>"",Defaults!C32,"") ->  | E36: =IF(J36<>"",J36,0.226*Defaults!F32*Calculations!$J12) -> 0 | F36: =IF(K36<>"",K36,0.226*Defaults!G32*Calculations!$J12) -> 0 | G36: =IF(L36<>"",L36,0.226*Defaults!H32*Calculations!$J12) -> 0 | H36: =IF(M36<>"",M36,0.00103*Defaults!I32*Calculations!$J12) -> 0 | I36: =Calculations!J12 -> 0
B37: =IF(Defaults!B33<>"",Defaults!B33,"") -> Residential | C37: =IF(Defaults!C33<>"",Defaults!C33,"") ->  | E37: =IF(J37<>"",J37,0.226*Defaults!F33*Calculations!$J13) -> 0 | F37: =IF(K37<>"",K37,0.226*Defaults!G33*Calculations!$J13) -> 0 | G37: =IF(L37<>"",L37,0.226*Defaults!H33*Calculations!$J13) -> 0 | H37: =IF(M37<>"",M37,0.00103*Defaults!I33*Calculations!$J13) -> 0 | I37: =Calculations!J13 -> 0
B38: =IF(Defaults!B34<>"",Defaults!B34,"") -> Residential | C38: =IF(Defaults!C34<>"",Defaults!C34,"") ->  | E38: =IF(J38<>"",J38,0.226*Defaults!F34*Calculations!$J14) -> 0 | F38: =IF(K38<>"",K38,0.226*Defaults!G34*Calculations!$J14) -> 0 | G38: =IF(L38<>"",L38,0.226*Defaults!H34*Calculations!$J14) -> 0 | H38: =IF(M38<>"",M38,0.00103*Defaults!I34*Calculations!$J14) -> 0 | I38: =Calculations!J14 -> 0
B39: =IF(Defaults!B35<>"",Defaults!B35,"") -> Commercial | C39: =IF(Defaults!C35<>"",Defaults!C35,"") -> Commercial | E39: =IF(J39<>"",J39,0.226*Defaults!F35*Calculations!$J15) -> 0 | F39: =IF(K39<>"",K39,0.226*Defaults!G35*Calculations!$J15) -> 0 | G39: =IF(L39<>"",L39,0.226*Defaults!H35*Calculations!$J15) -> 0 | H39: =IF(M39<>"",M39,0.00103*Defaults!I35*Calculations!$J15) -> 0 | I39: =Calculations!J15 -> 0
B40: =IF(Defaults!B36<>"",Defaults!B36,"") -> Commercial | C40: =IF(Defaults!C36<>"",Defaults!C36,"") ->  | E40: =IF(J40<>"",J40,0.226*Defaults!F36*Calculations!$J16) -> 0 | F40: =IF(K40<>"",K40,0.226*Defaults!G36*Calculations!$J16) -> 0 | G40: =IF(L40<>"",L40,0.226*Defaults!H36*Calculations!$J16) -> 0 | H40: =IF(M40<>"",M40,0.00103*Defaults!I36*Calculations!$J16) -> 0 | I40: =Calculations!J16 -> 0
B41: =IF(Defaults!B37<>"",Defaults!B37,"") -> Commercial | C41: =IF(Defaults!C37<>"",Defaults!C37,"") ->  | E41: =IF(J41<>"",J41,0.226*Defaults!F37*Calculations!$J17) -> 0 | F41: =IF(K41<>"",K41,0.226*Defaults!G37*Calculations!$J17) -> 0 | G41: =IF(L41<>"",L41,0.226*Defaults!H37*Calculations!$J17) -> 0 | H41: =IF(M41<>"",M41,0.00103*Defaults!I37*Calculations!$J17) -> 0 | I41: =Calculations!J17 -> 0
B42: =IF(Defaults!B38<>"",Defaults!B38,"") -> Commercial | C42: =IF(Defaults!C38<>"",Defaults!C38,"") ->  | E42: =IF(J42<>"",J42,0.226*Defaults!F38*Calculations!$J18) -> 0 | F42: =IF(K42<>"",K42,0.226*Defaults!G38*Calculations!$J18) -> 0 | G42: =IF(L42<>"",L42,0.226*Defaults!H38*Calculations!$J18) -> 0 | H42: =IF(M42<>"",M42,0.00103*Defaults!I38*Calculations!$J18) -> 0 | I42: =Calculations!J18 -> 0
B43: =IF(Defaults!B39<>"",Defaults!B39,"") -> Commercial | C43: =IF(Defaults!C39<>"",Defaults!C39,"") ->  | E43: =IF(J43<>"",J43,0.226*Defaults!F39*Calculations!$J19) -> 0 | F43: =IF(K43<>"",K43,0.226*Defaults!G39*Calculations!$J19) -> 0 | G43: =IF(L43<>"",L43,0.226*Defaults!H39*Calculations!$J19) -> 0 | H43: =IF(M43<>"",M43,0.00103*Defaults!I39*Calculations!$J19) -> 0 | I43: =Calculations!J19 -> 0
B44: =IF(Defaults!B40<>"",Defaults!B40,"") -> Roadway | C44: =IF(Defaults!C40<>"",Defaults!C40,"") -> Roadway | E44: =IF(J44<>"",J44,0.226*Defaults!F40*Calculations!$J20) -> 0 | F44: =IF(K44<>"",K44,0.226*Defaults!G40*Calculations!$J20) -> 0 | G44: =IF(L44<>"",L44,0.226*Defaults!H40*Calculations!$J20) -> 0 | H44: =IF(M44<>"",M44,0.00103*Defaults!I40*Calculations!$J20) -> 0 | I44: =Calculations!J20 -> 0
B45: =IF(Defaults!B41<>"",Defaults!B41,"") -> Roadway | C45: =IF(Defaults!C41<>"",Defaults!C41,"") ->  | E45: =IF(J45<>"",J45,0.226*Defaults!F41*Calculations!$J21) -> 0 | F45: =IF(K45<>"",K45,0.226*Defaults!G41*Calculations!$J21) -> 0 | G45: =IF(L45<>"",L45,0.226*Defaults!H41*Calculations!$J21) -> 0 | H45: =IF(M45<>"",M45,0.00103*Defaults!I41*Calculations!$J21) -> 0 | I45: =Calculations!J21 -> 0
B46: =IF(Defaults!B42<>"",Defaults!B42,"") -> Roadway | C46: =IF(Defaults!C42<>"",Defaults!C42,"") ->  | E46: =IF(J46<>"",J46,0.226*Defaults!F42*Calculations!$J22) -> 0 | F46: =IF(K46<>"",K46,0.226*Defaults!G42*Calculations!$J22) -> 0 | G46: =IF(L46<>"",L46,0.226*Defaults!H42*Calculations!$J22) -> 0 | H46: =IF(M46<>"",M46,0.00103*Defaults!I42*Calculations!$J22) -> 0 | I46: =Calculations!J22 -> 0
B47: =IF(Defaults!B43<>"",Defaults!B43,"") -> Roadway | C47: =IF(Defaults!C43<>"",Defaults!C43,"") ->  | E47: =IF(J47<>"",J47,0.226*Defaults!F43*Calculations!$J23) -> 0 | F47: =IF(K47<>"",K47,0.226*Defaults!G43*Calculations!$J23) -> 0 | G47: =IF(L47<>"",L47,0.226*Defaults!H43*Calculations!$J23) -> 0 | H47: =IF(M47<>"",M47,0.00103*Defaults!I43*Calculations!$J23) -> 0 | I47: =Calculations!J23 -> 0
B48: =IF(Defaults!B44<>"",Defaults!B44,"") -> Roadway | C48: =IF(Defaults!C44<>"",Defaults!C44,"") ->  | E48: =IF(J48<>"",J48,0.226*Defaults!F44*Calculations!$J24) -> 0 | F48: =IF(K48<>"",K48,0.226*Defaults!G44*Calculations!$J24) -> 0 | G48: =IF(L48<>"",L48,0.226*Defaults!H44*Calculations!$J24) -> 0 | H48: =IF(M48<>"",M48,0.00103*Defaults!I44*Calculations!$J24) -> 0 | I48: =Calculations!J24 -> 0
B49: =IF(Defaults!B45<>"",Defaults!B45,"") -> Industrial | C49: =IF(Defaults!C45<>"",Defaults!C45,"") -> Industrial | E49: =IF(J49<>"",J49,0.226*Defaults!F45*Calculations!$J25) -> 0 | F49: =IF(K49<>"",K49,0.226*Defaults!G45*Calculations!$J25) -> 0 | G49: =IF(L49<>"",L49,0.226*Defaults!H45*Calculations!$J25) -> 0 | H49: =IF(M49<>"",M49,0.00103*Defaults!I45*Calculations!$J25) -> 0 | I49: =Calculations!J25 -> 0
B50: =IF(Defaults!B46<>"",Defaults!B46,"") -> Industrial | C50: =IF(Defaults!C46<>"",Defaults!C46,"") ->  | E50: =IF(J50<>"",J50,0.226*Defaults!F46*Calculations!$J26) -> 0 | F50: =IF(K50<>"",K50,0.226*Defaults!G46*Calculations!$J26) -> 0 | G50: =IF(L50<>"",L50,0.226*Defaults!H46*Calculations!$J26) -> 0 | H50: =IF(M50<>"",M50,0.00103*Defaults!I46*Calculations!$J26) -> 0 | I50: =Calculations!J26 -> 0
B51: =IF(Defaults!B47<>"",Defaults!B47,"") -> Industrial | C51: =IF(Defaults!C47<>"",Defaults!C47,"") ->  | E51: =IF(J51<>"",J51,0.226*Defaults!F47*Calculations!$J27) -> 0 | F51: =IF(K51<>"",K51,0.226*Defaults!G47*Calculations!$J27) -> 0 | G51: =IF(L51<>"",L51,0.226*Defaults!H47*Calculations!$J27) -> 0 | H51: =IF(M51<>"",M51,0.00103*Defaults!I47*Calculations!$J27) -> 0 | I51: =Calculations!J27 -> 0
B52: =IF(Defaults!B48<>"",Defaults!B48,"") -> Industrial | C52: =IF(Defaults!C48<>"",Defaults!C48,"") ->  | E52: =IF(J52<>"",J52,0.226*Defaults!F48*Calculations!$J28) -> 0 | F52: =IF(K52<>"",K52,0.226*Defaults!G48*Calculations!$J28) -> 0 | G52: =IF(L52<>"",L52,0.226*Defaults!H48*Calculations!$J28) -> 0 | H52: =IF(M52<>"",M52,0.00103*Defaults!I48*Calculations!$J28) -> 0 | I52: =Calculations!J28 -> 0
B53: =IF(Defaults!B49<>"",Defaults!B49,"") -> Industrial | C53: =IF(Defaults!C49<>"",Defaults!C49,"") ->  | E53: =IF(J53<>"",J53,0.226*Defaults!F49*Calculations!$J29) -> 0 | F53: =IF(K53<>"",K53,0.226*Defaults!G49*Calculations!$J29) -> 0 | G53: =IF(L53<>"",L53,0.226*Defaults!H49*Calculations!$J29) -> 0 | H53: =IF(M53<>"",M53,0.00103*Defaults!I49*Calculations!$J29) -> 0 | I53: =Calculations!J29 -> 0
B54: =IF(Defaults!B50<>"",Defaults!B50,"") -> Forest | C54: =IF(Defaults!C50<>"",Defaults!C50,"") -> Forest | E54: =IF(J54<>"",J54,Defaults!J50) -> 2.5 | F54: =IF(K54<>"",K54,Defaults!K50) -> 0.2 | G54: =IF(L54<>"",L54,Defaults!L50) -> 100 | H54: =IF(M54<>"",M54,Defaults!M50) -> 12 | I54: =Calculations!J30 -> 0
B55: =IF(Defaults!B51<>"",Defaults!B51,"") -> Forest | C55: =IF(Defaults!C51<>"",Defaults!C51,"") ->  | E55: =IF(J55<>"",J55,Defaults!J51) -> 2.5 | F55: =IF(K55<>"",K55,Defaults!K51) -> 0.2 | G55: =IF(L55<>"",L55,Defaults!L51) -> 100 | H55: =IF(M55<>"",M55,Defaults!M51) -> 12 | I55: =Calculations!J31 -> 0
B56: =IF(Defaults!B52<>"",Defaults!B52,"") -> Forest | C56: =IF(Defaults!C52<>"",Defaults!C52,"") ->  | E56: =IF(J56<>"",J56,Defaults!J52) -> 2.5 | F56: =IF(K56<>"",K56,Defaults!K52) -> 0.2 | G56: =IF(L56<>"",L56,Defaults!L52) -> 100 | H56: =IF(M56<>"",M56,Defaults!M52) -> 12 | I56: =Calculations!J32 -> 0
B57: =IF(Defaults!B53<>"",Defaults!B53,"") -> Forest | C57: =IF(Defaults!C53<>"",Defaults!C53,"") ->  | E57: =IF(J57<>"",J57,Defaults!J53) -> 2.5 | F57: =IF(K57<>"",K57,Defaults!K53) -> 0.2 | G57: =IF(L57<>"",L57,Defaults!L53) -> 100 | H57: =IF(M57<>"",M57,Defaults!M53) -> 12 | I57: =Calculations!J33 -> 0
B58: =IF(Defaults!B54<>"",Defaults!B54,"") -> Forest | C58: =IF(Defaults!C54<>"",Defaults!C54,"") ->  | E58: =IF(J58<>"",J58,Defaults!J54) -> 2.5 | F58: =IF(K58<>"",K58,Defaults!K54) -> 0.2 | G58: =IF(L58<>"",L58,Defaults!L54) -> 100 | H58: =IF(M58<>"",M58,Defaults!M54) -> 12 | I58: =Calculations!J34 -> 0
B59: =IF(Defaults!B55<>"",Defaults!B55,"") -> Rural | C59: =IF(Defaults!C55<>"",Defaults!C55,"") -> Rural | E59: =IF(J59<>"",J59,Defaults!J55) -> 4.6 | F59: =IF(K59<>"",K59,Defaults!K55) -> 0.7 | G59: =IF(L59<>"",L59,Defaults!L55) -> 100 | H59: =IF(M59<>"",M59,Defaults!M55) -> 39 | I59: =Calculations!J35 -> 0
B60: =IF(Defaults!B56<>"",Defaults!B56,"") -> Rural | C60: =IF(Defaults!C56<>"",Defaults!C56,"") ->  | E60: =IF(J60<>"",J60,Defaults!J56) -> 4.6 | F60: =IF(K60<>"",K60,Defaults!K56) -> 0.7 | G60: =IF(L60<>"",L60,Defaults!L56) -> 100 | H60: =IF(M60<>"",M60,Defaults!M56) -> 39 | I60: =Calculations!J36 -> 0
B61: =IF(Defaults!B57<>"",Defaults!B57,"") -> Rural | C61: =IF(Defaults!C57<>"",Defaults!C57,"") ->  | E61: =IF(J61<>"",J61,Defaults!J57) -> 4.6 | F61: =IF(K61<>"",K61,Defaults!K57) -> 0.7 | G61: =IF(L61<>"",L61,Defaults!L57) -> 100 | H61: =IF(M61<>"",M61,Defaults!M57) -> 39 | I61: =Calculations!J37 -> 0
B62: =IF(Defaults!B58<>"",Defaults!B58,"") -> Rural | C62: =IF(Defaults!C58<>"",Defaults!C58,"") ->  | E62: =IF(J62<>"",J62,Defaults!J58) -> 4.6 | F62: =IF(K62<>"",K62,Defaults!K58) -> 0.7 | G62: =IF(L62<>"",L62,Defaults!L58) -> 100 | H62: =IF(M62<>"",M62,Defaults!M58) -> 39 | I62: =Calculations!J38 -> 0
B63: =IF(Defaults!B59<>"",Defaults!B59,"") -> Rural | C63: =IF(Defaults!C59<>"",Defaults!C59,"") ->  | E63: =IF(J63<>"",J63,Defaults!J59) -> 4.6 | F63: =IF(K63<>"",K63,Defaults!K59) -> 0.7 | G63: =IF(L63<>"",L63,Defaults!L59) -> 100 | H63: =IF(M63<>"",M63,Defaults!M59) -> 39 | I63: =Calculations!J39 -> 0
B64: =IF(Defaults!B60<>"",Defaults!B60,"") -> Rural | C64: =IF(Defaults!C60<>"",Defaults!C60,"") ->  | E64: =IF(J64<>"",J64,Defaults!J60) -> 4.6 | F64: =IF(K64<>"",K64,Defaults!K60) -> 0.7 | G64: =IF(L64<>"",L64,Defaults!L60) -> 100 | H64: =IF(M64<>"",M64,Defaults!M60) -> 39 | I64: =Calculations!J40 -> 0
B65: =IF(Defaults!B61<>"",Defaults!B61,"") -> Rural | C65: =IF(Defaults!C61<>"",Defaults!C61,"") ->  | E65: =IF(J65<>"",J65,Defaults!J61) -> 4.6 | F65: =IF(K65<>"",K65,Defaults!K61) -> 0.7 | G65: =IF(L65<>"",L65,Defaults!L61) -> 100 | H65: =IF(M65<>"",M65,Defaults!M61) -> 39 | I65: =Calculations!J41 -> 0
B66: =IF(Defaults!B62<>"",Defaults!B62,"") -> Rural | C66: =IF(Defaults!C62<>"",Defaults!C62,"") ->  | E66: =IF(J66<>"",J66,Defaults!J62) -> 4.6 | F66: =IF(K66<>"",K66,Defaults!K62) -> 0.7 | G66: =IF(L66<>"",L66,Defaults!L62) -> 100 | H66: =IF(M66<>"",M66,Defaults!M62) -> 39 | I66: =Calculations!J42 -> 0
B67: =IF(Defaults!B63<>"",Defaults!B63,"") -> Rural | C67: =IF(Defaults!C63<>"",Defaults!C63,"") ->  | E67: =IF(J67<>"",J67,Defaults!J63) -> 4.6 | F67: =IF(K67<>"",K67,Defaults!K63) -> 0.7 | G67: =IF(L67<>"",L67,Defaults!L63) -> 100 | H67: =IF(M67<>"",M67,Defaults!M63) -> 39 | I67: =Calculations!J43 -> 0
B68: =IF(Defaults!B64<>"",Defaults!B64,"") -> Rural | C68: =IF(Defaults!C64<>"",Defaults!C64,"") ->  | E68: =IF(J68<>"",J68,Defaults!J64) -> 4.6 | F68: =IF(K68<>"",K68,Defaults!K64) -> 0.7 | G68: =IF(L68<>"",L68,Defaults!L64) -> 100 | H68: =IF(M68<>"",M68,Defaults!M64) -> 39 | I68: =Calculations!J44 -> 0
B69: =IF(Defaults!B65<>"",Defaults!B65,"") -> Open Water | C69: =IF(Defaults!C65<>"",Defaults!C65,"") -> Open Water | E69: =IF(J69<>"",J69,Defaults!J65) -> 12.8 | F69: =IF(K69<>"",K69,Defaults!K65) -> 0.5 | G69: =IF(L69<>"",L69,Defaults!L65) -> 155 | H69: =IF(M69<>"",M69,Defaults!M65) -> 0 | I69: =Calculations!J45 -> 0
B70: =IF(Defaults!B66<>"",Defaults!B66,"") -> Active Construction | C70: =IF(Defaults!C66<>"",Defaults!C66,"") -> Active Construction | E70: =IF(J70<>"",J70,0.226*Defaults!F66*Calculations!$J46) -> 0 | F70: =IF(K70<>"",K70,0.226*Defaults!G66*Calculations!$J46) -> 0 | G70: =IF(L70<>"",L70,0.226*Defaults!H66*Calculations!$J46) -> 0 | H70: =IF(M70<>"",M70,0.226*Defaults!I66*Calculations!$J46) -> 0 | I70: =Calculations!J46 -> 0
B71: Total | C71: Total Acres | D71: =MAX(SUM(D29:D70),0.001) -> 0.001
B76: Soils Information
B77: HYDROLOGIC SOIL GROUP | C77: Soil Fraction(%)
B78: A Soils | C78: 1
B79: B Soils
B80: C Soils
B81: D Soils | D81: =IF(SUM(C78:C81)<>100%,"Sum of soil fractions should be equal to 100%. Current sum is " &SUM(C78:C81)*100&"%","") -> 
B83: DEPTH TO GROUNDWATER
B84: <3 Feet | C84: 0
B85: 3-5 Feet
B86: >5 Feet | C86: 1 | D86: =IF(SUM(C84:C86)<>100%,"Sum of depth to groundwater fractions should be equal to 100%. Current sum is " & SUM(C84:C86)*100&"%","") -> 
B88: Secondary Sources cannot be calculated solely based on land use. For more description of secondary sources, consult Chapter 4 of the WTM Documentation. Many of the Secondary Sources in the WTM require basic data on sewage treatment, as well as information regarding nutrient concentrations in stream channels (See Figures 4.1 and 4.2 of the WTM Documentation for maps of default data)
B89: SECONDARY SOURCES
B91: WWTP Efficiencies
C92: TN Efficiency | D92: TP Efficiency | E92: TSS Efficiency | F92: Bacteria Log Reduction
B93: WWTP Efficiency
B95: General Sewage Use Data
B96: Dwelling Units
B97: Individuals/Dwelling Unit | C97: =Defaults!C90 -> 2.7
B98: Water Use (gpcd) | C98: =Defaults!C91 -> 70
B100: Nutrient Concentration in Stream Channels
B101: Soil P (%)
B102: Soil TN (%)
B104: On-Site Sewage Disposal Systems | D104: Loads from On-Site Sewage Disposal Systems (OSDSs) include both surface loads through failure and loads to groundwater from functioning systems. Fill in data in the blue cells to estimate loads. If failure rate is known, you may override the calculated value by entering a value in the yellow cell below. You may also alter system efficiency data on the "Defaults" tab.
B105: Unsewered Dwelling Units(% of total)
B106: % of OSDSs <100' to waterway
B107: Failure Rate | C107: =IF(F107<>"",F107,0.1+IF(Sources!C117=Defaults!D115,0.1,IF(Sources!C117=Defaults!D117,-0.05,0))+IF(Sources!C119=Defaults!B83,0.05,0)+IF(Sources!C120=Defaults!C115,0,0.05)) -> 0.05 | D107: User Defined (Optional to override calculated value)
B108: Soils | C108: Sandy
B110: System Type | C110: % of Systems
B111: Conventional
B112: Intermittent Sand Filter
B113: Recirculating Sand Filter
B114: Water Separation System
B115: Other | D115: =IF(SUM(C111:C115)<>100%,"Sum of soil fractions should be equal to 100%. Current sum is " &SUM(C111:C115)*100 & "%","") -> Sum of soil fractions should be equal to 100%. Current sum is 0%
B117: Current Septic System Management | C117: High. Inspection at installation, ongoing inspection, incentives to correct failing systems.
B119: Typical Separation from Groundwater | C119: 3-5 Feet
B120: Density (#/acre) | C120: <1/acre
B123: SSOs
B124: Miles of Sanitary Sewer
B126: CSOs
B127: Median Storm Event (inches)
B128: Sewershed Area (acres)
B129: Sewershed Impervious Cover (%)
B130: Number of CSOs/year
B132: Illicit Connections
B133: Percentage of WS Population Illicitly Connected
B134: Number of Illicit Connections | C134: =C133*Sources!C96 -> 0
B136: Number of Businesses
B137: Percentage of Businesses with Illicit Connections
B138: Percentage of Business Connections that are Wash Water Only
B139: Wash Water Flow (gpd)
B140: Total Flow/business (gpd)
B143: Urban Channel Erosion (Applies only to Stream Reaches in Urban Portions of the Watershed)
B144: Method (Select from List) | C144: Method 1. Estimate based on typical estimates of channel erosion rates
B145: =Defaults!B140 -> Method 1. Estimate based on typical estimates of channel erosion rates
B146: Assessment of Channel Erosion | C146: Moderate: 50% of watershed sediment load. Channels show signs of degradation, with some areas of severe channel erosion.
B147: =Defaults!B141 -> Method 2. Back calculate based on known watershed sediment loading
B148: Total Watershed Loading (including Channel Erosion) in tons/year
B149: =Defaults!B142 -> Method 3. Estimate based on other sediment study results
B150: Sediment Load from Channel Erosion (tons/year)
B155: Livestock
C156: Animals (#)
B157: Dairy Cattle
B158: Layers
B159: Broilers
B160: Turkeys
B161: Pigs
B162: Total
B164: Marinas
B165: Berths
B166: Season length (days)
B169: Road Sanding
B170: Sand Application (lbs/year)
B171: Fraction of Roads that are Open Section
B174: Non-Stormwater Point Sources
C175: Flow (MGD) | D175: N Concentration (mg/l) | E175: P Concentration (mg/l) | F175: TSS Concentration (mg/l) | G175: Bacteria Concentration (#/100ml)
B176: Point Source 1
B177: Point Source 2
B178: Point Source 3
B179: Point Source 4
B180: Point Source 5
B181: Point Source 6
B182: Point Source 7
B183: Point Source 8
B184: Point Source 9
B185: Point Source 10

Sheet Existing Practices
B1: Light Blue cells require input values from the user.
B2: Yellow cells are optional to override a default or calculated values.
B3: Grey cells are calculated values and are not editable by the user.
B5: Existing Practices
D7: This sheet summarizes stormwater practices currently in place throughout the watershed, including both structural and non-structural practices. Chapter 5 of the WTM Documentation summarizes efficiencies for Structural Stormwater Management Practices, and Chapter 6 provides example data and documents assumptions for non-structural practices. Chapter 7 discusses application of practices "In Series" which may provide useful background for WTM Users. Many of the practices included in this section include the concept of a "Discount Factor," which reduces the effectiveness of practices to account for imperfect application in the field. The Users' Guide provides some guidance on these factors, as does pop-up guidance on this page. Pop-up boxes will also guide you to places where default values can be changed.
B22: Turf Condition and Management Practices - Residential
D23: User Defined (Optional to override calculated values)
B24: Residential Turf Area | C24: =IF(D24<>"",D24,MAX(SUMPRODUCT(Sources!D29:D38,Defaults!E25:E34),0.001)) -> 0.001
B25: Percentage of Lawns Bare/ Compacted
B27: Factors that Affect Nutrient Loading
B28: Percentage of Homes <10 Years Old
B29: Percentage of Lawn Area "Highly Managed" (high input)
B32: Recommended Fertilizer Rate (N lb/acre) | C32: =Defaults!C189 -> 150
B33: Estimated Average Fertilizer Application (N lb/acre) | C33: =IF(D33<>"",D33,C32*(1+Calculations!C146/6)) -> 150
B36: Form | C36: % of Fertilizer Use (N Application)
B37: Organic | C37: =IF(D37<>"",D37,Defaults!C193) -> 0
B38: Soluble/Urea | C38: =IF(D38<>"",D38,Defaults!C194) -> 0.5
B39: Slow Release | C39: =IF(D39<>"",D39,Defaults!C195) -> 0.5
B40: Phosphorus Free | C40: =IF(D40<>"",D40,Defaults!C196) -> 0
B44: Turf Condition and Management Practices - Other
B46: Turf Category | C46: Area (acres) | D46: Management Compared to Residential Turf
B47: Commercial | C47: =SUMPRODUCT(Sources!D39:D43,Defaults!E35:E39) -> 0 | D47: Better management/ nutrient management
B48: Roadway | C48: =SUMPRODUCT(Sources!D44:D48,Defaults!E40:E44) -> 0 | D48: Better management/ nutrient management
B49: Industrial | C49: =SUMPRODUCT(Sources!D49:D53,Defaults!E45:E49) -> 0 | D49: Comparatively High Management/ Input
B52: Pet Waste Education
B54: Program in Place? | C54: Yes
B55: Number of dwelling units | C55: =Sources!C96 -> 0
B56: Awareness of Message (Percent of Population)
B59: Erosion and Sediment Control
B60: Percent of Building Permits Regulated
B61: Installation/ Maintenance Discount
B63: Street Sweeping
B64: Technique Discount
C65: Streets Swept (Acres) | D65: Streets Swept (Acres) | E65: Parking Lots Swept
B66: Sweeper Type | C66: Residential | D66: Other Streets | E66: (acres)
B67: Mechanical
B68: Regenerative Air
B69: Vacuum Assisted
B70: Sweeping Frequency | C70: Monthly | D70: Monthly | E70: Monthly
B73: Structural Stormwater Management Practices
B74: Capture Discount (D1)
B75: Design Discount (D2)
B76: Maintenance Discount (D3)
B77: BMP Type | C77: Total Drainage Area | D77: Impervious Area (acres)
B78: =IF(Defaults!B164="User Defined","",Defaults!B164) -> Dry Water Quantity Pond
B79: =IF(Defaults!B165="User Defined","",Defaults!B165) -> Dry Extended Detention Pond
B80: =IF(Defaults!B166="User Defined","",Defaults!B166) -> Wet Pond
B81: =IF(Defaults!B167="User Defined","",Defaults!B167) -> Wetland
B82: =IF(Defaults!B168="User Defined","",Defaults!B168) -> Filters
B83: =IF(Defaults!B169="User Defined","",Defaults!B169) -> Green Roof
B84: =IF(Defaults!B170="User Defined","",Defaults!B170) -> Rooftop Disconnection
B85: =IF(Defaults!B171="User Defined","",Defaults!B171) -> Permeable Pavement
B86: =IF(Defaults!B172="User Defined","",Defaults!B172) -> Grass (open) Channel
B87: =IF(Defaults!B173="User Defined","",Defaults!B173) -> Dry Swale (bioswale, WQ swale)
B88: =IF(Defaults!B174="User Defined","",Defaults!B174) -> Wet Swale
B89: =IF(Defaults!B175="User Defined","",Defaults!B175) -> Raintanks and Cisterns
B90: =IF(Defaults!B176="User Defined","",Defaults!B176) -> Soil Amendments
B91: =IF(Defaults!B177="User Defined","",Defaults!B177) -> Sheetflow to Open Space (excluding riparian buffers)
B92: =IF(Defaults!B178="User Defined","",Defaults!B178) -> Grassed Filter Strips
B93: =IF(Defaults!B179="User Defined","",Defaults!B179) -> Bioretention
B94: =IF(Defaults!B180="User Defined","",Defaults!B180) -> Infiltration Practices
B95: =IF(Defaults!B181="User Defined","",Defaults!B181) -> 
B96: =IF(Defaults!B182="User Defined","",Defaults!B182) -> 
B97: Total | C97: =SUM(C78:C95) -> 0 | D97: =SUM(D78:D95) -> 0
B100: Riparian Buffers
B101: Maintenance
C102: Buffer 1 | D102: Buffer 2 | E102: Buffer 3 | F102: Buffer 4
B103: Buffer Length (Miles)
B104: Buffer Width (ft)
B106: Catch Basin Cleanouts
B107: Disposal Discount
C108: Impervious Area Captured (Acres)
B109: Monthly Cleaning
B110: Semi-Annual Cleaning
B112: Marina Pumpouts
B113: Total Number of berths | C113: =Sources!C165 -> 0
B114: Number of Pumpouts
B115: Boats Served Per Station
B116: Percentage of Owners Willing to Use

Sheet Future Practices
B1: Light Blue cells require input values from the user.
B2: Yellow cells are optional to override a default or calculated values.
B3: Grey cells are calculated values and are not editable by the user.
B5: Future Practices
D6: The practices on this sheet represent future implementation of management practices, including both structural BMPs and programmatic practices. Some of the practices are simply updates or enhancements of those on the "Existing Practices" tab, while others are new practices implemented only in the future condition. Chapter 5 of the WTM Documentation summarizes efficiencies for Structural Stormwater Management Practices, and Chapter 6 provides example data and documents assumptions for non-structural practices. Chapter 7 discusses application of practices "In Series" which may provide useful background for WTM Users. Many of the practices included in this section include the concept of a "Discount Factor," which reduces the effectiveness of practices to account for imperfect application in the field. All data necessary to calculate the benefits of these practices can be entered on this sheet, and underlying assumptions can be modified on the "Defaults" tab.
B19: Residential Lawn Care Education
B20: Awareness of Message (Percent of Population)
B22: Goals of the Program | C22: Applied?
B23: Reduce Fertilizer Use to Recommended Levels | C23: Yes
B24: Switch to Non-Phosphorus Fertilizer | C24: Yes
B25: Change to Organic Fertilizer | C25: Yes
B26: Add Soil Amendments to Lawns | C26: Yes
B27: Convert 25% of lawn to forest or native vegetation | C27: Yes
B28: No fertilizer | C28: Yes
B31: Resulting Turf Condition and Management Practices - Residential
C32: Calculated (use cell to the right to override these) | D32: User Defined (Optional to override calculated values)
B33: Revised Residential Turf Area | C33: =IF(D33<>"",D33,'Existing Practices'!C24*(1-IF(C27="yes",0.25*Defaults!C253*C20,0))) -> 0.001
B34: Additional Residential Forest Area | C34: =IF(D34<>"",D34,'Existing Practices'!C24-C33) -> 0
B35: Revised Fertilizer Application (N lb/acre) | C35: =IF(D35<>"",D35,'Existing Practices'!C33-Calculations!B274) -> 150
B38: Form | C38: % of Fertilizer Use (N Application)
B39: Organic | C39: =IF(D39<>"",D39,'Existing Practices'!C37+IF(C25="yes",Defaults!C251,0)*C20) -> 0
B40: Soluble/Urea | C40: =IF(D40<>"",D40,1-C41-C39-C42) -> 0.5
B41: Slow Release | C41: =IF(D41<>"",D41,'Existing Practices'!C39-(IF(C25="yes",Defaults!C251,0)+IF(C24="yes",Defaults!C250,0))/2*C20) -> 0.5
B42: Phosphorus Free | C42: =IF(D42<>"",D42,'Existing Practices'!C40+IF(C24="yes",Defaults!C250,0)*C20) -> 0
B45: Pet Waste Education
D46: Baseline Conditions
B47: Program? (Y/N) | C47: Yes | D47: ='Existing Practices'!C54 -> Yes
B48: Number of households | D48: ='Existing Practices'!C55 -> 0
B49: Awareness of Message (Percent of Population) | D49: ='Existing Practices'!C56 -> 0
B52: Erosion and Sediment Control
D53: Baseline Conditions
B54: Percent of Building Permits Regulated | D54: ='Existing Practices'!C60 -> 0
B55: Installation/ Maintenance Discount | D55: ='Existing Practices'!C61 -> 0
B57: Street Sweeping
C58: Proposed Technique Discount | D58: Technique Discount Baseline
D59: ='Existing Practices'!C64 -> 0
B60: Streets Swept (Acres) | C60: Residential | E60: Other Streets | G60: Parking Lots
B61: Sweeper Type | C61: Proposed | D61: Baseline | E61: Proposed | F61: Baseline | G61: Proposed | H61: Baseline
B62: Mechanical | D62: ='Existing Practices'!C67 -> 0 | F62: ='Existing Practices'!D67 -> 0 | H62: ='Existing Practices'!E67 -> 0
B63: Regenerative Air | D63: ='Existing Practices'!C68 -> 0 | F63: ='Existing Practices'!D68 -> 0 | H63: ='Existing Practices'!E68 -> 0
B64: Vacuum Assisted | D64: ='Existing Practices'!C69 -> 0 | F64: ='Existing Practices'!D69 -> 0 | H64: ='Existing Practices'!E69 -> 0
B65: Sweeping Frequency (M=monthly, W = Weekly) | C65: Monthly | D65: ='Existing Practices'!C70 -> Monthly | E65: Monthly | F65: ='Existing Practices'!D70 -> Monthly | G65: Monthly | H65: ='Existing Practices'!E70 -> Monthly
B67: Impervious Cover Disconnection Program - Residential
B69: Program in Place? | C69: Yes
B70: Percent of Residential Land where Applicable
B71: Percent of Population Reached
B73: Riparian Buffers | C73: Riparian Buffers
C74: Buffer 1 Proposed | D74: Buffer 1 Baseline | E74: Buffer 2 Proposed | F74: Buffer 2 Baseline | G74: Buffer 3 Proposed | H74: Buffer 3 Baseline | I74: Buffer 4 Proposed | J74: Buffer 4 B baseline
B75: Buffer Length (Miles) | D75: ='Existing Practices'!C103 -> 0 | F75: ='Existing Practices'!D103 -> 0 | H75: ='Existing Practices'!E103 -> 0 | J75: ='Existing Practices'!F103 -> 0
B76: Buffer Width (ft) | D76: ='Existing Practices'!C104 -> 0 | F76: ='Existing Practices'!D104 -> 0 | H76: ='Existing Practices'!E104 -> 0 | J76: ='Existing Practices'!F104 -> 0
B77: ='Existing Practices'!B101 -> Maintenance | D77: ='Existing Practices'!C101 -> 0
B79: Catch Basin Cleanouts
C80: Impervious Area Captured (Acres)
C81: Proposed | D81: Baseline
B82: Monthly Cleaning | D82: ='Existing Practices'!C109 -> 0
B83: Semi-Annual Cleaning | D83: ='Existing Practices'!C110 -> 0
B84: Disposal Discount | D84: ='Existing Practices'!C107 -> 0
B86: Marina Pumpouts
B87: Number of Pumpouts Proposed
B88: Number of Pumpouts Baseline | C88: ='Existing Practices'!C114 -> 0
B92: "Urban Downsizing"
B93: Land Use | C93: Acres Available | D93: Acres Converted
B94: LDR (<1du/acre) | C94: =VLOOKUP(B94,Sources!$C$29:$D$68,2,FALSE) -> 0 | AA94: =IF(Defaults!C25>0,Defaults!C25,"") -> LDR (<1du/acre) | AB94: LDR (<1du/acre)
B95: MDR (1-4 du/acre) | C95: =VLOOKUP(B95,Sources!$C$29:$D$68,2,FALSE) -> 0 | AA95: =IF(Defaults!C26>0,Defaults!C26,"") -> MDR (1-4 du/acre) | AB95: MDR (1-4 du/acre)
B96: HDR (>4 du/acre) | C96: =VLOOKUP(B96,Sources!$C$29:$D$68,2,FALSE) -> 0 | AA96: =IF(Defaults!C27>0,Defaults!C27,"") -> HDR (>4 du/acre) | AB96: HDR (>4 du/acre)
B97: Multifamily | C97: =VLOOKUP(B97,Sources!$C$29:$D$68,2,FALSE) -> 0 | AA97: =IF(Defaults!C28>0,Defaults!C28,"") -> Multifamily | AB97: Multifamily
B98: Commercial | C98: =VLOOKUP(B98,Sources!$C$29:$D$68,2,FALSE) -> 0 | AA98: =IF(Defaults!C29>0,Defaults!C29,"") ->  | AB98: Commercial
B99: Roadway | C99: =VLOOKUP(B99,Sources!$C$29:$D$68,2,FALSE) -> 0 | AA99: =IF(Defaults!C30>0,Defaults!C30,"") ->  | AB99: Roadway
AA100: =IF(Defaults!C31>0,Defaults!C31,"") ->  | AB100: Industrial
D101: Acres Created | AA101: =IF(Defaults!C32>0,Defaults!C32,"") -> 
B102: Forest | C102: N/A | AA102: =IF(Defaults!C33>0,Defaults!C33,"") -> 
B103: Forest | C103: N/A | AA103: =IF(Defaults!C34>0,Defaults!C34,"") -> 
B104: Forest | C104: N/A | AA104: =IF(Defaults!C35>0,Defaults!C35,"") -> Commercial
B105: Rural | C105: N/A | I105: =Sources!C40 ->  | AA105: =IF(Defaults!C36>0,Defaults!C36,"") -> 
B106: Rural | C106: N/A | I106: =Sources!C41 ->  | AA106: =IF(Defaults!C37>0,Defaults!C37,"") -> 
B107: Forest | C107: N/A | D107: =SUM(D94:D99)-SUM(D102:D106) -> 0 | I107: =Sources!C42 ->  | AA107: =IF(Defaults!C38>0,Defaults!C38,"") -> 
AA108: =IF(Defaults!C39>0,Defaults!C39,"") -> 
AA109: =IF(Defaults!C40>0,Defaults!C40,"") -> Roadway
B110: Redevelopment with Improvements | AA110: =IF(Defaults!C41>0,Defaults!C41,"") -> 
B111: Land to Be Redeveloped (Acres) | AA111: =IF(Defaults!C42>0,Defaults!C42,"") -> 
B112: Average Impervious Cover Reduction (%) | AA112: =IF(Defaults!C43>0,Defaults!C43,"") -> 
B113: Average Turf Reduction (%) | AA113: =IF(Defaults!C44>0,Defaults!C44,"") -> 
AA114: =IF(Defaults!C45>0,Defaults!C45,"") -> Industrial
B115: Stormwater Retrofit Options | H115: The Stormwater Retrofit practice allows the user to enter individual stormwater practices. The grey cells at the top of the table represent the benefits of educational programs (entered under the "Residential Lawn Care Education" and "Impervious Cover Disconnection" practices). In the top of this section, enter general data for all practices. In the top section, enter general information for all practices (pop-up data included). Next, enter data for each retrofit in the rows below. Default data for each practice is included in the "BMP Effectiveness" section of the "Defaults" tab. | AA115: =IF(Defaults!C46>0,Defaults!C46,"") -> 
B116: Number of practices | AA116: =IF(Defaults!C47>0,Defaults!C47,"") -> 
B117: Design Storm (Inches) | AA117: =IF(Defaults!C48>0,Defaults!C48,"") -> 
B118: Water Quality Volumes | C118: Provide Full WQv | E118: 1 | AA118: =IF(Defaults!C49>0,Defaults!C49,"") -> 
AA119: =IF(Defaults!C50>0,Defaults!C50,"") -> Forest | AB119: Forest
B120: Discount Factors | AA120: =IF(Defaults!C51>0,Defaults!C51,"") ->  | AB120: Rural
B121: Design | E121: Value (Fraction): | AA121: =IF(Defaults!C52>0,Defaults!C52,"") -> 
B122: Maintenance | C122: Same for all (Enter at the right) | E122: Value (Percent): | AA122: =IF(Defaults!C53>0,Defaults!C53,"") -> 
AA123: =IF(Defaults!C54>0,Defaults!C54,"") -> 
C124: Basic Site Information. Make sure to Enter Data in Blue Cells | I124: Effectiveness and WQv of Retrofits | K124: Discounts for Retrofits: | AA124: =IF(Defaults!C55>0,Defaults!C55,"") -> Rural
I125: WQv (cf) | K125: If no Value is Filled in, Effectiveness will be Zero! | AA125: =IF(Defaults!C56>0,Defaults!C56,"") -> 
C126: Area Captured (acres) | D126: Impervious Percentage | E126: Is this a Retrofit of an Existing Facility? | F126: What Practice Was the Original Facility? | G126: Dominant Soil Type in Drainage Area | H126: Depth to Groundwater (from Practice Bottom) | I126: Target WQv | J126: WQv Provided | K126: Design | L126: Maintenance | AA126: =IF(Defaults!C57>0,Defaults!C57,"") -> 
B127: Practices from Education Programs | AA127: =IF(Defaults!C58>0,Defaults!C58,"") -> 
B128: Rooftop Disconnection | C128: =Defaults!C235*'Future Practices'!C70*'Future Practices'!C71*Defaults!C236*(Sources!D29+Sources!D30/2.5+Sources!D31/6)/43560 -> 0 | D128: 1 | E128: No | F128: N/A | G128: =IF(Sources!C78>0,"A Soils",IF(Sources!C79>0,"B Soils",IF(Sources!C80>0,"C Soils","D Soils"))) -> A Soils | H128: =IF(Sources!C86>0,">5 Feet",IF(Sources!C85>0,"3-5 Feet","<3 Feet")) -> >5 Feet | I128: =C128*'Future Practices'!C$117*(D128*0.95+Calculations!$C$163/SUMPRODUCT(Sources!$C$78:$C$81,Defaults!$D$77:$D$80)*(1-D128)*VLOOKUP(G128,Defaults!B$77:D$80,3,FALSE))*3630 -> 0 | J128: =I128 -> 0 | K128: 1 | L128: 0.9 | AA128: =IF(Defaults!C59>0,Defaults!C59,"") -> 
B129: Soil Amendments | C129: =IF('Future Practices'!C26="Yes",1,0)*('Existing Practices'!C24*Defaults!C252*'Future Practices'!C20) -> 0 | D129: 0 | E129: No | F129: N/A | G129: C Soils | H129: >5 Feet | I129: =C129*'Future Practices'!C$117*(D129*0.95+Calculations!$C$163/SUMPRODUCT(Sources!$C$78:$C$81,Defaults!$D$77:$D$80)*(1-D129)*VLOOKUP(G129,Defaults!B$77:D$80,3,FALSE))*3630 -> 0 | J129: =I129 -> 0 | K129: 1 | L129: 0.9 | AA129: =IF(Defaults!C60>0,Defaults!C60,"") -> 
AA130: =IF(Defaults!C61>0,Defaults!C61,"") -> 
B131: Practice Type | AA131: =IF(Defaults!C62>0,Defaults!C62,"") -> 
B132: Wet Pond | E132: Yes | F132: Dry Water Quantity Pond | G132: A Soils | H132: 3-5 Feet | I132: =C132*'Future Practices'!C$117*(D132*0.95+Calculations!$C$163/SUMPRODUCT(Sources!$C$78:$C$81,Defaults!$D$77:$D$80)*(1-D132)*VLOOKUP(G132,Defaults!B$77:D$80,3,FALSE))*3630 -> 0 | J132: =RetrofitWQv*I132 -> 0 | K132: =Retrofit_Design -> 0 | L132: =Retrofit_Maintenance -> 0 | AA132: =IF(Defaults!C63>0,Defaults!C63,"") -> 
B133: Bioretention | E133: No | F133: Dry Water Quantity Pond | G133: C Soils | H133: 3-5 Feet | I133: =C133*'Future Practices'!C$117*(D133*0.95+Calculations!$C$163/SUMPRODUCT(Sources!$C$78:$C$81,Defaults!$D$77:$D$80)*(1-D133)*VLOOKUP(G133,Defaults!B$77:D$80,3,FALSE))*3630 -> 0 | J133: 0 | K133: =Retrofit_Design -> 0 | L133: 0 | AA133: =IF(Defaults!C64>0,Defaults!C64,"") -> 
B134: Dry Water Quantity Pond | E134: No | F134: Dry Water Quantity Pond | G134: C Soils | H134: >5 Feet | I134: =C134*'Future Practices'!C$117*(D134*0.95+Calculations!$C$163/SUMPRODUCT(Sources!$C$78:$C$81,Defaults!$D$77:$D$80)*(1-D134)*VLOOKUP(G134,Defaults!B$77:D$80,3,FALSE))*3630 -> 0 | J134: 0 | K134: =Retrofit_Design -> 0 | L134: 0
B135: Dry Water Quantity Pond | E135: No | F135: Dry Water Quantity Pond | G135: C Soils | H135: >5 Feet | I135: =C135*'Future Practices'!C$117*(D135*0.95+Calculations!$C$163/SUMPRODUCT(Sources!$C$78:$C$81,Defaults!$D$77:$D$80)*(1-D135)*VLOOKUP(G135,Defaults!B$77:D$80,3,FALSE))*3630 -> 0 | J135: 0 | K135: =Retrofit_Design -> 0 | L135: 0
B136: Dry Water Quantity Pond | E136: No | F136: Dry Water Quantity Pond | G136: C Soils | H136: >5 Feet | I136: =C136*'Future Practices'!C$117*(D136*0.95+Calculations!$C$163/SUMPRODUCT(Sources!$C$78:$C$81,Defaults!$D$77:$D$80)*(1-D136)*VLOOKUP(G136,Defaults!B$77:D$80,3,FALSE))*3630 -> 0 | J136: 0 | K136: =Retrofit_Design -> 0 | L136: 0
B137: Dry Water Quantity Pond | E137: No | F137: Dry Water Quantity Pond | G137: C Soils | H137: >5 Feet | I137: =C137*'Future Practices'!C$117*(D137*0.95+Calculations!$C$163/SUMPRODUCT(Sources!$C$78:$C$81,Defaults!$D$77:$D$80)*(1-D137)*VLOOKUP(G137,Defaults!B$77:D$80,3,FALSE))*3630 -> 0 | J137: 0 | K137: =Retrofit_Design -> 0 | L137: 0
B138: Dry Water Quantity Pond | E138: No | F138: Dry Water Quantity Pond | G138: C Soils | H138: >5 Feet | I138: =C138*'Future Practices'!C$117*(D138*0.95+Calculations!$C$163/SUMPRODUCT(Sources!$C$78:$C$81,Defaults!$D$77:$D$80)*(1-D138)*VLOOKUP(G138,Defaults!B$77:D$80,3,FALSE))*3630 -> 0 | J138: 0 | K138: =Retrofit_Design -> 0 | L138: 0
B139: Dry Water Quantity Pond | E139: No | F139: Dry Water Quantity Pond | G139: C Soils | H139: >5 Feet | I139: =C139*'Future Practices'!C$117*(D139*0.95+Calculations!$C$163/SUMPRODUCT(Sources!$C$78:$C$81,Defaults!$D$77:$D$80)*(1-D139)*VLOOKUP(G139,Defaults!B$77:D$80,3,FALSE))*3630 -> 0 | J139: 0 | K139: =Retrofit_Design -> 0 | L139: 0
B140: Dry Water Quantity Pond | E140: No | F140: Dry Water Quantity Pond | G140: C Soils | H140: >5 Feet | I140: =C140*'Future Practices'!C$117*(D140*0.95+Calculations!$C$163/SUMPRODUCT(Sources!$C$78:$C$81,Defaults!$D$77:$D$80)*(1-D140)*VLOOKUP(G140,Defaults!B$77:D$80,3,FALSE))*3630 -> 0 | J140: 0 | K140: =Retrofit_Design -> 0 | L140: 0
B141: Dry Water Quantity Pond | E141: No | F141: Dry Water Quantity Pond | G141: C Soils | H141: >5 Feet | I141: =C141*'Future Practices'!C$117*(D141*0.95+Calculations!$C$163/SUMPRODUCT(Sources!$C$78:$C$81,Defaults!$D$77:$D$80)*(1-D141)*VLOOKUP(G141,Defaults!B$77:D$80,3,FALSE))*3630 -> 0 | J141: 0 | K141: =Retrofit_Design -> 0 | L141: 0 | AA141: =IF(Defaults!C72>0,Defaults!C72,"") -> 
B142: Dry Water Quantity Pond | E142: No | F142: Dry Water Quantity Pond | G142: C Soils | H142: >5 Feet | I142: =C142*'Future Practices'!C$117*(D142*0.95+Calculations!$C$163/SUMPRODUCT(Sources!$C$78:$C$81,Defaults!$D$77:$D$80)*(1-D142)*VLOOKUP(G142,Defaults!B$77:D$80,3,FALSE))*3630 -> 0 | J142: 0 | K142: =Retrofit_Design -> 0 | L142: 0
B143: Dry Water Quantity Pond | E143: No | F143: Dry Water Quantity Pond | G143: C Soils | H143: >5 Feet | I143: =C143*'Future Practices'!C$117*(D143*0.95+Calculations!$C$163/SUMPRODUCT(Sources!$C$78:$C$81,Defaults!$D$77:$D$80)*(1-D143)*VLOOKUP(G143,Defaults!B$77:D$80,3,FALSE))*3630 -> 0 | J143: 0 | K143: =Retrofit_Design -> 0 | L143: 0
B144: Dry Water Quantity Pond | E144: No | F144: Dry Water Quantity Pond | G144: C Soils | H144: >5 Feet | I144: =C144*'Future Practices'!C$117*(D144*0.95+Calculations!$C$163/SUMPRODUCT(Sources!$C$78:$C$81,Defaults!$D$77:$D$80)*(1-D144)*VLOOKUP(G144,Defaults!B$77:D$80,3,FALSE))*3630 -> 0 | J144: 0 | K144: =Retrofit_Design -> 0 | L144: 0
B145: Dry Water Quantity Pond | E145: No | F145: Dry Water Quantity Pond | G145: C Soils | H145: >5 Feet | I145: =C145*'Future Practices'!C$117*(D145*0.95+Calculations!$C$163/SUMPRODUCT(Sources!$C$78:$C$81,Defaults!$D$77:$D$80)*(1-D145)*VLOOKUP(G145,Defaults!B$77:D$80,3,FALSE))*3630 -> 0 | J145: 0 | K145: =Retrofit_Design -> 0 | L145: 0
B146: Dry Water Quantity Pond | E146: No | F146: Dry Water Quantity Pond | G146: C Soils | H146: >5 Feet | I146: =C146*'Future Practices'!C$117*(D146*0.95+Calculations!$C$163/SUMPRODUCT(Sources!$C$78:$C$81,Defaults!$D$77:$D$80)*(1-D146)*VLOOKUP(G146,Defaults!B$77:D$80,3,FALSE))*3630 -> 0 | J146: 0 | K146: =Retrofit_Design -> 0 | L146: 0
B147: Dry Water Quantity Pond | E147: No | F147: Dry Water Quantity Pond | G147: C Soils | H147: >5 Feet | I147: =C147*'Future Practices'!C$117*(D147*0.95+Calculations!$C$163/SUMPRODUCT(Sources!$C$78:$C$81,Defaults!$D$77:$D$80)*(1-D147)*VLOOKUP(G147,Defaults!B$77:D$80,3,FALSE))*3630 -> 0 | J147: 0 | K147: =Retrofit_Design -> 0 | L147: 0
B148: Dry Water Quantity Pond | E148: No | F148: Dry Water Quantity Pond | G148: C Soils | H148: >5 Feet | I148: =C148*'Future Practices'!C$117*(D148*0.95+Calculations!$C$163/SUMPRODUCT(Sources!$C$78:$C$81,Defaults!$D$77:$D$80)*(1-D148)*VLOOKUP(G148,Defaults!B$77:D$80,3,FALSE))*3630 -> 0 | J148: 0 | K148: =Retrofit_Design -> 0 | L148: 0
B149: Dry Water Quantity Pond | E149: No | F149: Dry Water Quantity Pond | G149: C Soils | H149: >5 Feet | I149: =C149*'Future Practices'!C$117*(D149*0.95+Calculations!$C$163/SUMPRODUCT(Sources!$C$78:$C$81,Defaults!$D$77:$D$80)*(1-D149)*VLOOKUP(G149,Defaults!B$77:D$80,3,FALSE))*3630 -> 0 | J149: 0 | K149: =Retrofit_Design -> 0 | L149: 0
B150: Dry Water Quantity Pond | E150: No | F150: Dry Water Quantity Pond | G150: C Soils | H150: >5 Feet | I150: =C150*'Future Practices'!C$117*(D150*0.95+Calculations!$C$163/SUMPRODUCT(Sources!$C$78:$C$81,Defaults!$D$77:$D$80)*(1-D150)*VLOOKUP(G150,Defaults!B$77:D$80,3,FALSE))*3630 -> 0 | J150: 0 | K150: =Retrofit_Design -> 0 | L150: 0
B151: Dry Water Quantity Pond | E151: No | F151: Dry Water Quantity Pond | G151: C Soils | H151: >5 Feet | I151: =C151*'Future Practices'!C$117*(D151*0.95+Calculations!$C$163/SUMPRODUCT(Sources!$C$78:$C$81,Defaults!$D$77:$D$80)*(1-D151)*VLOOKUP(G151,Defaults!B$77:D$80,3,FALSE))*3630 -> 0 | J151: 0 | K151: =Retrofit_Design -> 0 | L151: 0
B152: Dry Water Quantity Pond | E152: No | F152: Dry Water Quantity Pond | G152: C Soils | H152: >5 Feet | I152: =C152*'Future Practices'!C$117*(D152*0.95+Calculations!$C$163/SUMPRODUCT(Sources!$C$78:$C$81,Defaults!$D$77:$D$80)*(1-D152)*VLOOKUP(G152,Defaults!B$77:D$80,3,FALSE))*3630 -> 0 | J152: 0 | K152: =Retrofit_Design -> 0 | L152: 0
B153: Dry Water Quantity Pond | E153: No | F153: Dry Water Quantity Pond | G153: C Soils | H153: >5 Feet | I153: =C153*'Future Practices'!C$117*(D153*0.95+Calculations!$C$163/SUMPRODUCT(Sources!$C$78:$C$81,Defaults!$D$77:$D$80)*(1-D153)*VLOOKUP(G153,Defaults!B$77:D$80,3,FALSE))*3630 -> 0 | J153: 0 | K153: =Retrofit_Design -> 0 | L153: 0
B154: Dry Water Quantity Pond | E154: No | F154: Dry Water Quantity Pond | G154: C Soils | H154: >5 Feet | I154: =C154*'Future Practices'!C$117*(D154*0.95+Calculations!$C$163/SUMPRODUCT(Sources!$C$78:$C$81,Defaults!$D$77:$D$80)*(1-D154)*VLOOKUP(G154,Defaults!B$77:D$80,3,FALSE))*3630 -> 0 | J154: 0 | K154: =Retrofit_Design -> 0 | L154: 0
B155: Dry Water Quantity Pond | E155: No | F155: Dry Water Quantity Pond | G155: C Soils | H155: >5 Feet | I155: =C155*'Future Practices'!C$117*(D155*0.95+Calculations!$C$163/SUMPRODUCT(Sources!$C$78:$C$81,Defaults!$D$77:$D$80)*(1-D155)*VLOOKUP(G155,Defaults!B$77:D$80,3,FALSE))*3630 -> 0 | J155: 0 | K155: =Retrofit_Design -> 0 | L155: 0
B156: Dry Water Quantity Pond | E156: No | F156: Dry Water Quantity Pond | G156: C Soils | H156: >5 Feet | I156: =C156*'Future Practices'!C$117*(D156*0.95+Calculations!$C$163/SUMPRODUCT(Sources!$C$78:$C$81,Defaults!$D$77:$D$80)*(1-D156)*VLOOKUP(G156,Defaults!B$77:D$80,3,FALSE))*3630 -> 0 | J156: 0 | K156: =Retrofit_Design -> 0 | L156: 0
B157: Dry Water Quantity Pond | E157: No | F157: Dry Water Quantity Pond | G157: C Soils | H157: >5 Feet | I157: =C157*'Future Practices'!C$117*(D157*0.95+Calculations!$C$163/SUMPRODUCT(Sources!$C$78:$C$81,Defaults!$D$77:$D$80)*(1-D157)*VLOOKUP(G157,Defaults!B$77:D$80,3,FALSE))*3630 -> 0 | J157: 0 | K157: =Retrofit_Design -> 0 | L157: 0
B158: Dry Water Quantity Pond | E158: No | F158: Dry Water Quantity Pond | G158: C Soils | H158: >5 Feet | I158: =C158*'Future Practices'!C$117*(D158*0.95+Calculations!$C$163/SUMPRODUCT(Sources!$C$78:$C$81,Defaults!$D$77:$D$80)*(1-D158)*VLOOKUP(G158,Defaults!B$77:D$80,3,FALSE))*3630 -> 0 | J158: 0 | K158: =Retrofit_Design -> 0 | L158: 0
B159: Dry Water Quantity Pond | E159: No | F159: Dry Water Quantity Pond | G159: C Soils | H159: >5 Feet | I159: =C159*'Future Practices'!C$117*(D159*0.95+Calculations!$C$163/SUMPRODUCT(Sources!$C$78:$C$81,Defaults!$D$77:$D$80)*(1-D159)*VLOOKUP(G159,Defaults!B$77:D$80,3,FALSE))*3630 -> 0 | J159: 0 | K159: =Retrofit_Design -> 0 | L159: 0
B160: Dry Water Quantity Pond | E160: No | F160: Dry Water Quantity Pond | G160: C Soils | H160: >5 Feet | I160: =C160*'Future Practices'!C$117*(D160*0.95+Calculations!$C$163/SUMPRODUCT(Sources!$C$78:$C$81,Defaults!$D$77:$D$80)*(1-D160)*VLOOKUP(G160,Defaults!B$77:D$80,3,FALSE))*3630 -> 0 | J160: 0 | K160: =Retrofit_Design -> 0 | L160: 0
B161: Totals/averages | C161: =SUM(C132:C160) -> 0 | D161: =SUMPRODUCT(C132:C160,D132:D160)/MAX(C161,0.001) -> 0 | I161: =SUM(I128:I160) -> 0 | J161: =SUM(J128:J160) -> 0
B164: Stormwater Retrofits Summary
D166: Annual Practice Effectiveness
B167: BMP Type | C167: Total Area Captured (Acres) | D167: TN | E167: TP | F167: TSS | G167: Bacteria (billion/year) | H167: Runoff Reduction (ac-ft/year)
B168: =Defaults!B164 -> Dry Water Quantity Pond | C168: =SUMIF('Future Practices'!$B$128:$B$160,$B168,'Future Practices'!C$128:C$160) -> 0 | D168: =SUMIF(Calculations!$B$312:$B$344,$B168,Calculations!W$312:W$344) -> 0 | E168: =SUMIF(Calculations!$B$312:$B$344,$B168,Calculations!X$312:X$344) -> 0 | F168: =SUMIF(Calculations!$B$312:$B$344,$B168,Calculations!Y$312:Y$344) -> 0 | G168: =SUMIF(Calculations!$B$312:$B$344,$B168,Calculations!Z$312:Z$344) -> 0 | H168: =SUMIF(Calculations!$B$312:$B$344,$B168,Calculations!AA$312:AA$344) -> 0
B169: =Defaults!B165 -> Dry Extended Detention Pond | C169: =SUMIF('Future Practices'!$B$130:$B$160,$B169,'Future Practices'!C$130:C$160) -> 0 | D169: =SUMIF(Calculations!$B$312:$B$344,$B169,Calculations!W$312:W$344) -> 0 | E169: =SUMIF(Calculations!$B$312:$B$344,$B169,Calculations!X$312:X$344) -> 0 | F169: =SUMIF(Calculations!$B$312:$B$344,$B169,Calculations!Y$312:Y$344) -> 0 | G169: =SUMIF(Calculations!$B$312:$B$344,$B169,Calculations!Z$312:Z$344) -> 0 | H169: =SUMIF(Calculations!$B$312:$B$344,$B169,Calculations!AA$312:AA$344) -> 0
B170: =Defaults!B166 -> Wet Pond | C170: =SUMIF('Future Practices'!$B$130:$B$160,$B170,'Future Practices'!C$130:C$160) -> 0 | D170: =SUMIF(Calculations!$B$312:$B$344,$B170,Calculations!W$312:W$344) -> 0 | E170: =SUMIF(Calculations!$B$312:$B$344,$B170,Calculations!X$312:X$344) -> 0 | F170: =SUMIF(Calculations!$B$312:$B$344,$B170,Calculations!Y$312:Y$344) -> 0 | G170: =SUMIF(Calculations!$B$312:$B$344,$B170,Calculations!Z$312:Z$344) -> 0 | H170: =SUMIF(Calculations!$B$312:$B$344,$B170,Calculations!AA$312:AA$344) -> 0
B171: =Defaults!B167 -> Wetland | C171: =SUMIF('Future Practices'!$B$130:$B$160,$B171,'Future Practices'!C$130:C$160) -> 0 | D171: =SUMIF(Calculations!$B$312:$B$344,$B171,Calculations!W$312:W$344) -> 0 | E171: =SUMIF(Calculations!$B$312:$B$344,$B171,Calculations!X$312:X$344) -> 0 | F171: =SUMIF(Calculations!$B$312:$B$344,$B171,Calculations!Y$312:Y$344) -> 0 | G171: =SUMIF(Calculations!$B$312:$B$344,$B171,Calculations!Z$312:Z$344) -> 0 | H171: =SUMIF(Calculations!$B$312:$B$344,$B171,Calculations!AA$312:AA$344) -> 0
B172: =Defaults!B168 -> Filters | C172: =SUMIF('Future Practices'!$B$130:$B$160,$B172,'Future Practices'!C$130:C$160) -> 0 | D172: =SUMIF(Calculations!$B$312:$B$344,$B172,Calculations!W$312:W$344) -> 0 | E172: =SUMIF(Calculations!$B$312:$B$344,$B172,Calculations!X$312:X$344) -> 0 | F172: =SUMIF(Calculations!$B$312:$B$344,$B172,Calculations!Y$312:Y$344) -> 0 | G172: =SUMIF(Calculations!$B$312:$B$344,$B172,Calculations!Z$312:Z$344) -> 0 | H172: =SUMIF(Calculations!$B$312:$B$344,$B172,Calculations!AA$312:AA$344) -> 0
B173: =Defaults!B169 -> Green Roof | C173: =SUMIF('Future Practices'!$B$130:$B$160,$B173,'Future Practices'!C$130:C$160) -> 0 | D173: =SUMIF(Calculations!$B$312:$B$344,$B173,Calculations!W$312:W$344) -> 0 | E173: =SUMIF(Calculations!$B$312:$B$344,$B173,Calculations!X$312:X$344) -> 0 | F173: =SUMIF(Calculations!$B$312:$B$344,$B173,Calculations!Y$312:Y$344) -> 0 | G173: =SUMIF(Calculations!$B$312:$B$344,$B173,Calculations!Z$312:Z$344) -> 0 | H173: =SUMIF(Calculations!$B$312:$B$344,$B173,Calculations!AA$312:AA$344) -> 0
B174: =Defaults!B170 -> Rooftop Disconnection | C174: =SUMIF('Future Practices'!$B$130:$B$160,$B174,'Future Practices'!C$130:C$160) -> 0 | D174: =SUMIF(Calculations!$B$312:$B$344,$B174,Calculations!W$312:W$344) -> 0 | E174: =SUMIF(Calculations!$B$312:$B$344,$B174,Calculations!X$312:X$344) -> 0 | F174: =SUMIF(Calculations!$B$312:$B$344,$B174,Calculations!Y$312:Y$344) -> 0 | G174: =SUMIF(Calculations!$B$312:$B$344,$B174,Calculations!Z$312:Z$344) -> 0 | H174: =SUMIF(Calculations!$B$312:$B$344,$B174,Calculations!AA$312:AA$344) -> 0
B175: =Defaults!B171 -> Permeable Pavement | C175: =SUMIF('Future Practices'!$B$130:$B$160,$B175,'Future Practices'!C$130:C$160) -> 0 | D175: =SUMIF(Calculations!$B$312:$B$344,$B175,Calculations!W$312:W$344) -> 0 | E175: =SUMIF(Calculations!$B$312:$B$344,$B175,Calculations!X$312:X$344) -> 0 | F175: =SUMIF(Calculations!$B$312:$B$344,$B175,Calculations!Y$312:Y$344) -> 0 | G175: =SUMIF(Calculations!$B$312:$B$344,$B175,Calculations!Z$312:Z$344) -> 0 | H175: =SUMIF(Calculations!$B$312:$B$344,$B175,Calculations!AA$312:AA$344) -> 0
B176: =Defaults!B172 -> Grass (open) Channel | C176: =SUMIF('Future Practices'!$B$130:$B$160,$B176,'Future Practices'!C$130:C$160) -> 0 | D176: =SUMIF(Calculations!$B$312:$B$344,$B176,Calculations!W$312:W$344) -> 0 | E176: =SUMIF(Calculations!$B$312:$B$344,$B176,Calculations!X$312:X$344) -> 0 | F176: =SUMIF(Calculations!$B$312:$B$344,$B176,Calculations!Y$312:Y$344) -> 0 | G176: =SUMIF(Calculations!$B$312:$B$344,$B176,Calculations!Z$312:Z$344) -> 0 | H176: =SUMIF(Calculations!$B$312:$B$344,$B176,Calculations!AA$312:AA$344) -> 0
B177: =Defaults!B173 -> Dry Swale (bioswale, WQ swale) | C177: =SUMIF('Future Practices'!$B$130:$B$160,$B177,'Future Practices'!C$130:C$160) -> 0 | D177: =SUMIF(Calculations!$B$312:$B$344,$B177,Calculations!W$312:W$344) -> 0 | E177: =SUMIF(Calculations!$B$312:$B$344,$B177,Calculations!X$312:X$344) -> 0 | F177: =SUMIF(Calculations!$B$312:$B$344,$B177,Calculations!Y$312:Y$344) -> 0 | G177: =SUMIF(Calculations!$B$312:$B$344,$B177,Calculations!Z$312:Z$344) -> 0 | H177: =SUMIF(Calculations!$B$312:$B$344,$B177,Calculations!AA$312:AA$344) -> 0
B178: =Defaults!B174 -> Wet Swale | C178: =SUMIF('Future Practices'!$B$130:$B$160,$B178,'Future Practices'!C$130:C$160) -> 0 | D178: =SUMIF(Calculations!$B$312:$B$344,$B178,Calculations!W$312:W$344) -> 0 | E178: =SUMIF(Calculations!$B$312:$B$344,$B178,Calculations!X$312:X$344) -> 0 | F178: =SUMIF(Calculations!$B$312:$B$344,$B178,Calculations!Y$312:Y$344) -> 0 | G178: =SUMIF(Calculations!$B$312:$B$344,$B178,Calculations!Z$312:Z$344) -> 0 | H178: =SUMIF(Calculations!$B$312:$B$344,$B178,Calculations!AA$312:AA$344) -> 0
B179: =Defaults!B175 -> Raintanks and Cisterns | C179: =SUMIF('Future Practices'!$B$130:$B$160,$B179,'Future Practices'!C$130:C$160) -> 0 | D179: =SUMIF(Calculations!$B$312:$B$344,$B179,Calculations!W$312:W$344) -> 0 | E179: =SUMIF(Calculations!$B$312:$B$344,$B179,Calculations!X$312:X$344) -> 0 | F179: =SUMIF(Calculations!$B$312:$B$344,$B179,Calculations!Y$312:Y$344) -> 0 | G179: =SUMIF(Calculations!$B$312:$B$344,$B179,Calculations!Z$312:Z$344) -> 0 | H179: =SUMIF(Calculations!$B$312:$B$344,$B179,Calculations!AA$312:AA$344) -> 0
B180: =Defaults!B176 -> Soil Amendments | C180: =SUMIF('Future Practices'!$B$130:$B$160,$B180,'Future Practices'!C$130:C$160) -> 0 | D180: =SUMIF(Calculations!$B$312:$B$344,$B180,Calculations!W$312:W$344) -> 0 | E180: =SUMIF(Calculations!$B$312:$B$344,$B180,Calculations!X$312:X$344) -> 0 | F180: =SUMIF(Calculations!$B$312:$B$344,$B180,Calculations!Y$312:Y$344) -> 0 | G180: =SUMIF(Calculations!$B$312:$B$344,$B180,Calculations!Z$312:Z$344) -> 0 | H180: =SUMIF(Calculations!$B$312:$B$344,$B180,Calculations!AA$312:AA$344) -> 0
B181: =Defaults!B177 -> Sheetflow to Open Space (excluding riparian buffers) | C181: =SUMIF('Future Practices'!$B$130:$B$160,$B181,'Future Practices'!C$130:C$160) -> 0 | D181: =SUMIF(Calculations!$B$312:$B$344,$B181,Calculations!W$312:W$344) -> 0 | E181: =SUMIF(Calculations!$B$312:$B$344,$B181,Calculations!X$312:X$344) -> 0 | F181: =SUMIF(Calculations!$B$312:$B$344,$B181,Calculations!Y$312:Y$344) -> 0 | G181: =SUMIF(Calculations!$B$312:$B$344,$B181,Calculations!Z$312:Z$344) -> 0 | H181: =SUMIF(Calculations!$B$312:$B$344,$B181,Calculations!AA$312:AA$344) -> 0
B182: =Defaults!B178 -> Grassed Filter Strips | C182: =SUMIF('Future Practices'!$B$130:$B$160,$B182,'Future Practices'!C$130:C$160) -> 0 | D182: =SUMIF(Calculations!$B$312:$B$344,$B182,Calculations!W$312:W$344) -> 0 | E182: =SUMIF(Calculations!$B$312:$B$344,$B182,Calculations!X$312:X$344) -> 0 | F182: =SUMIF(Calculations!$B$312:$B$344,$B182,Calculations!Y$312:Y$344) -> 0 | G182: =SUMIF(Calculations!$B$312:$B$344,$B182,Calculations!Z$312:Z$344) -> 0 | H182: =SUMIF(Calculations!$B$312:$B$344,$B182,Calculations!AA$312:AA$344) -> 0
B183: =Defaults!B179 -> Bioretention | C183: =SUMIF('Future Practices'!$B$130:$B$160,$B183,'Future Practices'!C$130:C$160) -> 0 | D183: =SUMIF(Calculations!$B$312:$B$344,$B183,Calculations!W$312:W$344) -> 0 | E183: =SUMIF(Calculations!$B$312:$B$344,$B183,Calculations!X$312:X$344) -> 0 | F183: =SUMIF(Calculations!$B$312:$B$344,$B183,Calculations!Y$312:Y$344) -> 0 | G183: =SUMIF(Calculations!$B$312:$B$344,$B183,Calculations!Z$312:Z$344) -> 0 | H183: =SUMIF(Calculations!$B$312:$B$344,$B183,Calculations!AA$312:AA$344) -> 0
B184: =Defaults!B180 -> Infiltration Practices | C184: =SUMIF('Future Practices'!$B$130:$B$160,$B184,'Future Practices'!C$130:C$160) -> 0 | D184: =SUMIF(Calculations!$B$312:$B$344,$B184,Calculations!W$312:W$344) -> 0 | E184: =SUMIF(Calculations!$B$312:$B$344,$B184,Calculations!X$312:X$344) -> 0 | F184: =SUMIF(Calculations!$B$312:$B$344,$B184,Calculations!Y$312:Y$344) -> 0 | G184: =SUMIF(Calculations!$B$312:$B$344,$B184,Calculations!Z$312:Z$344) -> 0 | H184: =SUMIF(Calculations!$B$312:$B$344,$B184,Calculations!AA$312:AA$344) -> 0
B185: =Defaults!B181 -> User Defined | C185: =SUMIF('Future Practices'!$B$130:$B$160,$B185,'Future Practices'!C$130:C$160) -> 0 | D185: =SUMIF(Calculations!$B$312:$B$344,$B185,Calculations!W$312:W$344) -> 0 | E185: =SUMIF(Calculations!$B$312:$B$344,$B185,Calculations!X$312:X$344) -> 0 | F185: =SUMIF(Calculations!$B$312:$B$344,$B185,Calculations!Y$312:Y$344) -> 0 | G185: =SUMIF(Calculations!$B$312:$B$344,$B185,Calculations!Z$312:Z$344) -> 0 | H185: =SUMIF(Calculations!$B$312:$B$344,$B185,Calculations!AA$312:AA$344) -> 0
C186: =SUMIF('Future Practices'!$B$132:$B$160,$B186,'Future Practices'!C$132:C$160) -> 0 | D186: =SUMIF(Calculations!$B$312:$B$344,$B186,Calculations!W$312:W$344) -> 0 | E186: =SUMIF(Calculations!$B$312:$B$344,$B186,Calculations!X$312:X$344) -> 0 | F186: =SUMIF(Calculations!$B$312:$B$344,$B186,Calculations!Y$312:Y$344) -> 0 | G186: =SUMIF(Calculations!$B$312:$B$344,$B186,Calculations!Z$312:Z$344) -> 0 | H186: =SUMIF(Calculations!$B$312:$B$344,$B186,Calculations!AA$312:AA$344) -> 0
B187: Total | C187: =SUM(C168:C185) -> 0 | D187: 0 | E187: 0 | F187: 0 | G187: 0 | H187: 0
B190: Stream Restoration
B191: Select Assessment Option
B192: Option 1. Estimate Based on Miles of Stream Stabilized
B193: Option 1. Estimate Based on Miles of Stream Stabilized
B194: Portion of Total Stream Channel Unstable (%)
B195: Miles of Unstable Channel | C195: =C194*Sources!C22 -> 0
B196: Miles of Stream Channel Stabilized
B197: Flow control for small storms (%)
B198: Option 2. Detailed Data for Stream Restoration
D199: Pollutant Removal Rates (lb/ft)
B200: Site | C200: Length Restored (ft) | D200: TN | E200: TP | F200: TSS
B208: The three practices below reduce sanitary sewer loads (illicit connections, CSOs and SSOs). The loads for these sources need to be entered on the "Sources" tab first. For these practices, enter a target reduction or number, and the fraction implemented.
B210: Illicit Connection Removal
B211: Percent of System Surveyed
B212: Percent of Repairs Made
B214: CSO Repair/ Abatement
B216: Target CSO Events after Repairs (#)
B217: Percent Complete
B219: SSO Repair/ Abatement
B221: Goal (% Reduction)
B222: Percent Complete
B225: Several options are available to reduce the pollutant load associated with On-Site Sewage Disposal Systems. The four practices to the left and below this box represent different techniques that either improve septic system performance or reduce the number of septic systems in the landscape.
B226: OSDS Education
B227: Program? (Y/N) | C227: Yes
B228: Awareness of Message (Percent of Population)
B229: Percent willing to change behavior
B232: OSDS Repair
B233: Program? (y/n) | C233: Yes
B234: Percent Inspected
B235: Percent Willing to Repair
B239: OSDS Upgrade
B240: Program? (y/n) | C240: Yes
B241: Percent Inspected
B242: Percent Willing to Upgrade
B243: Upgrade System? | C243: 2.Intermittent Sand Filter | D243: =IF(AND(C243="Other",Defaults!C112=0),"Please entered On-Site Sewage Disposal Systems Efficiency for Other Type","") -> 
B247: OSDS Retirement (Convert to WWTP)
B248: Number of Septic Systems Retired | C248: =C249*Sources!C96*Sources!C105 -> 0
B249: Percent of Systems Retired
B250: ="Percentage Failing among Retired Systems. Cannot Exceed "&MIN(IF(C248>0,100*Sources!C107*Sources!C105*Sources!C96/C248,0),100)&"%" -> Percentage Failing among Retired Systems. Cannot Exceed 0%
B251: ="Percentage within 100' of waterway among Retired Systems. Cannot Exceed "&MIN(IF(C248>0,100*Sources!C106*Sources!C105*Sources!C96/C248,0),100)&"%" -> Percentage within 100' of waterway among Retired Systems. Cannot Exceed 0%
B254: Point Source Reduction
C255: N Reduction (lbs/year) | D255: P Reduction (lbs/year) | E255: TSS Reduction (lbs/year) | F255: Bacteria Reduction (Billion/year)
B256: Additional WWTP Load from Septic Conversion (Will be negative) | C256: =-Calculations!C370 -> 0 | D256: =-Calculations!D370 -> 0 | E256: =-Calculations!E370 -> 0 | F256: =-Calculations!F370 -> 0
B257: Point Source 1
B258: Point Source 2
B259: Point Source 3
B260: Point Source 4
... 8 more rows

Sheet New Development
B1: Light Blue cells require input values from the user.
B2: Yellow cells are optional to override a default or calculated values.
B3: Grey cells are calculated values and are not editable by the user.
B5: New Development | E5: The previous sheets ("Sources", "Existing Practices" and "Future Practices") provide enough information for the user to understand baseline loads (i.e., Existing Conditions) and the loads if a set of management practices were implemented throughout the watershed. This sheet allows the user to account for future growth or land conversion in the watershed. For a description of the elements of this sheet, consult Chapter 8 of the Model Documentation. Guidance for data entry is provided for each table in mouse-over comment boxes.
C7: Land Use | D7: Additional Development
D8: (Acres)
B9: =IF(Sources!B29<>"",Sources!B29,"") -> Residential | C9: =IF(Sources!C29<>"",Sources!C29,"") -> LDR (<1du/acre)
B10: =IF(Sources!B30<>"",Sources!B30,"") -> Residential | C10: =IF(Sources!C30<>"",Sources!C30,"") -> MDR (1-4 du/acre)
B11: =IF(Sources!B31<>"",Sources!B31,"") -> Residential | C11: =IF(Sources!C31<>"",Sources!C31,"") -> HDR (>4 du/acre)
B12: =IF(Sources!B32<>"",Sources!B32,"") -> Residential | C12: =IF(Sources!C32<>"",Sources!C32,"") -> Multifamily
B13: =IF(Sources!B33<>"",Sources!B33,"") -> Residential | C13: =IF(Sources!C33<>"",Sources!C33,"") -> 
B14: =IF(Sources!B34<>"",Sources!B34,"") -> Residential | C14: =IF(Sources!C34<>"",Sources!C34,"") -> 
B15: =IF(Sources!B35<>"",Sources!B35,"") -> Residential | C15: =IF(Sources!C35<>"",Sources!C35,"") -> 
B16: =IF(Sources!B36<>"",Sources!B36,"") -> Residential | C16: =IF(Sources!C36<>"",Sources!C36,"") -> 
B17: =IF(Sources!B37<>"",Sources!B37,"") -> Residential | C17: =IF(Sources!C37<>"",Sources!C37,"") -> 
B18: =IF(Sources!B38<>"",Sources!B38,"") -> Residential | C18: =IF(Sources!C38<>"",Sources!C38,"") -> 
B19: =IF(Sources!B39<>"",Sources!B39,"") -> Commercial | C19: =IF(Sources!C39<>"",Sources!C39,"") -> Commercial
B20: =IF(Sources!B40<>"",Sources!B40,"") -> Commercial | C20: =IF(Sources!C40<>"",Sources!C40,"") -> 
B21: =IF(Sources!B41<>"",Sources!B41,"") -> Commercial | C21: =IF(Sources!C41<>"",Sources!C41,"") -> 
B22: =IF(Sources!B42<>"",Sources!B42,"") -> Commercial | C22: =IF(Sources!C42<>"",Sources!C42,"") -> 
B23: =IF(Sources!B43<>"",Sources!B43,"") -> Commercial | C23: =IF(Sources!C43<>"",Sources!C43,"") -> 
B24: =IF(Sources!B44<>"",Sources!B44,"") -> Roadway | C24: =IF(Sources!C44<>"",Sources!C44,"") -> Roadway
B25: =IF(Sources!B45<>"",Sources!B45,"") -> Roadway | C25: =IF(Sources!C45<>"",Sources!C45,"") -> 
B26: =IF(Sources!B46<>"",Sources!B46,"") -> Roadway | C26: =IF(Sources!C46<>"",Sources!C46,"") -> 
B27: =IF(Sources!B47<>"",Sources!B47,"") -> Roadway | C27: =IF(Sources!C47<>"",Sources!C47,"") -> 
B28: =IF(Sources!B48<>"",Sources!B48,"") -> Roadway | C28: =IF(Sources!C48<>"",Sources!C48,"") -> 
B29: =IF(Sources!B49<>"",Sources!B49,"") -> Industrial | C29: =IF(Sources!C49<>"",Sources!C49,"") -> Industrial
B30: =IF(Sources!B50<>"",Sources!B50,"") -> Industrial | C30: =IF(Sources!C50<>"",Sources!C50,"") -> 
B31: =IF(Sources!B51<>"",Sources!B51,"") -> Industrial | C31: =IF(Sources!C51<>"",Sources!C51,"") -> 
B32: =IF(Sources!B52<>"",Sources!B52,"") -> Industrial | C32: =IF(Sources!C52<>"",Sources!C52,"") -> 
B33: =IF(Sources!B53<>"",Sources!B53,"") -> Industrial | C33: =IF(Sources!C53<>"",Sources!C53,"") -> 
B34: =IF(Sources!B54<>"",Sources!B54,"") -> Forest | C34: =IF(Sources!C54<>"",Sources!C54,"") -> Forest
B35: =IF(Sources!B55<>"",Sources!B55,"") -> Forest | C35: =IF(Sources!C55<>"",Sources!C55,"") -> 
B36: =IF(Sources!B56<>"",Sources!B56,"") -> Forest | C36: =IF(Sources!C56<>"",Sources!C56,"") -> 
B37: =IF(Sources!B57<>"",Sources!B57,"") -> Forest | C37: =IF(Sources!C57<>"",Sources!C57,"") -> 
B38: =IF(Sources!B58<>"",Sources!B58,"") -> Forest | C38: =IF(Sources!C58<>"",Sources!C58,"") -> 
B39: =IF(Sources!B59<>"",Sources!B59,"") -> Rural | C39: =IF(Sources!C59<>"",Sources!C59,"") -> Rural
B40: =IF(Sources!B60<>"",Sources!B60,"") -> Rural | C40: =IF(Sources!C60<>"",Sources!C60,"") -> 
B41: =IF(Sources!B61<>"",Sources!B61,"") -> Rural | C41: =IF(Sources!C61<>"",Sources!C61,"") -> 
B42: =IF(Sources!B62<>"",Sources!B62,"") -> Rural | C42: =IF(Sources!C62<>"",Sources!C62,"") -> 
B43: =IF(Sources!B63<>"",Sources!B63,"") -> Rural | C43: =IF(Sources!C63<>"",Sources!C63,"") -> 
B44: =IF(Sources!B64<>"",Sources!B64,"") -> Rural | C44: =IF(Sources!C64<>"",Sources!C64,"") -> 
B45: =IF(Sources!B65<>"",Sources!B65,"") -> Rural | C45: =IF(Sources!C65<>"",Sources!C65,"") -> 
B46: =IF(Sources!B66<>"",Sources!B66,"") -> Rural | C46: =IF(Sources!C66<>"",Sources!C66,"") -> 
B47: =IF(Sources!B67<>"",Sources!B67,"") -> Rural | C47: =IF(Sources!C67<>"",Sources!C67,"") -> 
B48: =IF(Sources!B68<>"",Sources!B68,"") -> Rural | C48: =IF(Sources!C68<>"",Sources!C68,"") -> 
B49: =IF(Sources!B69<>"",Sources!B69,"") -> Open Water | C49: =IF(Sources!C69<>"",Sources!C69,"") -> Open Water
B50: =IF(Sources!B70<>"",Sources!B70,"") -> Active Construction | C50: =IF(Sources!C70<>"",Sources!C70,"") -> Active Construction
B54: Stormwater Controls on New Development and Construction
B55: Program Discounts | C55: Fraction of New Development Regulated | D55: Capture Discount | E55: Design Discount | F55: Maintenance Discount
B56: Existing | C56: ='Existing Practices'!C60 -> 0 | D56: ='Existing Practices'!C74 -> 0 | E56: ='Existing Practices'!C75 -> 0 | F56: ='Existing Practices'!C76 -> 0
B57: User Defined
B59: Program Option | C59: Option 3: Show no increase on each parcel.
C61: Option 1: Meet a specific Removal Percentage Target | E61: Yes
C62: Option 2: Meet a Load Target | E62: No
C63: Option 3: Show no increase on each parcel.
C64: TN (lb/acre/year) | D64: TP (lb/acre/year) | E64: TSS (lb/acre/year) | F64: FC(billion/acre/year) | G64: Runoff Volume(in/year)
B65: Target % Removal
B66: Target Load
B69: Is Channel Protection Required? | C69: Yes
B71: =C61 -> Option 1: Meet a specific Removal Percentage Target | C71: =IF(C57<>"",C$65*SUM(Calculations!O$405:O$429)*$C$57*$D$57*$E$57*$F$57,C$65*SUM(Calculations!O$405:O$429)*$C56*$D$56*$E$56*$F$56) -> 0 | D71: =IF(D57<>"",D$65*SUM(Calculations!P$405:P$429)*$C$57*$D$57*$E$57*$F$57,D$65*SUM(Calculations!P$405:P$429)*$C56*$D$56*$E$56*$F$56) -> 0 | E71: =IF(E57<>"",E$65*SUM(Calculations!Q$405:Q$429)*$C$57*$D$57*$E$57*$F$57,E$65*SUM(Calculations!Q$405:Q$429)*$C56*$D$56*$E$56*$F$56) -> 0 | F71: =IF(F57<>"",F$65*SUM(Calculations!R$405:R$429)*$C$57*$D$57*$E$57*$F$57,F$65*SUM(Calculations!R$405:R$429)*$C56*$D$56*$E$56*$F$56) -> 0 | G71: =IF(G57<>"",G$65*SUM(Calculations!S$405:S$429)*$C$57*$D$57*$E$57*$F$57,G$65*SUM(Calculations!S$405:S$429)*$C56*$D$56*$E$56*$F$56) -> 0
B72: =C62 -> Option 2: Meet a Load Target | C72: =(SUM(Calculations!O$405:O$429)/MAX(SUM($D$9:$D$33),0.001)-C66)*IF(C57<>"",$C$57*$D$57*$E$57*$F$57,$C$56*$D$56*$E$56*$F$56)*SUM($D$9:$D$33) -> 0 | D72: =(SUM(Calculations!P$405:P$429)/MAX(SUM($D$9:$D$33),0.001)-D66)*IF(D57<>"",$C$57*$D$57*$E$57*$F$57,$C$56*$D$56*$E$56*$F$56)*SUM($D$9:$D$33) -> 0 | E72: =(SUM(Calculations!Q$405:Q$429)/MAX(SUM($D$9:$D$33),0.001)-E66)*IF(E57<>"",$C$57*$D$57*$E$57*$F$57,$C$56*$D$56*$E$56*$F$56)*SUM($D$9:$D$33) -> 0 | F72: =(SUM(Calculations!R$405:R$429)/MAX(SUM($D$9:$D$33),0.001)-F66)*IF(F57<>"",$C$57*$D$57*$E$57*$F$57,$C$56*$D$56*$E$56*$F$56)*SUM($D$9:$D$33) -> 0 | G72: =(SUM(Calculations!S$405:S$429)/MAX(SUM($D$9:$D$33),0.001)-G66)*IF(G57<>"",$C$57*$D$57*$E$57*$F$57,$C$56*$D$56*$E$56*$F$56)*SUM($D$9:$D$33) -> 0
B73: =C63 -> Option 3: Show no increase on each parcel. | C73: =(SUM(Calculations!O$405:O$444))*IF($C$57*$D$57*$E$57*$F$57>0,$C$57*$D$57*$E$57*$F$57,$C$56*$D$56*$E$56*$F$56) -> 0 | D73: =(SUM(Calculations!P$405:P$444))*IF($C$57*$D$57*$E$57*$F$57>0,$C$57*$D$57*$E$57*$F$57,$C$56*$D$56*$E$56*$F$56) -> 0 | E73: =(SUM(Calculations!Q$405:Q$444))*IF($C$57*$D$57*$E$57*$F$57>0,$C$57*$D$57*$E$57*$F$57,$C$56*$D$56*$E$56*$F$56) -> 0 | F73: =(SUM(Calculations!R$405:R$444))*IF($C$57*$D$57*$E$57*$F$57>0,$C$57*$D$57*$E$57*$F$57,$C$56*$D$56*$E$56*$F$56) -> 0 | G73: =(SUM(Calculations!S$405:S$444))*IF($C$57*$D$57*$E$57*$F$57>0,$C$57*$D$57*$E$57*$F$57,$C$56*$D$56*$E$56*$F$56) -> 0
C75: TN | D75: TP | E75: TSS | F75: FC | G75: Runoff Volume
B76: Load Reduction (lb/year) | C76: =VLOOKUP($C$59,$B$71:$G$73,2,FALSE) -> 0 | D76: =VLOOKUP($C$59,$B$71:$G$73,3,FALSE) -> 0 | E76: =VLOOKUP($C$59,$B$71:$G$73,4,FALSE) -> 0 | F76: =VLOOKUP($C$59,$B$71:$G$73,5,FALSE) -> 0 | G76: =VLOOKUP($C$59,$B$71:$G$73,6,FALSE) -> 0
B77: Load to GW | C77: =$G76/MAX(SUM(Calculations!$S405:$S429),0.001)*C76*(1-Calculations!C60) -> 0 | D77: =$G76/MAX(SUM(Calculations!$S405:$S429),0.001)*D76*(1-Calculations!D60) -> 0 | E77: =$G76/MAX(SUM(Calculations!$S405:$S429),0.001)*E76*(1-Calculations!E60) -> 0 | F77: =$G76/MAX(SUM(Calculations!$S405:$S429),0.001)*F76*(1-Calculations!F60) -> 0 | G77: 0
B79: Data to Quantify Wastewater Loads
B80: OSDSs
B81: New OSDS Customers (households) | C81: OSDS Failure Rate | D81: User Defined Failure Rate (to Override Calculated) | E81: OSDS Efficiency
C82: =IF(D82<>"",D82,Sources!C107) -> 0.05 | E82: Highly Improved (Twice as Efficient)
E83: Same As Current | F83: 1
E84: Somewhat Improved (50% more Efficient) | F84: 0.75
E85: Highly Improved (Twice as Efficient) | F85: 0.5
D87: TN | E87: TP | F87: TSS | G87: FC
B88: Surface | D88: =Results!C203*'New Development'!$B$82*'New Development'!$C$82/MAX(Sources!$C$107*Sources!$C$105*Sources!$C$96,0.001) -> 0 | E88: =Results!D203*'New Development'!$B$82*'New Development'!$C$82/MAX(Sources!$C$107*Sources!$C$105*Sources!$C$96,0.001) -> 0 | F88: =Results!E203*'New Development'!$B$82*'New Development'!$C$82/MAX(Sources!$C$107*Sources!$C$105*Sources!$C$96,0.001) -> 0 | G88: =Results!F203*'New Development'!$B$82*'New Development'!$C$82/MAX(Sources!$C$107*Sources!$C$105*Sources!$C$96,0.001) -> 0
B89: Subsurface | D89: =Results!C210*'New Development'!$B$82*(1-$C$82)*VLOOKUP($E$82,$E$83:$F$85,2,FALSE)/MAX(Sources!$C$105*Sources!$C$96*(1-Sources!$C$107),0.001) -> 0 | E89: =Results!D210*'New Development'!$B$82*(1-$C$82)*VLOOKUP($E$82,$E$83:$F$85,2,FALSE)/MAX(Sources!$C$105*Sources!$C$96*(1-Sources!$C$107),0.001) -> 0 | F89: =Results!E210*'New Development'!$B$82*(1-$C$82)*VLOOKUP($E$82,$E$83:$F$85,2,FALSE)/MAX(Sources!$C$105*Sources!$C$96*(1-Sources!$C$107),0.001) -> 0 | G89: =Results!F210*'New Development'!$B$82*(1-$C$82)*VLOOKUP($E$82,$E$83:$F$85,2,FALSE)/MAX(Sources!$C$105*Sources!$C$96*(1-Sources!$C$107),0.001) -> 0
B91: SSOs
B92: Miles of Sewer Constructed | C92: SSOs/Mile | D92: User Defined SSOs/Mile (To Override Calculated)
C93: =IF(D93<>"",D93,Defaults!C122) -> 140
C94: TN | D94: TP | E94: TSS | F94: FC
C95: =$C$93*$B$93/MAX(Defaults!$C$122*Sources!$C$124,0.001)*Results!C193 -> 0 | D95: =$C$93*$B$93/MAX(Defaults!$C$122*Sources!$C$124,0.001)*Results!D193 -> 0 | E95: =$C$93*$B$93/MAX(Defaults!$C$122*Sources!$C$124,0.001)*Results!E193 -> 0 | F95: =$C$93*$B$93/MAX(Defaults!$C$122*Sources!$C$124,0.001)*Results!F193 -> 0
B98: CSOs
B99: % of Development on Combined Sewer
C100: =$C$99*SUMPRODUCT($D$9:$D$33,Calculations!$D$405:$D$429)/MAX(Sources!$C$128*Sources!$C$129,0.001)*Results!C194 -> 0 | D100: =$C$99*SUMPRODUCT($D$9:$D$33,Calculations!$D$405:$D$429)/MAX(Sources!$C$128*Sources!$C$129,0.001)*Results!D194 -> 0 | E100: =$C$99*SUMPRODUCT($D$9:$D$33,Calculations!$D$405:$D$429)/MAX(Sources!$C$128*Sources!$C$129,0.001)*Results!E194 -> 0 | F100: =$C$99*SUMPRODUCT($D$9:$D$33,Calculations!$D$405:$D$429)/MAX(Sources!$C$128*Sources!$C$129,0.001)*Results!F194 -> 0
B103: Illicit Connections
B104: % of new connections cross connected
B105: TN | C105: TP | D105: TSS | E105: Bacteria
B106: =$C104*$C109*Results!C200/MAX(Sources!$C$134,0.001) -> 0 | C106: =$C104*$C109*Results!D200/MAX(Sources!$C$134,0.001) -> 0 | D106: =$C104*$C109*Results!E200/MAX(Sources!$C$134,0.001) -> 0 | E106: =$C104*$C109*Results!F200/MAX(Sources!$C$134,0.001) -> 0
B108: WWTP Dischargers: Only Report Discharges to WWTPs within the Watershed
B109: New Wastewater Customers (Households)
C111: N | D111: N (User Defined to override) | E111: P | F111: P (User Defined to override) | G111: TSS | H111: TSS (User Defined to override) | I111: FC Log Reduction | J111: FC (User Defined to override)
B112: Plant Efficiency | C112: =IF(D112<>"",D112,Sources!C93) -> 0 | E112: =IF(F112<>"",F112,Sources!D93) -> 0 | G112: =IF(H112<>"",H112,Sources!E93) -> 0 | I112: =IF(J112<>"",J112,Sources!F93) -> 0
B113: Load | C113: =IF(D113<>"",D113,$C$109*Sources!$C$97*Sources!$C$98*Defaults!$C$93*3.04/1000*(1-C112)) -> 0 | E113: =IF(F113<>"",F113,$C$109*Sources!$C$97*Sources!$C$98*Defaults!$D$93*3.04/1000*(1-E112)) -> 0 | G113: =IF(H113<>"",H113,$C$109*Sources!$C$97*Sources!$C$98*Defaults!$E$93*3.04/1000*(1-G112)) -> 0 | I113: =IF(J113<>"",J113,$C$109*Sources!$C$97*Sources!$C$98*Defaults!$F$93*1.38*10^-5*10^-I112) -> 0
B118: Active Construction
C119: Active Construction (acres) | D119: Program Efficiency | E119: User Defined Program Efficiency | F119: Fraction Regulated | G119: User Defined Fraction Regulated | H119: Maintenance/Design | I119: User Defined Maintenance/Design
C120: =D50 -> 0 | D120: =IF(E120<>"",E120,Defaults!C221) -> 0.7 | F120: =IF(G120<>"",G120,IF('Future Practices'!C54<>"",'Future Practices'!C54,'Future Practices'!D54)) -> 0 | H120: =IF(G120<>"",G120,IF('Future Practices'!C55<>"",'Future Practices'!C55,'Future Practices'!D55)) -> 0

Sheet Results
E2: This sheet provides a summary of results of the WTM model runs. The first table provides an overview of all loads (existing, with future practices and with new development). Use the check boxes to select more detailed descriptions of pollutant loads or practice benefits. Note that the cells in this sheet are locked. The "Results-Unlocked" tab has the same information, but unlocked so that the user can copy data from the model results.
B10: This summary table summarizes pollutant loads and runoff volume in the Existing Condition, with Future Practices in place, and with New Development. The purple cells in this table represent final loads (or % change from Existing). The grey cells are interim calculations, such as the load reduction from practices (summarized). Surface water loads represents all loads during stormflow or during non-storm events that are delivered to surface waters, and Groundwater Loads include loads directly to groundwater from urban lawns, On-Site Sewage Disposal Systems, and BMPs that provide infiltration. While some of the loads to groundwater may ultimately be delivered to surface waters, the WTM does not make this calculation. To calculate loads to surface waters from groundwater, multiply the groundwater loads by a delivery ratio (known from local conditions), and add to surface water loads.
B11: Summary Table
C12: TN (lb/year) | D12: TP (lb/year) | E12: TSS (lb/year) | F12: Fecal Coliform (billion/year) | G12: Runoff Volume (acre-feet/year)
B13: Surface Water Loads
B14: Uncontrolled Load from Primary Sources | C14: =C83 -> 0 | D14: =D83 -> 0 | E14: 0 | F14: 0 | G14: 0
B15: Uncontrolled Load from Secondary Sources | C15: =C97 -> 0 | D15: =D97 -> 0 | E15: 0 | F15: 0 | G15: 0
B16: Load Reduction from Existing Practices | C16: =SUM(C120) -> -0.006024395161 | D16: =SUM(D120) -> -0.002078669951 | E16: 0 | F16: 0 | G16: 0
B17: Existing Surface Water Load | C17: =SUM(C14:C15)-C16 -> 0.006024395161 | D17: =SUM(D14:D15)-D16 -> 0.002078669951 | E17: 0 | F17: 0 | G17: 0
B18: Existing Load - Storm | C18: =C84+C98-C121 -> 0.006024395161 | D18: =D84+D98-D121 -> 0.002078669951 | E18: 0 | F18: 0 | G18: 0
B19: Existing Load - Nonstorm | C19: =C17-C18 -> 0 | D19: =D17-D18 -> 0 | E19: 0 | F19: 0
B20: Load Reduction from Future Practices | C20: =C177 -> 0 | D20: =D177 -> 0 | E20: 0 | F20: 0 | G20: 0
B21: Surface Load with Future Practices in Place | C21: =C17-C20 -> 0.006024395161 | D21: =D17-D20 -> 0.002078669951 | E21: =E17-E20 -> 0 | F21: =F17-F20 -> 0 | G21: =G17-G20 -> 0
B22: Surface Load Change From Existing (%) | C22: =(C21-C$17)/MAX(C$17,0.001) -> 0 | D22: =(D21-D17)/MAX(D17,0.001) -> 0 | E22: =(E21-E17)/MAX(E17,0.001) -> 0 | F22: =(F21-F17)/MAX(F17,0.001) -> 0 | G22: =(G21-G17)/MAX(G17,0.001) -> 0
B23: Surface Load with Future Practices - Storm | C23: =C18-C178 -> 0.006024395161 | D23: =D18-D178 -> 0.002078669951 | E23: =E18-E178 -> 0 | F23: =F18-F178 -> 0 | G23: =G18-G178 -> 0
B24: Surface Load with Future Practices - Nonstorm | C24: =C21-C23 -> 0 | D24: =D21-D23 -> 0 | E24: 0 | F24: 0
B25: Load from New Development | C25: =C26-C21 -> 0 | D25: =D26-D21 -> 0 | E25: =E26-E21 -> 0 | F25: =F26-F21 -> 0 | G25: =G26-G21 -> 0
B26: Total Surface Load Including New Development | C26: =C235 -> 0.006024395161 | D26: =D235 -> 0.002078669951 | E26: 0 | F26: 0 | G26: 0
B27: Surface Load Change From Existing (%) | C27: =(C26-C$17)/MAX(C$17,0.001) -> 0 | D27: =(D26-D$17)/MAX(D$17,0.001) -> 0 | E27: =(E26-E$17)/MAX(E$17,0.001) -> 0 | F27: =(F26-F$17)/MAX(F$17,0.001) -> 0 | G27: =(G26-G$17)/MAX(G$17,0.001) -> 0
B28: Surface Load Including New Development - Storm | C28: =C236 -> 0.006024395161 | D28: =D236 -> 0.002078669951 | E28: 0 | F28: 0 | G28: 0
B29: Surface Load Including New Development - Non-Storm | C29: =C237 -> 0 | D29: 0 | E29: 0 | F29: 0 | G29: 0
B30: Groundwater Loads with Existing Practices in Place | C30: =C153 -> 0.06128165323 | D30: =D153 -> 0.00433137931 | E30: 0 | F30: 0 | G30: 0
B31: Groundwater Loads with Future Practices | C31: =C211 -> 0.06128165323 | D31: =D211 -> 0.00433137931 | E31: 0 | F31: 0 | G31: 0
B32: Groundwater Loads Including New Development | C32: =C241 -> 0.06128165323 | D32: =D241 -> 0.00433137931 | E32: 0 | F32: 0 | G32: 0
B36: This table summarizes the pollutant loads and runoff volumes from Uncontrolled pollutant sources, including both the Primary Sources and Secondary Sources included in the "Sources" tab. The purple cells summarize loads from each broad category of sources. Note that, while the summary table presents only the Total Surface Water loads, this table also breaks out the difference between loads during storm events (i.e., the Storm Load) and the loads occurring during dry weather conditions (i.e., the Non-Stormwater Load). THIS LOAD DOES NOT INCLUDE TURF MANAGEMENT. Note that the load from turf managment typically appears as a "negative reduction", and will likely increase teh laods beyond those reported as Primary Sources.
B37: Source Loads (Without Practices)
B38: Primary Sources
C39: TN (lb/year) | D39: TP (lb/year) | E39: TSS (lb/year) | F39: Fecal Coliform (billion/year) | G39: Runoff Volume (acre-feet/year)
B41: =IF(Defaults!C25<>"",Defaults!B25 & " : " &Defaults!C25,"") -> Residential : LDR (<1du/acre) | C41: =Calculations!D5 -> 0 | D41: =Calculations!E5 -> 0 | E41: =Calculations!F5 -> 0 | F41: =Calculations!G5 -> 0 | G41: =Calculations!I5 -> 0
B42: =IF(Defaults!C26<>"",Defaults!B26 & " : " &Defaults!C26,"") -> Residential : MDR (1-4 du/acre) | C42: =Calculations!D6 -> 0 | D42: =Calculations!E6 -> 0 | E42: =Calculations!F6 -> 0 | F42: =Calculations!G6 -> 0 | G42: =Calculations!I6 -> 0
B43: =IF(Defaults!C27<>"",Defaults!B27 & " : " &Defaults!C27,"") -> Residential : HDR (>4 du/acre) | C43: =Calculations!D7 -> 0 | D43: =Calculations!E7 -> 0 | E43: =Calculations!F7 -> 0 | F43: =Calculations!G7 -> 0 | G43: =Calculations!I7 -> 0
B44: =IF(Defaults!C28<>"",Defaults!B28 & " : " &Defaults!C28,"") -> Residential : Multifamily | C44: =Calculations!D8 -> 0 | D44: =Calculations!E8 -> 0 | E44: =Calculations!F8 -> 0 | F44: =Calculations!G8 -> 0 | G44: =Calculations!I8 -> 0
B45: =IF(Defaults!C29<>"",Defaults!B29 & " : " &Defaults!C29,"") ->  | C45: =Calculations!D9 -> 0 | D45: =Calculations!E9 -> 0 | E45: =Calculations!F9 -> 0 | F45: =Calculations!G9 -> 0 | G45: =Calculations!I9 -> 0
B46: =IF(Defaults!C30<>"",Defaults!B30 & " : " &Defaults!C30,"") ->  | C46: =Calculations!D10 -> 0 | D46: =Calculations!E10 -> 0 | E46: =Calculations!F10 -> 0 | F46: =Calculations!G10 -> 0 | G46: =Calculations!I10 -> 0
B47: =IF(Defaults!C31<>"",Defaults!B31 & " : " &Defaults!C31,"") ->  | C47: =Calculations!D11 -> 0 | D47: =Calculations!E11 -> 0 | E47: =Calculations!F11 -> 0 | F47: =Calculations!G11 -> 0 | G47: =Calculations!I11 -> 0
B48: =IF(Defaults!C32<>"",Defaults!B32 & " : " &Defaults!C32,"") ->  | C48: =Calculations!D12 -> 0 | D48: =Calculations!E12 -> 0 | E48: =Calculations!F12 -> 0 | F48: =Calculations!G12 -> 0 | G48: =Calculations!I12 -> 0
B49: =IF(Defaults!C33<>"",Defaults!B33 & " : " &Defaults!C33,"") ->  | C49: =Calculations!D13 -> 0 | D49: =Calculations!E13 -> 0 | E49: =Calculations!F13 -> 0 | F49: =Calculations!G13 -> 0 | G49: =Calculations!I13 -> 0
B50: =IF(Defaults!C34<>"",Defaults!B34 & " : " &Defaults!C34,"") ->  | C50: =Calculations!D14 -> 0 | D50: =Calculations!E14 -> 0 | E50: =Calculations!F14 -> 0 | F50: =Calculations!G14 -> 0 | G50: =Calculations!I14 -> 0
B51: =IF(Defaults!C35<>"",Defaults!B35 & " : " &Defaults!C35,"") -> Commercial : Commercial | C51: =Calculations!D15 -> 0 | D51: =Calculations!E15 -> 0 | E51: =Calculations!F15 -> 0 | F51: =Calculations!G15 -> 0 | G51: =Calculations!I15 -> 0
B52: =IF(Defaults!C36<>"",Defaults!B36 & " : " &Defaults!C36,"") ->  | C52: =Calculations!D16 -> 0 | D52: =Calculations!E16 -> 0 | E52: =Calculations!F16 -> 0 | F52: =Calculations!G16 -> 0 | G52: =Calculations!I16 -> 0
B53: =IF(Defaults!C37<>"",Defaults!B37 & " : " &Defaults!C37,"") ->  | C53: =Calculations!D17 -> 0 | D53: =Calculations!E17 -> 0 | E53: =Calculations!F17 -> 0 | F53: =Calculations!G17 -> 0 | G53: =Calculations!I17 -> 0
B54: =IF(Defaults!C38<>"",Defaults!B38 & " : " &Defaults!C38,"") ->  | C54: =Calculations!D18 -> 0 | D54: =Calculations!E18 -> 0 | E54: =Calculations!F18 -> 0 | F54: =Calculations!G18 -> 0 | G54: =Calculations!I18 -> 0
B55: =IF(Defaults!C39<>"",Defaults!B39 & " : " &Defaults!C39,"") ->  | C55: =Calculations!D19 -> 0 | D55: =Calculations!E19 -> 0 | E55: =Calculations!F19 -> 0 | F55: =Calculations!G19 -> 0 | G55: =Calculations!I19 -> 0
B56: =IF(Defaults!C40<>"",Defaults!B40 & " : " &Defaults!C40,"") -> Roadway : Roadway | C56: =Calculations!D20 -> 0 | D56: =Calculations!E20 -> 0 | E56: =Calculations!F20 -> 0 | F56: =Calculations!G20 -> 0 | G56: =Calculations!I20 -> 0
B57: =IF(Defaults!C41<>"",Defaults!B41 & " : " &Defaults!C41,"") ->  | C57: =Calculations!D21 -> 0 | D57: =Calculations!E21 -> 0 | E57: =Calculations!F21 -> 0 | F57: =Calculations!G21 -> 0 | G57: =Calculations!I21 -> 0
B58: =IF(Defaults!C42<>"",Defaults!B42 & " : " &Defaults!C42,"") ->  | C58: =Calculations!D22 -> 0 | D58: =Calculations!E22 -> 0 | E58: =Calculations!F22 -> 0 | F58: =Calculations!G22 -> 0 | G58: =Calculations!I22 -> 0
B59: =IF(Defaults!C43<>"",Defaults!B43 & " : " &Defaults!C43,"") ->  | C59: =Calculations!D23 -> 0 | D59: =Calculations!E23 -> 0 | E59: =Calculations!F23 -> 0 | F59: =Calculations!G23 -> 0 | G59: =Calculations!I23 -> 0
B60: =IF(Defaults!C44<>"",Defaults!B44 & " : " &Defaults!C44,"") ->  | C60: =Calculations!D24 -> 0 | D60: =Calculations!E24 -> 0 | E60: =Calculations!F24 -> 0 | F60: =Calculations!G24 -> 0 | G60: =Calculations!I24 -> 0
B61: =IF(Defaults!C45<>"",Defaults!B45 & " : " &Defaults!C45,"") -> Industrial : Industrial | C61: =Calculations!D25 -> 0 | D61: =Calculations!E25 -> 0 | E61: =Calculations!F25 -> 0 | F61: =Calculations!G25 -> 0 | G61: =Calculations!I25 -> 0
B62: =IF(Defaults!C46<>"",Defaults!B46 & " : " &Defaults!C46,"") ->  | C62: =Calculations!D26 -> 0 | D62: =Calculations!E26 -> 0 | E62: =Calculations!F26 -> 0 | F62: =Calculations!G26 -> 0 | G62: =Calculations!I26 -> 0
B63: =IF(Defaults!C47<>"",Defaults!B47 & " : " &Defaults!C47,"") ->  | C63: =Calculations!D27 -> 0 | D63: =Calculations!E27 -> 0 | E63: =Calculations!F27 -> 0 | F63: =Calculations!G27 -> 0 | G63: =Calculations!I27 -> 0
B64: =IF(Defaults!C48<>"",Defaults!B48 & " : " &Defaults!C48,"") ->  | C64: =Calculations!D28 -> 0 | D64: =Calculations!E28 -> 0 | E64: =Calculations!F28 -> 0 | F64: =Calculations!G28 -> 0 | G64: =Calculations!I28 -> 0
B65: =IF(Defaults!C49<>"",Defaults!B49 & " : " &Defaults!C49,"") ->  | C65: =Calculations!D29 -> 0 | D65: =Calculations!E29 -> 0 | E65: =Calculations!F29 -> 0 | F65: =Calculations!G29 -> 0 | G65: =Calculations!I29 -> 0
B66: =IF(Defaults!C50<>"",Defaults!B50 & " : " &Defaults!C50,"") -> Forest : Forest | C66: =Calculations!D30 -> 0 | D66: =Calculations!E30 -> 0 | E66: =Calculations!F30 -> 0 | F66: =Calculations!G30 -> 0 | G66: =Calculations!I30 -> 0
B67: =IF(Defaults!C51<>"",Defaults!B51 & " : " &Defaults!C51,"") ->  | C67: =Calculations!D31 -> 0 | D67: =Calculations!E31 -> 0 | E67: =Calculations!F31 -> 0 | F67: =Calculations!G31 -> 0 | G67: =Calculations!I31 -> 0
B68: =IF(Defaults!C52<>"",Defaults!B52 & " : " &Defaults!C52,"") ->  | C68: =Calculations!D32 -> 0 | D68: =Calculations!E32 -> 0 | E68: =Calculations!F32 -> 0 | F68: =Calculations!G32 -> 0 | G68: =Calculations!I32 -> 0
B69: =IF(Defaults!C53<>"",Defaults!B53 & " : " &Defaults!C53,"") ->  | C69: =Calculations!D33 -> 0 | D69: =Calculations!E33 -> 0 | E69: =Calculations!F33 -> 0 | F69: =Calculations!G33 -> 0 | G69: =Calculations!I33 -> 0
B70: =IF(Defaults!C54<>"",Defaults!B54 & " : " &Defaults!C54,"") ->  | C70: =Calculations!D34 -> 0 | D70: =Calculations!E34 -> 0 | E70: =Calculations!F34 -> 0 | F70: =Calculations!G34 -> 0 | G70: =Calculations!I34 -> 0
B71: =IF(Defaults!C55<>"",Defaults!B55 & " : " &Defaults!C55,"") -> Rural : Rural | C71: =Calculations!D35 -> 0 | D71: =Calculations!E35 -> 0 | E71: =Calculations!F35 -> 0 | F71: =Calculations!G35 -> 0 | G71: =Calculations!I35 -> 0
B72: =IF(Defaults!C56<>"",Defaults!B56 & " : " &Defaults!C56,"") ->  | C72: =Calculations!D36 -> 0 | D72: =Calculations!E36 -> 0 | E72: =Calculations!F36 -> 0 | F72: =Calculations!G36 -> 0 | G72: =Calculations!I36 -> 0
B73: =IF(Defaults!C57<>"",Defaults!B57 & " : " &Defaults!C57,"") ->  | C73: =Calculations!D37 -> 0 | D73: =Calculations!E37 -> 0 | E73: =Calculations!F37 -> 0 | F73: =Calculations!G37 -> 0 | G73: =Calculations!I37 -> 0
B74: =IF(Defaults!C58<>"",Defaults!B58 & " : " &Defaults!C58,"") ->  | C74: =Calculations!D38 -> 0 | D74: =Calculations!E38 -> 0 | E74: =Calculations!F38 -> 0 | F74: =Calculations!G38 -> 0 | G74: =Calculations!I38 -> 0
B75: =IF(Defaults!C59<>"",Defaults!B59 & " : " &Defaults!C59,"") ->  | C75: =Calculations!D39 -> 0 | D75: =Calculations!E39 -> 0 | E75: =Calculations!F39 -> 0 | F75: =Calculations!G39 -> 0 | G75: =Calculations!I39 -> 0
B76: =IF(Defaults!C60<>"",Defaults!B60 & " : " &Defaults!C60,"") ->  | C76: =Calculations!D40 -> 0 | D76: =Calculations!E40 -> 0 | E76: =Calculations!F40 -> 0 | F76: =Calculations!G40 -> 0 | G76: =Calculations!I40 -> 0
B77: =IF(Defaults!C61<>"",Defaults!B61 & " : " &Defaults!C61,"") ->  | C77: =Calculations!D41 -> 0 | D77: =Calculations!E41 -> 0 | E77: =Calculations!F41 -> 0 | F77: =Calculations!G41 -> 0 | G77: =Calculations!I41 -> 0
B78: =IF(Defaults!C62<>"",Defaults!B62 & " : " &Defaults!C62,"") ->  | C78: =Calculations!D42 -> 0 | D78: =Calculations!E42 -> 0 | E78: =Calculations!F42 -> 0 | F78: =Calculations!G42 -> 0 | G78: =Calculations!I42 -> 0
B79: =IF(Defaults!C63<>"",Defaults!B63 & " : " &Defaults!C63,"") ->  | C79: =Calculations!D43 -> 0 | D79: =Calculations!E43 -> 0 | E79: =Calculations!F43 -> 0 | F79: =Calculations!G43 -> 0 | G79: =Calculations!I43 -> 0
B80: =IF(Defaults!C64<>"",Defaults!B64 & " : " &Defaults!C64,"") ->  | C80: =Calculations!D44 -> 0 | D80: =Calculations!E44 -> 0 | E80: =Calculations!F44 -> 0 | F80: =Calculations!G44 -> 0 | G80: =Calculations!I44 -> 0
B81: =IF(Defaults!C65<>"",Defaults!C65,"") -> Open Water | C81: =Calculations!D45 -> 0 | D81: =Calculations!E45 -> 0 | E81: =Calculations!F45 -> 0 | F81: =Calculations!G45 -> 0 | G81: =Calculations!I45 -> 0
B82: =IF(Defaults!C66<>"",Defaults!C66,"") -> Active Construction | C82: =Calculations!D46 -> 0 | D82: =Calculations!E46 -> 0 | E82: =Calculations!F46 -> 0 | F82: =Calculations!G46 -> 0 | G82: =Calculations!I46 -> 0
B83: Total Surface Water Primary Source Load | C83: =Calculations!D47 -> 0 | D83: =Calculations!E47 -> 0 | E83: =Calculations!F47 -> 0 | F83: =Calculations!G47 -> 0 | G83: =Calculations!I47 -> 0
B84: Primary Source Storm Load | C84: =Calculations!D48 -> 0 | D84: =Calculations!E48 -> 0 | E84: =Calculations!F48 -> 0 | F84: =Calculations!G48 -> 0 | G84: =Calculations!I48 -> 0
B85: Primary Source Non-Stormwater Load | C85: =Calculations!D49 -> 0 | D85: =Calculations!E49 -> 0 | E85: =Calculations!F49 -> 0 | F85: =Calculations!G49 -> 0 | G85: =Calculations!I49 -> 0
B86: Secondary Sources
B87: Secondary Load to Surface Waters
B88: OSDSs - Surface | C88: =Calculations!C66 -> 0 | D88: =Calculations!D66 -> 0 | E88: =Calculations!E66 -> 0 | F88: =Calculations!F66 -> 0 | G88: 0
B89: SSOs | C89: =Sources!$C$124*Defaults!$C$122*Defaults!$C$123*Defaults!$C$93*3.78/454000/1000 -> 0 | D89: =Sources!$C$124*Defaults!$C$122*Defaults!$C$123*Defaults!$D$93*3.78/454000/1000 -> 0 | E89: =Sources!$C$124*Defaults!$C$122*Defaults!$C$123*Defaults!$E$93*3.78/454000/1000 -> 0 | F89: =Sources!$C$124*Defaults!$C$122*Defaults!$C$123*Defaults!$F$93*37.8/1000000000000 -> 0 | G89: 0
B90: CSOs | C90: =0.226*(0.05+0.9*Sources!$C129)*(Sources!$C127-Defaults!$C126)*Sources!$C130*Defaults!C128*Sources!$C128 -> 0 | D90: =0.226*(0.05+0.9*Sources!$C129)*(Sources!$C127-Defaults!$C126)*Sources!$C130*Defaults!C129*Sources!$C128 -> 0 | E90: =0.226*(0.05+0.9*Sources!$C129)*(Sources!$C127-Defaults!$C126)*Sources!$C130*Defaults!C130*Sources!$C128 -> 0 | F90: =0.00103*(0.05+0.9*Sources!$C129)*(Sources!$C127-Defaults!$C126)*Sources!$C130*Defaults!C131*Sources!$C128 -> 0 | G90: 0
B91: Illicit Connections | C91: =(Sources!$C$97*Sources!$C$98*Defaults!C$93*Sources!$C$134+Sources!$C$136*Sources!$C$137*(Sources!$C$138*Sources!$C$139*Defaults!C$135+(1-Sources!$C$138)*Sources!$C$140*Defaults!C$136))*3.78*365/454000 -> 0 | D91: =(Sources!$C$97*Sources!$C$98*Defaults!D$93*Sources!$C$134+Sources!$C$136*Sources!$C$137*(Sources!$C$138*Sources!$C$139*Defaults!D$135+(1-Sources!$C$138)*Sources!$C$140*Defaults!D$136))*3.78*365/454000 -> 0 | E91: =(Sources!$C$97*Sources!$C$98*Defaults!E$93*Sources!$C$134+Sources!$C$136*Sources!$C$137*(Sources!$C$138*Sources!$C$139*Defaults!E$135+(1-Sources!$C$138)*Sources!$C$140*Defaults!E$136))*3.78*365/454000 -> 0 | F91: =(Sources!$C$97*Sources!$C$98*Defaults!F$93*Sources!$C$134+Sources!$C$136*Sources!$C$137*(Sources!$C$138*Sources!$C$139*Defaults!F$135+(1-Sources!$C$138)*Sources!$C$140*Defaults!F$136))*37.8/1000000000*365 -> 0 | G91: 0
B92: Channel Erosion | C92: =E92*Sources!C102*Defaults!D97 -> 0 | D92: =E92*Sources!C101*Defaults!C97 -> 0 | E92: =IF(Sources!C144=Defaults!B140,VLOOKUP(Sources!C146,Defaults!C140:D142,2,FALSE)*(Calculations!F48),IF(Sources!C144=Defaults!B141,Sources!E148*2000-E88-E89-E90-Calculations!F48-E93-E95+SUM(Results!E112:E118),IF(Sources!C144=Defaults!B142,Sources!E150*2000,0))) -> 0 | F92: 0 | G92: 0
B93: Hobby Farms/Livestock | C93: =Calculations!C114 -> 0 | D93: =Calculations!D114 -> 0 | E93: 0 | F93: =Calculations!E114 -> 0 | G93: 0
B94: Marinas | C94: =Calculations!$C$119*Calculations!$C$118*Calculations!$C$117*Sources!$C$166*Sources!$C$165*Defaults!$C$93*3.78/454000 -> 0 | D94: =Calculations!$C$119*Calculations!$C$118*Calculations!$C$117*Sources!$C$166*Sources!$C$165*Defaults!$D$93*3.78/454000 -> 0 | E94: =Calculations!$C$119*Calculations!$C$118*Calculations!$C$117*Sources!$C$166*Sources!$C$165*Defaults!$E$93*3.78/454000 -> 0 | F94: =Sources!C165*Sources!C166*Calculations!C117*Calculations!C118*Calculations!C119*Defaults!$F$93*37.8/1000000000 -> 0 | G94: 0
B95: Road Sanding | C95: 0 | D95: 0 | E95: =Sources!C170*((1-Sources!C171)*Calculations!C122+Calculations!C123*Sources!C171) -> 0 | F95: 0 | G95: 0
B96: Point Source Discharges | C96: =SUM(Calculations!C128:C137) -> 0 | D96: =SUM(Calculations!D128:D137) -> 0 | E96: =SUM(Calculations!E128:E137) -> 0 | F96: =SUM(Calculations!F128:F137) -> 0 | G96: 0
B97: Total Surface Water Secondary Source Surface Load | C97: =SUM(C88:C96) -> 0 | D97: =SUM(D88:D96) -> 0 | E97: =SUM(E88:E96) -> 0 | F97: =SUM(F88:F96) -> 0 | G97: 0
B98: Secondary Source Storm Load | C98: =C90+C89*Defaults!$C$121+C92+C93+C95 -> 0 | D98: =D90+D89*Defaults!$C$121+D92+D93+D95 -> 0 | E98: =E90+E89*Defaults!$C$121+E92+E93+E95 -> 0 | F98: =F90+F89*Defaults!$C$121+F92+F93+F95 -> 0 | G98: 0
B99: Secondary Source Non-Stormwater Load | C99: =C97-C98 -> 0 | D99: =D97-D98 -> 0 | E99: =E97-E98 -> 0 | F99: =F97-F98 -> 0 | G99: 0
B100: Secondary Load to Groundwater
B101: OSDSs- Subsurface | C101: =Calculations!C67 -> 0 | D101: =Calculations!D67 -> 0 | E101: =Calculations!E67 -> 0 | F101: =Calculations!F67 -> 0 | G101: 0
B102: Total Groundwater Load | C102: =C101 -> 0 | D102: =D101 -> 0 | E102: =E101 -> 0 | F102: =F101 -> 0 | G102: 0
B107: This table summarizes the pollutant load and runoff reductions achieved by practices included in the "Existing Practices" tab. The purple cells summarize the total load reduction from all practices, while the grey cells report the benefits of individual practices. Note that, while the summary table presents only the Total Surface Water loads, this table also breaks out the reductions from loads during storm events (i.e., the Storm Load) and the loads occurring during dry weather conditions (i.e., the Non-Stormwater Load). In some cases, a negative load reduction may be reported. This represents an increase in load due to a management practice such as turf management, or a contribution to groundwater from a practice that uses infiltration.
B108: Benefits (Load Reductions) of Existing Practices
B109: Reductions to Surface Water Loads
C110: TN (lb/year) | D110: TP (lb/year) | E110: TSS (lb/year) | F110: Fecal Coliform (billion/year) | G110: Runoff Volume (acre-feet/year)
B111: Turf Management - Surface | C111: =-Calculations!C153-Calculations!C172 -> -0.006024395161 | D111: =-Calculations!D153-Calculations!D172 -> -0.002078669951 | E111: 0 | F111: 0 | G111: =(-Calculations!C163+Calculations!D57)*Sources!C21/12*Calculations!C51 -> 0
B112: Pet Waste Education | C112: =IF('Existing Practices'!$C54="Yes",'Existing Practices'!$C55*Defaults!C208*Defaults!$C209*(1-Defaults!C210)*Defaults!C211*'Existing Practices'!C56*Defaults!C212*Defaults!C213*(Defaults!C214),0)*365 -> 0 | D112: =IF('Existing Practices'!$C54="Yes",'Existing Practices'!$C55*Defaults!C208*Defaults!$C209*(1-Defaults!C210)*Defaults!C211*'Existing Practices'!C56*Defaults!C212*Defaults!C215*(Defaults!C216),0)*365 -> 0 | E112: 0 | F112: =IF('Existing Practices'!$C54="Yes",'Existing Practices'!$C55*Defaults!C208*Defaults!$C209*(1-Defaults!C210)*Defaults!C211*'Existing Practices'!C56*Defaults!C212*Defaults!C217*(Defaults!C218),0)*365 -> 0 | G112: 0
B113: Erosion and Sediment Control | C113: =Calculations!D46*Defaults!$C$221*'Existing Practices'!$C60*'Existing Practices'!$C61 -> 0 | D113: =Calculations!E46*Defaults!$C$221*'Existing Practices'!$C60*'Existing Practices'!$C61 -> 0 | E113: =Calculations!F46*Defaults!$C$221*'Existing Practices'!$C60*'Existing Practices'!$C61 -> 0 | F113: 0 | G113: 0
B114: Street Sweeping | C114: =(SUMPRODUCT('Existing Practices'!$C67:$C69,Defaults!$C226:$C228)*VLOOKUP('Existing Practices'!$C70,Defaults!$B231:$C232,2,FALSE)*SUMPRODUCT(Sources!$D29:$D38,Defaults!F25:F34)/MAX(SUM(Sources!$D29:$D38),1)+SUMPRODUCT('Existing Practices'!$D67:$D69,Defaults!$E226:$E228)*VLOOKUP('Existing Practices'!$D70,Defaults!$B231:$C232,2,FALSE)*SUMPRODUCT(Sources!$D39:$D53,Defaults!F35:F49)/MAX(SUM(Sources!$D39:$D53),1)+SUMPRODUCT('Existing Practices'!$E67:$E69,Defaults!$E226:$E228)*VLOOKUP('Existing Practices'!$E70,Defaults!$B231:$C232,2,FALSE)*(SUMPRODUCT(Sources!$D39:$D43,Defaults!F35:F39)+SUMPRODUCT(Sources!$D49:$D53,Defaults!F45:F49))/MAX(SUM(Sources!$D49:$D53)+SUM(Sources!$D39:$D43),1))*0.226*0.95*Sources!$C$21*0.9*'Existing Practices'!$C64 -> 0 | D114: =(SUMPRODUCT('Existing Practices'!$C67:$C69,Defaults!C226:C228)*VLOOKUP('Existing Practices'!$C70,Defaults!$B231:$C232,2,FALSE)*SUMPRODUCT(Sources!$D29:$D38,Defaults!G25:G34)/MAX(SUM(Sources!$D29:$D38),1)+SUMPRODUCT('Existing Practices'!$D67:$D69,Defaults!E226:E228)*VLOOKUP('Existing Practices'!$D70,Defaults!$B231:$C232,2,FALSE)*SUMPRODUCT(Sources!$D39:$D53,Defaults!G35:G49)/MAX(SUM(Sources!$D39:$D53),1)+SUMPRODUCT('Existing Practices'!$E67:$E69,Defaults!E226:E228)*VLOOKUP('Existing Practices'!$E70,Defaults!$B231:$C232,2,FALSE)*(SUMPRODUCT(Sources!$D39:$D43,Defaults!G35:G39)+SUMPRODUCT(Sources!$D49:$D53,Defaults!G45:G49))/MAX(SUM(Sources!$D49:$D53)+SUM(Sources!$D39:$D43),1))*0.226*0.95*Sources!$C$21*0.9*'Existing Practices'!$C64 -> 0 | E114: =(SUMPRODUCT('Existing Practices'!$C67:$C69,Defaults!D226:D228)*VLOOKUP('Existing Practices'!$C70,Defaults!$B231:$C232,2,FALSE)*SUMPRODUCT(Sources!$D29:$D38,Defaults!H25:H34)/MAX(SUM(Sources!$D29:$D38),1)+SUMPRODUCT('Existing Practices'!$D67:$D69,Defaults!F226:F228)*VLOOKUP('Existing Practices'!$D70,Defaults!$B231:$C232,2,FALSE)*SUMPRODUCT(Sources!$D39:$D53,Defaults!H35:H49)/MAX(SUM(Sources!$D39:$D53),1)+SUMPRODUCT('Existing Practices'!$E67:$E69,Defaults!F226:F228)*VLOOKUP('Existing Practices'!$E70,Defaults!$B231:$C232,2,FALSE)*(SUMPRODUCT(Sources!$D39:$D43,Defaults!H35:H39)+SUMPRODUCT(Sources!$D49:$D53,Defaults!H45:H49))/MAX(SUM(Sources!$D49:$D53)+SUM(Sources!$D39:$D43),1))*0.226*0.95*Sources!$C$21*0.9*'Existing Practices'!$C64 -> 0 | F114: 0 | G114: 0
B115: Street Sweeping - Sanding | C115: 0 | D115: 0 | E115: =Results!E95*SUM('Existing Practices'!C67:E69)/MAX(Calculations!C191+Calculations!D191+Calculations!E191,0.1)*'Existing Practices'!C64 -> 0 | F115: 0 | G115: 0
B116: Structural Stormwater Management Practices | C116: =(Calculations!D$216*(1-Calculations!$J216)+Calculations!$J216)*Calculations!$B219*'Existing Practices'!$C74*'Existing Practices'!$C75*'Existing Practices'!$C76*(SUM(Calculations!D5:D29)-C111-Results!C112-Results!C114-Results!C115-Results!C118) -> 0 | D116: =(Calculations!E$216*(1-Calculations!$J216)+Calculations!$J216)*Calculations!$B219*'Existing Practices'!$C74*'Existing Practices'!$C75*'Existing Practices'!$C76*(SUM(Calculations!E5:E29)-D111-Results!D112-Results!D114-Results!D115-Results!D118) -> 0 | E116: =(Calculations!F$216*(1-Calculations!$J216)+Calculations!$J216)*Calculations!$B219*'Existing Practices'!$C74*'Existing Practices'!$C75*'Existing Practices'!$C76*(SUM(Calculations!F5:F29)-E111-Results!E112-Results!E114-Results!E115-Results!E118) -> 0 | F116: =(Calculations!G$216*(1-Calculations!$J216)+Calculations!$J216)*Calculations!$B219*'Existing Practices'!$C74*'Existing Practices'!$C75*'Existing Practices'!$C76*(SUM(Calculations!G5:G29)-F111-Results!F112-Results!F114-Results!F115-Results!F118) -> 0 | G116: =Calculations!J216*SUM(Calculations!I5:I29)*Calculations!B219*'Existing Practices'!C74*'Existing Practices'!C75*'Existing Practices'!C76 -> 0
B117: Riparian Buffers | C117: =Calculations!$C226*((1-Calculations!$F224)*Calculations!B224+Calculations!$F224)*'Existing Practices'!$C101*(SUM(Calculations!D5:D29)-C111-Results!C112-Results!C114-Results!C115) -> 0 | D117: =Calculations!$C226*((1-Calculations!$F224)*Calculations!C224+Calculations!$F224)*'Existing Practices'!$C101*(SUM(Calculations!E5:E29)-D111-Results!D112-Results!D114-Results!D115) -> 0 | E117: =Calculations!$C226*((1-Calculations!$F224)*Calculations!D224+Calculations!$F224)*'Existing Practices'!$C101*(SUM(Calculations!F5:F29)-E111-Results!E112-Results!E114-Results!E115) -> 0 | F117: =Calculations!$C226*((1-Calculations!$F224)*Calculations!E224+Calculations!$F224)*'Existing Practices'!$C101*(SUM(Calculations!G5:G29)-F111-Results!F112-Results!F114-Results!F115) -> 0 | G117: =Calculations!F224*(SUM(Calculations!I5:I29)-G111)*Calculations!C226*'Existing Practices'!C101 -> 0
B118: Catch Basin Cleanouts | C118: ='Existing Practices'!C107*(Calculations!$C231*'Existing Practices'!$C109+Calculations!$C$232*'Existing Practices'!$C$110)*Sources!$C21*0.9*0.226*0.95*Defaults!F40 -> 0 | D118: ='Existing Practices'!C107*(Calculations!$C231*'Existing Practices'!$C109+Calculations!$C$232*'Existing Practices'!$C$110)*Sources!$C21*0.9*0.226*0.95*Defaults!G40 -> 0 | E118: ='Existing Practices'!C107*(Calculations!$D231*'Existing Practices'!$C109+Calculations!$D$232*'Existing Practices'!$C$110)*Sources!$C21*0.9*0.226*0.95*Defaults!H40 -> 0 | F118: 0 | G118: 0
B119: Marina Pumpouts | C119: =IF('Existing Practices'!$C114>0,Results!C94,0)*MIN('Existing Practices'!$C114*'Existing Practices'!$C115*'Existing Practices'!$C116/MAX('Existing Practices'!$C113,0.0001),1) -> 0 | D119: =IF('Existing Practices'!$C114>0,Results!D94,0)*MIN('Existing Practices'!$C114*'Existing Practices'!$C115*'Existing Practices'!$C116/MAX('Existing Practices'!$C113,0.0001),1) -> 0 | E119: =IF('Existing Practices'!$C114>0,Results!E94,0)*MIN('Existing Practices'!$C114*'Existing Practices'!$C115*'Existing Practices'!$C116/MAX('Existing Practices'!$C113,0.0001),1) -> 0 | F119: =IF('Existing Practices'!$C114>0,Results!F94,0)*MIN('Existing Practices'!$C114*'Existing Practices'!$C115*'Existing Practices'!$C116/MAX('Existing Practices'!$C113,0.0001),1) -> 0 | G119: 0
B120: Total Surface Water Reduction | C120: =SUM(C111:C119) -> -0.006024395161 | D120: =SUM(D111:D119) -> -0.002078669951 | E120: =SUM(E111:E119) -> 0 | F120: =SUM(F111:F119) -> 0 | G120: =SUM(G111:G119) -> 0
B121: Storm Reduction | C121: =C111+C112+C113+C114+C115+C116+C117+C118 -> -0.006024395161 | D121: =D111+D112+D113+D114+D115+D116+D117+D118 -> -0.002078669951 | E121: =E111+E112+E113+E114+E115+E116+E117+E118 -> 0 | F121: =F111+F112+F113+F114+F115+F116+F117+F118 -> 0 | G121: =G111+G112+G113+G114+G115+G116+G117+G118 -> 0
B122: Non-Storm Reduction | C122: =C119 -> 0 | D122: =D119 -> 0 | E122: =E119 -> 0 | F122: =F119 -> 0 | G122: =G119 -> 0
B123: Reductions to Groundwater Loads
B124: Turf Management | C124: =-Calculations!C154-Calculations!C173 -> -0.06128165323 | D124: =-Calculations!D154-Calculations!D173 -> -0.00433137931 | E124: 0 | F124: 0 | G124: 0
B125: Riparian Buffers | C125: =-Calculations!$C226*'Existing Practices'!$C101*Calculations!$F224*(1-Calculations!B224)*(1-Calculations!C60)*(SUM(Calculations!D5:D29)-C111-Results!C112-Results!C114-Results!C115) -> 0 | D125: =-Calculations!$C226*'Existing Practices'!$C101*Calculations!$F224*(1-Calculations!C224)*(1-Calculations!D60)*(SUM(Calculations!E5:E29)-D111-Results!D112-Results!D114-Results!D115) -> 0 | E125: =-Calculations!$C226*'Existing Practices'!$C101*Calculations!$F224*(1-Calculations!D224)*(1-Calculations!E60)*(SUM(Calculations!F5:F29)-E111-Results!E112-Results!E114-Results!E115) -> 0 | F125: =-Calculations!$C226*'Existing Practices'!$C101*Calculations!$F224*(1-Calculations!E224)*(1-Calculations!F60)*(SUM(Calculations!G5:G29)-F111-Results!F112-Results!F114-Results!F115) -> 0 | G125: 0
B126: Structural Stormwater Management Practices | C126: =-Calculations!$B219*'Existing Practices'!$C74*'Existing Practices'!$C75*'Existing Practices'!$C76*Calculations!$J216*(1-Calculations!D217)*(1-Calculations!C60)*(SUM(Calculations!D5:D29)-C111-Results!C112-Results!C114-Results!C115-Results!C118) -> 0 | D126: =-Calculations!$B219*'Existing Practices'!$C74*'Existing Practices'!$C75*'Existing Practices'!$C76*Calculations!$J216*(1-Calculations!E217)*(1-Calculations!D60)*(SUM(Calculations!E5:E29)-D111-Results!D112-Results!D114-Results!D115-Results!D118) -> 0 | E126: =-Calculations!$B219*'Existing Practices'!$C74*'Existing Practices'!$C75*'Existing Practices'!$C76*Calculations!$J216*(1-Calculations!F217)*(1-Calculations!E60)*(SUM(Calculations!F5:F29)-E111-Results!E112-Results!E114-Results!E115-Results!E118) -> 0 | F126: =-Calculations!$B219*'Existing Practices'!$C74*'Existing Practices'!$C75*'Existing Practices'!$C76*Calculations!$J216*(1-Calculations!G217)*(1-Calculations!F60)*(SUM(Calculations!G5:G29)-F111-Results!F112-Results!F114-Results!F115-Results!F118) -> 0 | G126: 0
B127: Total Groundwater Reduction | C127: =SUM(C124:C126) -> -0.06128165323 | D127: =SUM(D124:D126) -> -0.00433137931 | E127: =SUM(E124:E126) -> 0 | F127: =SUM(F124:F126) -> 0 | G127: 0
B129: This table summarizes the pollutant loads and runoff volumes in the Existing Condition, which includes the loads on the "Sources" tab, minus the benefits of the practices on the "Existing Practices" tab. The purple cells summarize loads from each broad category of sources. Note that, while the summary table presents only the Total Surface Water loads, this table also breaks out the difference between loads during storm events (i.e., the Storm Load) and the loads occurring during dry weather conditions (i.e., the Non-Stormwater Load).Also note that the "Urban Land" category represents a summary of all residential, commercial, industrial and transportation land uses included in the "Sources" tab, minus all practices that reduce the load from urban Primary Sources.
B130: Loads with Existing Practices
C131: TN (lb/year) | D131: TP (lb/year) | E131: TSS (lb/year) | F131: Fecal Coliform (billion/year) | G131: Runoff Volume (acre-feet/year)
B132: Loads to Surface Waters
B133: Urban Land | C133: =SUM(C41:C65)-C121+C113+C115 -> 0.006024395161 | D133: =SUM(D41:D65)-D121+D113+D115 -> 0.002078669951 | E133: =SUM(E41:E65)-E121+E113+E115 -> 0 | F133: =SUM(F41:F65)-F121+F113+F115 -> 0 | G133: =SUM(G41:G65)-G121+G113+G115 -> 0
B134: Active Construction | C134: =C82-C113 -> 0 | D134: =D82-D113 -> 0 | E134: =E82-E113 -> 0 | F134: =F82-F113 -> 0 | G134: =G82-G113 -> 0
B135: SSOs | C135: =C89 -> 0 | D135: =D89 -> 0 | E135: 0 | F135: 0 | G135: 0
B136: CSOs | C136: =C90 -> 0 | D136: =D90 -> 0 | E136: 0 | F136: 0 | G136: 0
B137: Channel Erosion | C137: =C92 -> 0 | D137: =D92 -> 0 | E137: 0 | F137: 0 | G137: 0
B138: Road Sanding | C138: =C95-C115 -> 0 | D138: =D95-D115 -> 0 | E138: =E95-E115 -> 0 | F138: =F95-F115 -> 0 | G138: =G95-G115 -> 0
B139: Forest | C139: =SUM(C66:C70) -> 0 | D139: =SUM(D66:D70) -> 0 | E139: 0 | F139: 0 | G139: 0
B140: Rural Land | C140: =SUM(C71:C80) -> 0 | D140: =SUM(D71:D80) -> 0 | E140: 0 | F140: 0 | G140: 0
B141: Livestock | C141: =C93 -> 0 | D141: =D93 -> 0 | E141: 0 | F141: 0 | G141: 0
B142: Illicit Connections | C142: =C91 -> 0 | D142: =D91 -> 0 | E142: 0 | F142: 0 | G142: 0
B143: Marinas | C143: =C94-C119 -> 0 | D143: =D94-D119 -> 0 | E143: =E94-E119 -> 0 | F143: =F94-F119 -> 0 | G143: =G94-G119 -> 0
B144: Point Sources | C144: =C96 -> 0 | D144: =D96 -> 0 | E144: 0 | F144: 0 | G144: 0
B145: OSDS - Surface | C145: =C88 -> 0 | D145: =D88 -> 0 | E145: 0 | F145: 0 | G145: 0
B146: Open Water | C146: =C81 -> 0 | D146: =D81 -> 0 | E146: 0 | F146: 0 | G146: 0
B147: Total Surface Water Load | C147: =SUM(C133:C146) -> 0.006024395161 | D147: =SUM(D133:D146) -> 0.002078669951 | E147: 0 | F147: 0 | G147: 0
B148: Total Storm Load | C148: =C147-C149 -> 0.006024395161 | D148: =D147-D149 -> 0.002078669951 | E148: 0 | F148: 0 | G148: 0
B149: Total Non-Storm Load | C149: =C135*(1-Defaults!$C$121)+(C139+C140)*(1-Defaults!C$71)+C142+C143+C144+C145 -> 0 | D149: =D135*(1-Defaults!$C$121)+(D139+D140)*(1-Defaults!D71)+D142+D143+D144+D145 -> 0 | E149: =E135*(1-Defaults!$C$121)+(E139+E140)*(1-Defaults!E71)+E142+E143+E144+E145 -> 0 | F149: =F135*(1-Defaults!$C$121)+(F139+F140)*(1-Defaults!F71)+F142+F143+F144+F145 -> 0 | G149: 0
B150: Groundwater Loads
B151: Urban Land | C151: =-C127 -> 0.06128165323 | D151: =-D127 -> 0.00433137931 | E151: 0 | F151: 0 | G151: 0
B152: OSDS - Subsurface | C152: =C101 -> 0 | D152: =D101 -> 0 | E152: 0 | F152: 0 | G152: 0
B153: Total Groundwater Load | C153: =C152+C151 -> 0.06128165323 | D153: =D152+D151 -> 0.00433137931 | E153: 0 | F153: 0 | G153: 0
B155: Future Practices
B156: This table summarizes the Net pollutant load and runoff reductions achieved by practices included in the "Future Practices" tab. The reductions presented in this table include only the benefits beyond the practices already in place in the Existing Conditions. So, for example, an improvement to an existing education program would include only the additional load reduction achieved by improving the program. The purple cells summarize the total load reduction from all practices, while the grey cells report the benefits of individual practices. Note that, while the summary table presents only the Total Surface Water loads, this table also breaks out the reductions from loads during storm events (i.e., the Storm Load) and the loads occurring during dry weather conditions (i.e., the Non-Stormwater Load). In some cases, a negative load reduction may be reported. This represents an increase in load, which would occur if a program or practice was made less effective in the future condition.
B157: Net Benefit (Load Reductions) of Future Practices
C158: TN (lbs/year) | D158: TP (lbs/year) | E158: TSS (lbs/year) | F158: Bacteria (billion/year) | G158: Runoff Reduction (acre-ft/yr)
B159: Reductions to Surface Water Loads
B160: Lawn Care Education Surface | C160: =Calculations!C160-Calculations!C244-Calculations!C246 -> 0 | D160: =Calculations!D160-Calculations!D244-Calculations!D246 -> 0 | E160: 0 | F160: 0 | G160: 0
B161: Pet Waste Education | C161: =IF('Future Practices'!C48="",0,IF('Future Practices'!$C47="Yes",'Future Practices'!$C48*Defaults!C208*Defaults!$C209*(1-Defaults!$C210)*Defaults!$C211*'Future Practices'!$C49*Defaults!$C212*Defaults!$C213*(Defaults!$C214),0)*365-C112) -> 0 | D161: =IF('Future Practices'!C48="",0,IF('Future Practices'!$C47="Yes",'Future Practices'!$C48*Defaults!C208*Defaults!$C209*(1-Defaults!$C210)*Defaults!$C211*'Future Practices'!$C49*Defaults!$C212*Defaults!$C215*(Defaults!$C216),0)*365-D112) -> 0 | E161: 0 | F161: =IF('Future Practices'!C48="",0,IF('Future Practices'!$C47="Yes",'Future Practices'!$C48*Defaults!C208*Defaults!$C209*(1-Defaults!$C210)*Defaults!$C211*'Future Practices'!$C49*Defaults!$C212*Defaults!$C217*(Defaults!$C218),0)*365-F112) -> 0 | G161: 0
B162: Erosion and Sediment Control | C162: =IF('Future Practices'!$C55="",0,Calculations!D46*Defaults!$C$221*'Future Practices'!$C54*'Future Practices'!$C55-C113) -> 0 | D162: =IF('Future Practices'!$C55="",0,Calculations!E46*Defaults!$C$221*'Future Practices'!$C54*'Future Practices'!$C55-D113) -> 0 | E162: =IF('Future Practices'!$C55="",0,Calculations!F46*Defaults!$C$221*'Future Practices'!$C54*'Future Practices'!$C55-E113) -> 0 | F162: =IF('Future Practices'!$C55="",0,Calculations!G46*Defaults!$C$221*'Future Practices'!$C54*'Future Practices'!$C55-F113) -> 0 | G162: 0
B163: Street Sweeping | C163: =IF('Future Practices'!C59="",0,(SUMPRODUCT('Future Practices'!$C62:$C64,Defaults!$C226:$C228)*VLOOKUP('Future Practices'!$C65,Defaults!$B231:$C232,2,FALSE)*SUMPRODUCT(Sources!$D29:$D38,Defaults!F25:F34)/MAX(SUM(Sources!$D29:$D38),1)+SUMPRODUCT('Future Practices'!$E62:$E64,Defaults!$E226:$E228)*VLOOKUP('Future Practices'!$E65,Defaults!$B231:$C232,2,FALSE)*SUMPRODUCT(Sources!$D39:$D53,Defaults!F35:F49)/MAX(SUM(Sources!$D39:$D53),1)+SUMPRODUCT('Future Practices'!$G62:$G64,Defaults!$E226:$E228)*VLOOKUP('Future Practices'!$G65,Defaults!$B231:$C232,2,FALSE)*(SUMPRODUCT(Sources!$D39:$D43,Defaults!F35:F39)+SUMPRODUCT(Sources!$D49:$D53,Defaults!F45:F49))/MAX(SUM(Sources!$D49:$D53)+SUM(Sources!$D39:$D43),1))*0.226*0.95*Sources!$C$21*0.9*'Future Practices'!$C59-C114) -> 0 | D163: =IF('Future Practices'!C59="",0,(SUMPRODUCT('Future Practices'!$C62:$C64,Defaults!C226:C228)*VLOOKUP('Future Practices'!$C65,Defaults!$B231:$C232,2,FALSE)*SUMPRODUCT(Sources!$D29:$D38,Defaults!G25:G34)/MAX(SUM(Sources!$D29:$D38),1)+SUMPRODUCT('Future Practices'!$E62:$E64,Defaults!E226:E228)*VLOOKUP('Future Practices'!$E65,Defaults!$B231:$C232,2,FALSE)*SUMPRODUCT(Sources!$D39:$D53,Defaults!G35:G49)/MAX(SUM(Sources!$D39:$D53),1)+SUMPRODUCT('Future Practices'!$G62:$G64,Defaults!E226:E228)*VLOOKUP('Future Practices'!$G65,Defaults!$B231:$C232,2,FALSE)*(SUMPRODUCT(Sources!$D39:$D43,Defaults!G35:G39)+SUMPRODUCT(Sources!$D49:$D53,Defaults!G45:G49))/MAX(SUM(Sources!$D49:$D53)+SUM(Sources!$D39:$D43),1))*0.226*0.95*Sources!$C$21*0.9*'Future Practices'!$C59-D114) -> 0 | E163: =IF('Future Practices'!C59="",0,(SUMPRODUCT('Future Practices'!$C62:$C64,Defaults!D226:D228)*VLOOKUP('Future Practices'!$C65,Defaults!$B231:$C232,2,FALSE)*SUMPRODUCT(Sources!$D29:$D38,Defaults!H25:H34)/MAX(SUM(Sources!$D29:$D38),1)+SUMPRODUCT('Future Practices'!$E62:$E64,Defaults!F226:F228)*VLOOKUP('Future Practices'!$E65,Defaults!$B231:$C232,2,FALSE)*SUMPRODUCT(Sources!$D39:$D53,Defaults!H35:H49)/MAX(SUM(Sources!$D39:$D53),1)+SUMPRODUCT('Future Practices'!$G62:$G64,Defaults!F226:F228)*VLOOKUP('Future Practices'!$G65,Defaults!$B231:$C232,2,FALSE)*(SUMPRODUCT(Sources!$D39:$D43,Defaults!H35:H39)+SUMPRODUCT(Sources!$D49:$D53,Defaults!H45:H49))/MAX(SUM(Sources!$D49:$D53)+SUM(Sources!$D39:$D43),1))*0.226*0.95*Sources!$C$21*0.9*'Future Practices'!$C59-E114) -> 0 | F163: 0 | G163: 0
B164: Street Sweeping - Sanding | C164: 0 | D164: 0 | E164: =IF('Future Practices'!C59="",0,Results!E95*(SUM('Future Practices'!C62:C64)+SUM('Future Practices'!E62:E64)+SUM('Future Practices'!G62:G64))/MAX((Calculations!C191+Calculations!D191+Calculations!E191),0.001)-E115) -> 0 | F164: 0 | G164: 0
B165: Riparian Buffers | C165: =IF('Future Practices'!$C77="",0,(Calculations!B265*(1-Calculations!$F265)+Calculations!$F265)*Calculations!$C262*'Future Practices'!$C77*(SUM(Calculations!D5:D29)-C160-C161-C163-C164-C168-C169-C111-C112-C114-C115)-C117) -> 0 | D165: =IF('Future Practices'!$C77="",0,(Calculations!C265*(1-Calculations!$F265)+Calculations!$F265)*Calculations!$C262*'Future Practices'!$C77*(SUM(Calculations!E5:E29)-D160-D161-D163-D164-D168-D169-D111-D112-D114-D115)-D117) -> 0 | E165: =IF('Future Practices'!$C77="",0,(Calculations!D265*(1-Calculations!$F265)+Calculations!$F265)*Calculations!$C262*'Future Practices'!$C77*(SUM(Calculations!F5:F29)-E160-E161-E163-E164-E168-E169-E111-E112-E114-E115)-E117) -> 0 | F165: =IF('Future Practices'!$C77="",0,(Calculations!E265*(1-Calculations!$F265)+Calculations!$F265)*Calculations!$C262*'Future Practices'!$C77*(SUM(Calculations!G5:G29)-F160-F161-F163-F164-F168-F169-F111-F112-F114-F115)-F117) -> 0 | G165: =IF('Future Practices'!$C77="",0,(Calculations!$F265)*Calculations!$C262*'Future Practices'!$C77*(SUM(Calculations!I5:I29)-G160-G161-G163-G164-G168-G169-G111)-G117) -> 0
B166: Catch Basin Cleanouts | C166: =IF('Future Practices'!$C84="",0,(Calculations!$C279*'Future Practices'!$C82+Calculations!$C$280*'Future Practices'!$C$83)*Sources!$C21*0.9*0.226*0.95*Defaults!F40*'Future Practices'!$C84-C118) -> 0 | D166: =IF('Future Practices'!$C84="",0,(Calculations!$C279*'Future Practices'!$C82+Calculations!$C$280*'Future Practices'!$C$83)*Sources!$C21*0.9*0.226*0.95*Defaults!G40*'Future Practices'!$C84-D118) -> 0 | E166: =IF('Future Practices'!$C84="",0,(Calculations!$D279*'Future Practices'!$C82+Calculations!$D$280*'Future Practices'!$C$83)*Sources!$C21*0.9*0.226*0.95*Defaults!H40*'Future Practices'!$C84-E118) -> 0 | F166: 0 | G166: 0
B167: Marina Pumpouts | C167: =IF('Future Practices'!$C87="",0,IF('Future Practices'!$C87>0,Results!C94,0)*MIN('Future Practices'!$C87*Calculations!$C284*Calculations!$C285/MAX(Calculations!$C283,0.0001),1)-C119) -> 0 | D167: =IF('Future Practices'!$C87="",0,IF('Future Practices'!$C87>0,Results!D94,0)*MIN('Future Practices'!$C87*Calculations!$C284*Calculations!$C285/MAX(Calculations!$C283,0.0001),1)-D119) -> 0 | E167: =IF('Future Practices'!$C87="",0,IF('Future Practices'!$C87>0,Results!E94,0)*MIN('Future Practices'!$C87*Calculations!$C284*Calculations!$C285/MAX(Calculations!$C283,0.0001),1)-E119) -> 0 | F167: =IF('Future Practices'!$C87="",0,IF('Future Practices'!$C87>0,Results!F94,0)*MIN('Future Practices'!$C87*Calculations!$C284*Calculations!$C285/MAX(Calculations!$C283,0.0001),1)-F119) -> 0 | G167: 0
B168: Urban Downsizing | C168: =(SUMPRODUCT('Future Practices'!$D94:$D99,Calculations!C290:C295)-Defaults!C71*SUMPRODUCT('Future Practices'!$D102:$D107,Calculations!C298:C303)) -> 0 | D168: =(SUMPRODUCT('Future Practices'!$D94:$D99,Calculations!D290:D295)-Defaults!D71*SUMPRODUCT('Future Practices'!$D102:$D107,Calculations!D298:D303)) -> 0 | E168: =(SUMPRODUCT('Future Practices'!$D94:$D99,Calculations!E290:E295)-Defaults!E71*SUMPRODUCT('Future Practices'!$D102:$D107,Calculations!E298:E303)) -> 0 | F168: =(SUMPRODUCT('Future Practices'!$D94:$D99,Calculations!F290:F295)-Defaults!F71*SUMPRODUCT('Future Practices'!$D102:$D107,Calculations!F298:F303)) -> 0 | G168: =(SUMPRODUCT('Future Practices'!$D94:$D99,Calculations!G290:G295)-SUMPRODUCT('Future Practices'!$D102:$D107,Calculations!G298:G303))/12 -> 0
B169: Redevelopment With Improvements | C169: =0.226*Sources!$C21*'Future Practices'!$C111*(Calculations!$C57*'Future Practices'!$C112+Calculations!$C163*'Future Practices'!$C113-('Future Practices'!$C112+'Future Practices'!$C113)*Calculations!$E57*Defaults!C71)*SUMPRODUCT(Sources!$D29:$D53,Defaults!F25:F49)/MAX(SUM(Sources!$D29:$D53),0.001) -> 0 | D169: =0.226*Sources!$C21*'Future Practices'!$C111*(Calculations!$C57*'Future Practices'!$C112+Calculations!$C163*'Future Practices'!$C113-('Future Practices'!$C112+'Future Practices'!$C113)*Calculations!$E57*Defaults!D71)*SUMPRODUCT(Sources!$D29:$D53,Defaults!G25:G49)/MAX(SUM(Sources!$D29:$D53),0.001) -> 0 | E169: =0.226*Sources!$C21*'Future Practices'!$C111*(Calculations!$C57*'Future Practices'!$C112+Calculations!$C163*'Future Practices'!$C113-('Future Practices'!$C112+'Future Practices'!$C113)*Calculations!$E57*Defaults!E71)*SUMPRODUCT(Sources!$D29:$D53,Defaults!H25:H49)/MAX(SUM(Sources!$D29:$D53),0.001) -> 0 | F169: =0.00103*Sources!$C21*'Future Practices'!$C111*(Calculations!$C57*'Future Practices'!$C112+Calculations!$C163*'Future Practices'!$C113-('Future Practices'!$C112+'Future Practices'!$C113)*Calculations!$E57*Defaults!F71)*SUMPRODUCT(Sources!$D29:$D53,Defaults!I25:I49)/MAX(SUM(Sources!$D29:$D53),0.001) -> 0 | G169: =Sources!$C21*'Future Practices'!$C111*(Calculations!$C57*'Future Practices'!$C112+Calculations!$C163*'Future Practices'!$C113-('Future Practices'!$C112+'Future Practices'!$C113)*Calculations!$E57)/12 -> 0
B170: Stormwater Retrofits | C170: ='Future Practices'!D187 -> 0 | D170: ='Future Practices'!E187 -> 0 | E170: ='Future Practices'!F187 -> 0 | F170: ='Future Practices'!G187 -> 0 | G170: ='Future Practices'!H187 -> 0
B171: Illicit Connection Removal | C171: =Results!C91*'Future Practices'!$C211*'Future Practices'!$C212 -> 0 | D171: =Results!D91*'Future Practices'!$C211*'Future Practices'!$C212 -> 0 | E171: =Results!E91*'Future Practices'!$C211*'Future Practices'!$C212 -> 0 | F171: =Results!F91*'Future Practices'!$C211*'Future Practices'!$C212 -> 0 | G171: 0
B172: CSO Repair/ Abatement | C172: =(1-'Future Practices'!$C216/MAX(Sources!$C130,1))*Results!C90*'Future Practices'!$C217 -> 0 | D172: =(1-'Future Practices'!$C216/MAX(Sources!$C130,1))*Results!D90*'Future Practices'!$C217 -> 0 | E172: =(1-'Future Practices'!$C216/MAX(Sources!$C130,1))*Results!E90*'Future Practices'!$C217 -> 0 | F172: =(1-'Future Practices'!$C216/MAX(Sources!$C130,1))*Results!F90*'Future Practices'!$C217 -> 0 | G172: =(1-'Future Practices'!$C216*'Future Practices'!$C217/MAX(Sources!$C130,1))*Results!G90 -> 0
B173: SSO Repair/ Abatement | C173: =Results!C89*'Future Practices'!$C221*'Future Practices'!$C222 -> 0 | D173: =Results!D89*'Future Practices'!$C221*'Future Practices'!$C222 -> 0 | E173: =Results!E89*'Future Practices'!$C221*'Future Practices'!$C222 -> 0 | F173: =Results!F89*'Future Practices'!$C221*'Future Practices'!$C222 -> 0 | G173: 0
B174: OSDS Programs - Surface | C174: =Calculations!C66-Calculations!C398 -> 0 | D174: =Calculations!D66-Calculations!D398 -> 0 | E174: =Calculations!E66-Calculations!E398 -> 0 | F174: =Calculations!F66-Calculations!F398 -> 0 | G174: 0
B175: Stream Restoration | C175: =IF('Future Practices'!B192=Defaults!B280,'Future Practices'!$C196/MAX('Future Practices'!$C195,0.001)*'Future Practices'!$C197*Results!C92,IF('Future Practices'!B192=Defaults!B281,Calculations!$C362,0)) -> 0 | D175: =IF('Future Practices'!B192=Defaults!B280,'Future Practices'!$C196/MAX('Future Practices'!$C195,0.001)*'Future Practices'!$C197*Results!D92,IF('Future Practices'!B192=Defaults!B281,Calculations!$C361,0)) -> 0 | E175: =IF('Future Practices'!B192=Defaults!B280,'Future Practices'!$C196/MAX('Future Practices'!$C195,0.001)*'Future Practices'!$C197*Results!E92,IF('Future Practices'!B192=Defaults!B281,Calculations!$C360,0)) -> 0 | F175: 0 | G175: 0
B176: Point Source Reduction | C176: =SUM('Future Practices'!C256:C266) -> 0 | D176: =SUM('Future Practices'!D256:D266) -> 0 | E176: =SUM('Future Practices'!E256:E266) -> 0 | F176: =SUM('Future Practices'!F256:F266) -> 0 | G176: =SUM('Future Practices'!G256:G266) -> 0
B177: Total Surface Water Reduction | C177: =SUM(C160:C176) -> 0 | D177: =SUM(D160:D176) -> 0 | E177: 0 | F177: 0 | G177: 0
B178: Storm Load Reduction | C178: =C177-C179 -> 0 | D178: =D177-D179 -> 0 | E178: 0 | F178: 0 | G178: 0
B179: Non-Storm Load Reduction | C179: =C176+C167+C171+C173*(1-Defaults!$C121)+C6+C174 -> 0 | D179: =D176+D167+D171+D173*(1-Defaults!$C121)+D6+D174 -> 0 | E179: =E176+E167+E171+E173*(1-Defaults!$C121)+E6+E174 -> 0 | F179: =F176+F167+F171+F173*(1-Defaults!$C121)+F6+F174 -> 0 | G179: =G176+G167+G171+G173*(1-Defaults!$C121)+G6+G174 -> 0
B180: Reductions to Groundwater Loads
B181: Urban Turf | C181: =(Calculations!C161-Calculations!C245)*(1-Calculations!C60) -> 0 | D181: =(Calculations!D161-Calculations!D245)*(1-Calculations!D60) -> 0 | E181: 0 | F181: 0 | G181: 0
B182: Riparian Buffers | C182: =-Calculations!$C$262*'Future Practices'!$C$77*Defaults!$L$177*(1-Defaults!C177)*(1-Calculations!C60)*(SUM(Calculations!D5:D29)-Results!C160-Results!C161-Results!C163-Results!C164-Results!C168-Results!C169-C111-C112-C114-C115)-C125 -> 0 | D182: =-Calculations!$C$262*'Future Practices'!$C$77*Defaults!$L$177*(1-Defaults!D177)*(1-Calculations!D60)*(SUM(Calculations!E5:E29)-Results!D160-Results!D161-Results!D163-Results!D164-Results!D168-Results!D169-D111-D112-D114-D115)-D125 -> 0 | E182: =-Calculations!$C$262*'Future Practices'!$C$77*Defaults!$L$177*(1-Defaults!E177)*(1-Calculations!E60)*(SUM(Calculations!F5:F29)-Results!E160-Results!E161-Results!E163-Results!E164-Results!E168-Results!E169-E111-E112-E114-E115)-E125 -> 0 | F182: =-Calculations!$C$262*'Future Practices'!$C$77*Defaults!$L$177*(1-Defaults!F177)*(1-Calculations!F60)*(SUM(Calculations!G5:G29)-Results!F160-Results!F161-Results!F163-Results!F164-Results!F168-Results!F169-F111-F112-F114-F115)-F125 -> 0 | G182: 0
B183: Stormwater Retrofits | C183: =-Calculations!D349 -> 0 | D183: =-Calculations!E349 -> 0 | E183: =-Calculations!F349 -> 0 | F183: =-Calculations!G349 -> 0 | G183: =-Calculations!H349 -> 0
B184: OSDSs | C184: =Calculations!C67-Calculations!C399 -> 0 | D184: =Calculations!D67-Calculations!D399 -> 0 | E184: =Calculations!E67-Calculations!E399 -> 0 | F184: =Calculations!F67-Calculations!F399 -> 0 | G184: 0
B185: Total Groundwater Load Reduction | C185: =SUM(C181:C184) -> 0 | D185: =SUM(D181:D184) -> 0 | E185: =SUM(E181:E184) -> 0 | F185: =SUM(F181:F184) -> 0 | G185: 0
B187: This table summarizes the pollutant loads and runoff volumes in the Future Condition, which includes the loads on the "Sources" tab, minus the benefits of the practices on the "Existing Practices" and "Future Practices" tabs. The purple cells summarize loads from each broad category of sources. Note that, while the summary table presents only the Total Surface Water loads, this table also breaks out the difference between loads during storm events (i.e., the Storm Load) and the loads occurring during dry weather conditions (i.e., the Non-Stormwater Load).Also note that the "Urban Land" category represents a summary of all residential, commercial, industrial and transportation land uses included in the "Sources" tab, minus all practices that reduce the load from urban Primary Sources. | L187: =M186-C189 -> 
B188: Loads with Future Practices in Place | L188: 0
C189: TN (lb/year) | D189: TP (lb/year) | E189: TSS (lb/year) | F189: Fecal Coliform (billion/year) | G189: Runoff Volume (acre-feet/year) | L189: -0.006024395161
B190: Loads to Surface Waters | L190: 0
B191: Urban Land | C191: =C133-C160-C161-C163-C164-C165-C168-C169-C170-C166 -> 0.006024395161 | D191: =D133-D160-D161-D163-D164-D165-D168-D169-D170-D166 -> 0.002078669951 | E191: 0 | F191: 0 | G191: 0 | L191: 0
B192: Active Construction | C192: =C134-C162 -> 0 | D192: =D134-D162 -> 0 | E192: =E134-E162 -> 0 | F192: =F134-F162 -> 0 | G192: =G134-G162 -> 0 | L192: 0
B193: SSOs | C193: =C135-C173 -> 0 | D193: =D135-D173 -> 0 | E193: =E135-E173 -> 0 | F193: =F135-F173 -> 0 | G193: =G135-G173 -> 0 | L193: 0
B194: CSOs | C194: =C136-C172 -> 0 | D194: =D136-D172 -> 0 | E194: =E136-E172 -> 0 | F194: =F136-F172 -> 0 | G194: =G136-G172 -> 0 | L194: 0
B195: Channel Erosion | C195: =C137-C175 -> 0 | D195: =D137-D175 -> 0 | E195: =E137-E175 -> 0 | F195: =F137-F175 -> 0 | G195: =G137-G175 -> 0 | L195: 0
B196: Road Sanding | C196: =C138-C164 -> 0 | D196: =D138-D164 -> 0 | E196: =E138-E164 -> 0 | F196: =F138-F164 -> 0 | G196: =G138-G164 -> 0 | L196: 0
B197: Forest | C197: =C139 -> 0 | D197: =D139 -> 0 | E197: 0 | F197: 0 | G197: 0 | L197: 0
B198: Rural Land | C198: =C140 -> 0 | D198: =D140 -> 0 | E198: 0 | F198: 0 | G198: 0 | L198: 0
B199: Livestock | C199: =C141 -> 0 | D199: =D141 -> 0 | E199: 0 | F199: 0 | G199: 0 | L199: 0
B200: Illicit Connections | C200: =C142-C171 -> 0 | D200: =D142-D171 -> 0 | E200: =E142-E171 -> 0 | F200: =F142-F171 -> 0 | G200: =G142-G171 -> 0 | L200: 0
B201: Marinas | C201: =C143-C167 -> 0 | D201: =D143-D167 -> 0 | E201: =E143-E167 -> 0 | F201: =F143-F167 -> 0 | G201: =G143-G167 -> 0 | L201: 0
B202: Point Sources | C202: =C144-C176 -> 0 | D202: =D144-D176 -> 0 | E202: =E144-E176 -> 0 | F202: =F144-F176 -> 0 | G202: =G144-G176 -> 0 | L202: 0
B203: OSDS - Surface | C203: =C145-C174 -> 0 | D203: =D145-D174 -> 0 | E203: =E145-E174 -> 0 | F203: =F145-F174 -> 0 | G203: =G145-G174 -> 0 | L203: -0.006024395161
B204: Open Water | C204: =C146 -> 0 | D204: =D146 -> 0 | E204: 0 | F204: 0 | G204: 0 | L204: -0.006024395161
B205: Total Surface Water Load | C205: =SUM(C191:C204) -> 0.006024395161 | D205: =SUM(D191:D204) -> 0.002078669951 | E205: 0 | F205: 0 | G205: 0 | L205: 0
B206: Total Storm Load | C206: =C205-C207 -> 0.006024395161 | D206: =D205-D207 -> 0.002078669951 | E206: 0 | F206: 0 | G206: 0 | L206: 0
B207: Total Non-Storm Load | C207: =C193*(1-Defaults!$C$121)+(C197+C198)*(1-Defaults!C$71)+C200+C201+C202+C203 -> 0 | D207: =D193*(1-Defaults!$C$121)+(D197+D198)*(1-Defaults!D$71)+D200+D201+D202+D203 -> 0 | E207: =E193*(1-Defaults!$C$121)+(E197+E198)*(1-Defaults!E$71)+E200+E201+E202+E203 -> 0 | F207: =F193*(1-Defaults!$C$121)+(F197+F198)*(1-Defaults!F$71)+F200+F201+F202+F203 -> 0 | G207: 0 | L207: -0.06128165323
B208: Groundwater Loads | L208: 0
B209: Urban Land | C209: =C151-C181-C182-C183 -> 0.06128165323 | D209: =D151-D181-D182-D183 -> 0.00433137931 | E209: =E151-E181-E182-E183 -> 0 | F209: =F151-F181-F182-F183 -> 0 | G209: =G151-G181-G182-G183 -> 0 | L209: -0.06128165323
B210: OSDSs | C210: =C152-C184 -> 0 | D210: 0 | E210: 0 | F210: 0 | G210: 0 | L210: 0
B211: Total Groundwater Load | C211: 0.06128165323 | D211: 0.00433137931 | E211: 0 | F211: 0 | G211: 0
B215: Loads With New Development
B217: This table summarizes the pollutant loads and runoff volumes in the Existing Condition, which includes the loads on the "Sources" tab, minus the benefits of the practices on the "Existing Practices" and "Future Practices" tabs. The purple cells summarize loads from each broad category of sources. Note that, while the summary table presents only the Total Surface Water loads, this table also breaks out the difference between loads during storm events (i.e., the Storm Load) and the loads occurring during dry weather conditions (i.e., the Non-Stormwater Load).Also note that the "Urban Land" category represents a summary of all residential, commercial, industrial and transportation land uses included in the "Sources" tab, minus all practices that reduce the load from urban Primary Sources.
B218: Loads to Surface Waters with Projected New Development
C219: TN | D219: TP | E219: TSS | F219: Fecal Coliform | G219: Runoff Volume
B220: Surface Water Loads | C220: lb/year | D220: lb/year | E220: lb/year | F220: billion/year | G220: acre-feet/year
B221: Urban Land | C221: =SUM(Calculations!O405:O429)-'New Development'!C76+C191 -> 0.006024395161 | D221: =SUM(Calculations!P405:P429)-'New Development'!D76+D191 -> 0.002078669951 | E221: =SUM(Calculations!Q405:Q429)-'New Development'!E76+E191 -> 0 | F221: =SUM(Calculations!R405:R429)-'New Development'!F76+F191 -> 0 | G221: =SUM(Calculations!S405:S429)-'New Development'!G76+G191 -> 0
B222: Active Construction | C222: =$E222*Sources!E$70/MAX(Sources!$G$70,0.001) -> 0 | D222: =$E222*Sources!F$70/MAX(Sources!$G$70,0.001) -> 0 | E222: ='New Development'!C120*(1-'New Development'!D120*'New Development'!F120*'New Development'!H120)*Sources!$G70/MAX(Sources!D70,0.001)+E192 -> 0 | F222: =$E222*Sources!H$70/MAX(Sources!$G$70,0.001) -> 0 | G222: =G192+Calculations!S445 -> 0
B223: SSOs | C223: ='New Development'!C95+C193 -> 0 | D223: ='New Development'!D95+D193 -> 0 | E223: ='New Development'!E95+E193 -> 0 | F223: ='New Development'!F95+F193 -> 0 | G223: ='New Development'!G95 -> 0
... 18 more rows

Sheet Results - Unlocked (hidden)
B2: This worksheet contains the data in the "Results" tab, but unlocked so that the user can copy results to customize reporting in another spreadsheet. Please paste only the values, as this worksheet references the "Results" tab.
B10: =Results!B10 -> This summary table summarizes pollutant loads and runoff volume in the Existing Condition, with Future Practices in place, and with New Development. The purple cells in this table represent final loads (or % change from Existing). The grey cells are interim calculations, such as the load reduction from practices (summarized). Surface water loads represents all loads during stormflow or during non-storm events that are delivered to surface waters, and Groundwater Loads include loads directly to groundwater from urban lawns, On-Site Sewage Disposal Systems, and BMPs that provide infiltration. While some of the loads to groundwater may ultimately be delivered to surface waters, the WTM does not make this calculation. To calculate loads to surface waters from groundwater, multiply the groundwater loads by a delivery ratio (known from local conditions), and add to surface water loads.
B11: Summary Table
C12: TN (lb/year) | D12: TP (lb/year) | E12: TSS (lb/year) | F12: Fecal Coliform (billion/year) | G12: Runoff Volume (acre-feet/year)
B13: Surface Water Loads
B14: =Results!B14 -> Uncontrolled Load from Primary Sources | C14: =Results!C14 -> 0 | D14: =Results!D14 -> 0 | E14: =Results!E14 -> 0 | F14: =Results!F14 -> 0 | G14: =Results!G14 -> 0
B15: =Results!B15 -> Uncontrolled Load from Secondary Sources | C15: =Results!C15 -> 0 | D15: =Results!D15 -> 0 | E15: =Results!E15 -> 0 | F15: =Results!F15 -> 0 | G15: =Results!G15 -> 0
B16: =Results!B16 -> Load Reduction from Existing Practices | C16: =Results!C16 -> -0.006024395161 | D16: =Results!D16 -> -0.002078669951 | E16: =Results!E16 -> 0 | F16: =Results!F16 -> 0 | G16: =Results!G16 -> 0
B17: =Results!B17 -> Existing Surface Water Load | C17: =Results!C17 -> 0.006024395161 | D17: =Results!D17 -> 0.002078669951 | E17: =Results!E17 -> 0 | F17: =Results!F17 -> 0 | G17: =Results!G17 -> 0
B18: =Results!B18 -> Existing Load - Storm | C18: =Results!C18 -> 0.006024395161 | D18: =Results!D18 -> 0.002078669951 | E18: =Results!E18 -> 0 | F18: =Results!F18 -> 0 | G18: =Results!G18 -> 0
B19: =Results!B19 -> Existing Load - Nonstorm | C19: =Results!C19 -> 0 | D19: =Results!D19 -> 0 | E19: =Results!E19 -> 0 | F19: =Results!F19 -> 0 | G19: =Results!G19 -> 0
B20: =Results!B20 -> Load Reduction from Future Practices | C20: =Results!C20 -> 0 | D20: =Results!D20 -> 0 | E20: =Results!E20 -> 0 | F20: =Results!F20 -> 0 | G20: =Results!G20 -> 0
B21: =Results!B21 -> Surface Load with Future Practices in Place | C21: =Results!C21 -> 0.006024395161 | D21: =Results!D21 -> 0.002078669951 | E21: =Results!E21 -> 0 | F21: =Results!F21 -> 0 | G21: =Results!G21 -> 0
B22: =Results!B22 -> Surface Load Change From Existing (%) | C22: =Results!C22 -> 0 | D22: =Results!D22 -> 0 | E22: =Results!E22 -> 0 | F22: =Results!F22 -> 0 | G22: =Results!G22 -> 0
B23: =Results!B23 -> Surface Load with Future Practices - Storm | C23: =Results!C23 -> 0.006024395161 | D23: =Results!D23 -> 0.002078669951 | E23: =Results!E23 -> 0 | F23: =Results!F23 -> 0 | G23: =Results!G23 -> 0
B24: =Results!B24 -> Surface Load with Future Practices - Nonstorm | C24: =Results!C24 -> 0 | D24: =Results!D24 -> 0 | E24: =Results!E24 -> 0 | F24: =Results!F24 -> 0 | G24: =Results!G24 -> 0
B25: =Results!B25 -> Load from New Development | C25: =Results!C25 -> 0 | D25: =Results!D25 -> 0 | E25: =Results!E25 -> 0 | F25: =Results!F25 -> 0 | G25: =Results!G25 -> 0
B26: =Results!B26 -> Total Surface Load Including New Development | C26: =Results!C26 -> 0.006024395161 | D26: =Results!D26 -> 0.002078669951 | E26: =Results!E26 -> 0 | F26: =Results!F26 -> 0 | G26: =Results!G26 -> 0
B27: =Results!B27 -> Surface Load Change From Existing (%) | C27: =Results!C27 -> 0 | D27: =Results!D27 -> 0 | E27: =Results!E27 -> 0 | F27: =Results!F27 -> 0 | G27: =Results!G27 -> 0
B28: =Results!B28 -> Surface Load Including New Development - Storm | C28: =Results!C28 -> 0.006024395161 | D28: =Results!D28 -> 0.002078669951 | E28: =Results!E28 -> 0 | F28: =Results!F28 -> 0 | G28: =Results!G28 -> 0
B29: =Results!B29 -> Surface Load Including New Development - Non-Storm | C29: =Results!C29 -> 0 | D29: =Results!D29 -> 0 | E29: =Results!E29 -> 0 | F29: =Results!F29 -> 0 | G29: =Results!G29 -> 0
B30: =Results!B30 -> Groundwater Loads with Existing Practices in Place | C30: =Results!C30 -> 0.06128165323 | D30: =Results!D30 -> 0.00433137931 | E30: =Results!E30 -> 0 | F30: =Results!F30 -> 0 | G30: =Results!G30 -> 0
B31: =Results!B31 -> Groundwater Loads with Future Practices | C31: =Results!C31 -> 0.06128165323 | D31: =Results!D31 -> 0.00433137931 | E31: =Results!E31 -> 0 | F31: =Results!F31 -> 0 | G31: =Results!G31 -> 0
B32: =Results!B32 -> Groundwater Loads Including New Development | C32: =Results!C32 -> 0.06128165323 | D32: =Results!D32 -> 0.00433137931 | E32: =Results!E32 -> 0 | F32: =Results!F32 -> 0 | G32: =Results!G32 -> 0
B36: =Results!B36 -> This table summarizes the pollutant loads and runoff volumes from Uncontrolled pollutant sources, including both the Primary Sources and Secondary Sources included in the "Sources" tab. The purple cells summarize loads from each broad category of sources. Note that, while the summary table presents only the Total Surface Water loads, this table also breaks out the difference between loads during storm events (i.e., the Storm Load) and the loads occurring during dry weather conditions (i.e., the Non-Stormwater Load). THIS LOAD DOES NOT INCLUDE TURF MANAGEMENT. Note that the load from turf managment typically appears as a "negative reduction", and will likely increase teh laods beyond those reported as Primary Sources. | C36: =Results!C36 -> 0 | D36: =Results!D36 -> 0 | E36: =Results!E36 -> 0 | F36: =Results!F36 -> 0 | G36: =Results!G36 -> 0
B37: =Results!B37 -> Source Loads (Without Practices)
B38: =Results!B38 -> Primary Sources
C39: =Results!C39 -> TN (lb/year) | D39: =Results!D39 -> TP (lb/year) | E39: =Results!E39 -> TSS (lb/year) | F39: =Results!F39 -> Fecal Coliform (billion/year) | G39: =Results!G39 -> Runoff Volume (acre-feet/year)
B41: =Results!B41 -> Residential : LDR (<1du/acre) | C41: =Results!C41 -> 0 | D41: =Results!D41 -> 0 | E41: =Results!E41 -> 0 | F41: =Results!F41 -> 0 | G41: =Results!G41 -> 0
B42: =Results!B42 -> Residential : MDR (1-4 du/acre) | C42: =Results!C42 -> 0 | D42: =Results!D42 -> 0 | E42: =Results!E42 -> 0 | F42: =Results!F42 -> 0 | G42: =Results!G42 -> 0
B43: =Results!B43 -> Residential : HDR (>4 du/acre) | C43: =Results!C43 -> 0 | D43: =Results!D43 -> 0 | E43: =Results!E43 -> 0 | F43: =Results!F43 -> 0 | G43: =Results!G43 -> 0
B44: =Results!B44 -> Residential : Multifamily | C44: =Results!C44 -> 0 | D44: =Results!D44 -> 0 | E44: =Results!E44 -> 0 | F44: =Results!F44 -> 0 | G44: =Results!G44 -> 0
B45: =Results!B45 ->  | C45: =Results!C45 -> 0 | D45: =Results!D45 -> 0 | E45: =Results!E45 -> 0 | F45: =Results!F45 -> 0 | G45: =Results!G45 -> 0
B46: =Results!B46 ->  | C46: =Results!C46 -> 0 | D46: =Results!D46 -> 0 | E46: =Results!E46 -> 0 | F46: =Results!F46 -> 0 | G46: =Results!G46 -> 0
B47: =Results!B47 ->  | C47: =Results!C47 -> 0 | D47: =Results!D47 -> 0 | E47: =Results!E47 -> 0 | F47: =Results!F47 -> 0 | G47: =Results!G47 -> 0
B48: =Results!B48 ->  | C48: =Results!C48 -> 0 | D48: =Results!D48 -> 0 | E48: =Results!E48 -> 0 | F48: =Results!F48 -> 0 | G48: =Results!G48 -> 0
B49: =Results!B49 ->  | C49: =Results!C49 -> 0 | D49: =Results!D49 -> 0 | E49: =Results!E49 -> 0 | F49: =Results!F49 -> 0 | G49: =Results!G49 -> 0
B50: =Results!B50 ->  | C50: =Results!C50 -> 0 | D50: =Results!D50 -> 0 | E50: =Results!E50 -> 0 | F50: =Results!F50 -> 0 | G50: =Results!G50 -> 0
B51: =Results!B51 -> Commercial : Commercial | C51: =Results!C51 -> 0 | D51: =Results!D51 -> 0 | E51: =Results!E51 -> 0 | F51: =Results!F51 -> 0 | G51: =Results!G51 -> 0
B52: =Results!B52 ->  | C52: =Results!C52 -> 0 | D52: =Results!D52 -> 0 | E52: =Results!E52 -> 0 | F52: =Results!F52 -> 0 | G52: =Results!G52 -> 0
B53: =Results!B53 ->  | C53: =Results!C53 -> 0 | D53: =Results!D53 -> 0 | E53: =Results!E53 -> 0 | F53: =Results!F53 -> 0 | G53: =Results!G53 -> 0
B54: =Results!B54 ->  | C54: =Results!C54 -> 0 | D54: =Results!D54 -> 0 | E54: =Results!E54 -> 0 | F54: =Results!F54 -> 0 | G54: =Results!G54 -> 0
B55: =Results!B55 ->  | C55: =Results!C55 -> 0 | D55: =Results!D55 -> 0 | E55: =Results!E55 -> 0 | F55: =Results!F55 -> 0 | G55: =Results!G55 -> 0
B56: =Results!B56 -> Roadway : Roadway | C56: =Results!C56 -> 0 | D56: =Results!D56 -> 0 | E56: =Results!E56 -> 0 | F56: =Results!F56 -> 0 | G56: =Results!G56 -> 0
B57: =Results!B57 ->  | C57: =Results!C57 -> 0 | D57: =Results!D57 -> 0 | E57: =Results!E57 -> 0 | F57: =Results!F57 -> 0 | G57: =Results!G57 -> 0
B58: =Results!B58 ->  | C58: =Results!C58 -> 0 | D58: =Results!D58 -> 0 | E58: =Results!E58 -> 0 | F58: =Results!F58 -> 0 | G58: =Results!G58 -> 0
B59: =Results!B59 ->  | C59: =Results!C59 -> 0 | D59: =Results!D59 -> 0 | E59: =Results!E59 -> 0 | F59: =Results!F59 -> 0 | G59: =Results!G59 -> 0
B60: =Results!B60 ->  | C60: =Results!C60 -> 0 | D60: =Results!D60 -> 0 | E60: =Results!E60 -> 0 | F60: =Results!F60 -> 0 | G60: =Results!G60 -> 0
B61: =Results!B61 -> Industrial : Industrial | C61: =Results!C61 -> 0 | D61: =Results!D61 -> 0 | E61: =Results!E61 -> 0 | F61: =Results!F61 -> 0 | G61: =Results!G61 -> 0
B62: =Results!B62 ->  | C62: =Results!C62 -> 0 | D62: =Results!D62 -> 0 | E62: =Results!E62 -> 0 | F62: =Results!F62 -> 0 | G62: =Results!G62 -> 0
B63: =Results!B63 ->  | C63: =Results!C63 -> 0 | D63: =Results!D63 -> 0 | E63: =Results!E63 -> 0 | F63: =Results!F63 -> 0 | G63: =Results!G63 -> 0
B64: =Results!B64 ->  | C64: =Results!C64 -> 0 | D64: =Results!D64 -> 0 | E64: =Results!E64 -> 0 | F64: =Results!F64 -> 0 | G64: =Results!G64 -> 0
B65: =Results!B65 ->  | C65: =Results!C65 -> 0 | D65: =Results!D65 -> 0 | E65: =Results!E65 -> 0 | F65: =Results!F65 -> 0 | G65: =Results!G65 -> 0
B66: =Results!B66 -> Forest : Forest | C66: =Results!C66 -> 0 | D66: =Results!D66 -> 0 | E66: =Results!E66 -> 0 | F66: =Results!F66 -> 0 | G66: =Results!G66 -> 0
B67: =Results!B67 ->  | C67: =Results!C67 -> 0 | D67: =Results!D67 -> 0 | E67: =Results!E67 -> 0 | F67: =Results!F67 -> 0 | G67: =Results!G67 -> 0
B68: =Results!B68 ->  | C68: =Results!C68 -> 0 | D68: =Results!D68 -> 0 | E68: =Results!E68 -> 0 | F68: =Results!F68 -> 0 | G68: =Results!G68 -> 0
B69: =Results!B69 ->  | C69: =Results!C69 -> 0 | D69: =Results!D69 -> 0 | E69: =Results!E69 -> 0 | F69: =Results!F69 -> 0 | G69: =Results!G69 -> 0
B70: =Results!B70 ->  | C70: =Results!C70 -> 0 | D70: =Results!D70 -> 0 | E70: =Results!E70 -> 0 | F70: =Results!F70 -> 0 | G70: =Results!G70 -> 0
B71: =Results!B71 -> Rural : Rural | C71: =Results!C71 -> 0 | D71: =Results!D71 -> 0 | E71: =Results!E71 -> 0 | F71: =Results!F71 -> 0 | G71: =Results!G71 -> 0
B72: =Results!B72 ->  | C72: =Results!C72 -> 0 | D72: =Results!D72 -> 0 | E72: =Results!E72 -> 0 | F72: =Results!F72 -> 0 | G72: =Results!G72 -> 0
B73: =Results!B73 ->  | C73: =Results!C73 -> 0 | D73: =Results!D73 -> 0 | E73: =Results!E73 -> 0 | F73: =Results!F73 -> 0 | G73: =Results!G73 -> 0
B74: =Results!B74 ->  | C74: =Results!C74 -> 0 | D74: =Results!D74 -> 0 | E74: =Results!E74 -> 0 | F74: =Results!F74 -> 0 | G74: =Results!G74 -> 0
B75: =Results!B75 ->  | C75: =Results!C75 -> 0 | D75: =Results!D75 -> 0 | E75: =Results!E75 -> 0 | F75: =Results!F75 -> 0 | G75: =Results!G75 -> 0
B76: =Results!B76 ->  | C76: =Results!C76 -> 0 | D76: =Results!D76 -> 0 | E76: =Results!E76 -> 0 | F76: =Results!F76 -> 0 | G76: =Results!G76 -> 0
B77: =Results!B77 ->  | C77: =Results!C77 -> 0 | D77: =Results!D77 -> 0 | E77: =Results!E77 -> 0 | F77: =Results!F77 -> 0 | G77: =Results!G77 -> 0
B78: =Results!B78 ->  | C78: =Results!C78 -> 0 | D78: =Results!D78 -> 0 | E78: =Results!E78 -> 0 | F78: =Results!F78 -> 0 | G78: =Results!G78 -> 0
B79: =Results!B79 ->  | C79: =Results!C79 -> 0 | D79: =Results!D79 -> 0 | E79: =Results!E79 -> 0 | F79: =Results!F79 -> 0 | G79: =Results!G79 -> 0
B80: =Results!B80 ->  | C80: =Results!C80 -> 0 | D80: =Results!D80 -> 0 | E80: =Results!E80 -> 0 | F80: =Results!F80 -> 0 | G80: =Results!G80 -> 0
B81: =Results!B81 -> Open Water | C81: =Results!C81 -> 0 | D81: =Results!D81 -> 0 | E81: =Results!E81 -> 0 | F81: =Results!F81 -> 0 | G81: =Results!G81 -> 0
B82: =Results!B82 -> Active Construction | C82: =Results!C82 -> 0 | D82: =Results!D82 -> 0 | E82: =Results!E82 -> 0 | F82: =Results!F82 -> 0 | G82: =Results!G82 -> 0
B83: =Results!B83 -> Total Surface Water Primary Source Load | C83: =Results!C83 -> 0 | D83: =Results!D83 -> 0 | E83: =Results!E83 -> 0 | F83: =Results!F83 -> 0 | G83: =Results!G83 -> 0
B84: =Results!B84 -> Primary Source Storm Load | C84: =Results!C84 -> 0 | D84: =Results!D84 -> 0 | E84: =Results!E84 -> 0 | F84: =Results!F84 -> 0 | G84: =Results!G84 -> 0
B85: =Results!B85 -> Primary Source Non-Stormwater Load | C85: =Results!C85 -> 0 | D85: =Results!D85 -> 0 | E85: =Results!E85 -> 0 | F85: =Results!F85 -> 0 | G85: =Results!G85 -> 0
B86: =Results!B86 -> Secondary Sources | C86: =Results!C86 -> 0 | D86: =Results!D86 -> 0 | E86: =Results!E86 -> 0 | F86: =Results!F86 -> 0 | G86: =Results!G86 -> 0
B87: =Results!B87 -> Secondary Load to Surface Waters | C87: =Results!C87 -> 0 | D87: =Results!D87 -> 0 | E87: =Results!E87 -> 0 | F87: =Results!F87 -> 0 | G87: =Results!G87 -> 0
B88: =Results!B88 -> OSDSs - Surface | C88: =Results!C88 -> 0 | D88: =Results!D88 -> 0 | E88: =Results!E88 -> 0 | F88: =Results!F88 -> 0 | G88: =Results!G88 -> 0
B89: =Results!B89 -> SSOs | C89: =Results!C89 -> 0 | D89: =Results!D89 -> 0 | E89: =Results!E89 -> 0 | F89: =Results!F89 -> 0 | G89: =Results!G89 -> 0
B90: =Results!B90 -> CSOs | C90: =Results!C90 -> 0 | D90: =Results!D90 -> 0 | E90: =Results!E90 -> 0 | F90: =Results!F90 -> 0 | G90: =Results!G90 -> 0
B91: =Results!B91 -> Illicit Connections | C91: =Results!C91 -> 0 | D91: =Results!D91 -> 0 | E91: =Results!E91 -> 0 | F91: =Results!F91 -> 0 | G91: =Results!G91 -> 0
B92: =Results!B92 -> Channel Erosion | C92: =Results!C92 -> 0 | D92: =Results!D92 -> 0 | E92: =Results!E92 -> 0 | F92: =Results!F92 -> 0 | G92: =Results!G92 -> 0
B93: =Results!B93 -> Hobby Farms/Livestock | C93: =Results!C93 -> 0 | D93: =Results!D93 -> 0 | E93: =Results!E93 -> 0 | F93: =Results!F93 -> 0 | G93: =Results!G93 -> 0
B94: =Results!B94 -> Marinas | C94: =Results!C94 -> 0 | D94: =Results!D94 -> 0 | E94: =Results!E94 -> 0 | F94: =Results!F94 -> 0 | G94: =Results!G94 -> 0
B95: =Results!B95 -> Road Sanding | C95: =Results!C95 -> 0 | D95: =Results!D95 -> 0 | E95: =Results!E95 -> 0 | F95: =Results!F95 -> 0 | G95: =Results!G95 -> 0
B96: =Results!B96 -> Point Source Discharges | C96: =Results!C96 -> 0 | D96: =Results!D96 -> 0 | E96: =Results!E96 -> 0 | F96: =Results!F96 -> 0 | G96: =Results!G96 -> 0
B97: =Results!B97 -> Total Surface Water Secondary Source Surface Load | C97: =Results!C97 -> 0 | D97: =Results!D97 -> 0 | E97: =Results!E97 -> 0 | F97: =Results!F97 -> 0 | G97: =Results!G97 -> 0
B98: =Results!B98 -> Secondary Source Storm Load | C98: =Results!C98 -> 0 | D98: =Results!D98 -> 0 | E98: =Results!E98 -> 0 | F98: =Results!F98 -> 0 | G98: =Results!G98 -> 0
B99: =Results!B99 -> Secondary Source Non-Stormwater Load | C99: =Results!C99 -> 0 | D99: =Results!D99 -> 0 | E99: =Results!E99 -> 0 | F99: =Results!F99 -> 0 | G99: =Results!G99 -> 0
B100: =Results!B100 -> Secondary Load to Groundwater | C100: =Results!C100 -> 0 | D100: =Results!D100 -> 0 | E100: =Results!E100 -> 0 | F100: =Results!F100 -> 0 | G100: =Results!G100 -> 0
B101: =Results!B101 -> OSDSs- Subsurface | C101: =Results!C101 -> 0 | D101: =Results!D101 -> 0 | E101: =Results!E101 -> 0 | F101: =Results!F101 -> 0 | G101: =Results!G101 -> 0
B102: =Results!B102 -> Total Groundwater Load | C102: =Results!C102 -> 0 | D102: =Results!D102 -> 0 | E102: =Results!E102 -> 0 | F102: =Results!F102 -> 0 | G102: =Results!G102 -> 0
B107: =Results!B107 -> This table summarizes the pollutant load and runoff reductions achieved by practices included in the "Existing Practices" tab. The purple cells summarize the total load reduction from all practices, while the grey cells report the benefits of individual practices. Note that, while the summary table presents only the Total Surface Water loads, this table also breaks out the reductions from loads during storm events (i.e., the Storm Load) and the loads occurring during dry weather conditions (i.e., the Non-Stormwater Load). In some cases, a negative load reduction may be reported. This represents an increase in load due to a management practice such as turf management, or a contribution to groundwater from a practice that uses infiltration. | C107: =Results!C107 -> 0 | D107: =Results!D107 -> 0 | E107: =Results!E107 -> 0 | F107: =Results!F107 -> 0 | G107: =Results!G107 -> 0
B108: =Results!B108 -> Benefits (Load Reductions) of Existing Practices | C108: =Results!C108 -> 0 | D108: =Results!D108 -> 0 | E108: =Results!E108 -> 0 | F108: =Results!F108 -> 0 | G108: =Results!G108 -> 0
B109: =Results!B109 -> Reductions to Surface Water Loads
C110: =Results!C110 -> TN (lb/year) | D110: =Results!D110 -> TP (lb/year) | E110: =Results!E110 -> TSS (lb/year) | F110: =Results!F110 -> Fecal Coliform (billion/year) | G110: =Results!G110 -> Runoff Volume (acre-feet/year)
B111: =Results!B111 -> Turf Management - Surface | C111: =Results!C111 -> -0.006024395161 | D111: =Results!D111 -> -0.002078669951 | E111: =Results!E111 -> 0 | F111: =Results!F111 -> 0 | G111: =Results!G111 -> 0
B112: =Results!B112 -> Pet Waste Education | C112: =Results!C112 -> 0 | D112: =Results!D112 -> 0 | E112: =Results!E112 -> 0 | F112: =Results!F112 -> 0 | G112: =Results!G112 -> 0
B113: =Results!B113 -> Erosion and Sediment Control | C113: =Results!C113 -> 0 | D113: =Results!D113 -> 0 | E113: =Results!E113 -> 0 | F113: =Results!F113 -> 0 | G113: =Results!G113 -> 0
B114: =Results!B114 -> Street Sweeping | C114: =Results!C114 -> 0 | D114: =Results!D114 -> 0 | E114: =Results!E114 -> 0 | F114: =Results!F114 -> 0 | G114: =Results!G114 -> 0
B115: =Results!B115 -> Street Sweeping - Sanding | C115: =Results!C115 -> 0 | D115: =Results!D115 -> 0 | E115: =Results!E115 -> 0 | F115: =Results!F115 -> 0 | G115: =Results!G115 -> 0
B116: =Results!B116 -> Structural Stormwater Management Practices | C116: =Results!C116 -> 0 | D116: =Results!D116 -> 0 | E116: =Results!E116 -> 0 | F116: =Results!F116 -> 0 | G116: =Results!G116 -> 0
B117: =Results!B117 -> Riparian Buffers | C117: =Results!C117 -> 0 | D117: =Results!D117 -> 0 | E117: =Results!E117 -> 0 | F117: =Results!F117 -> 0 | G117: =Results!G117 -> 0
B118: =Results!B118 -> Catch Basin Cleanouts | C118: =Results!C118 -> 0 | D118: =Results!D118 -> 0 | E118: =Results!E118 -> 0 | F118: =Results!F118 -> 0 | G118: =Results!G118 -> 0
B119: =Results!B119 -> Marina Pumpouts | C119: =Results!C119 -> 0 | D119: =Results!D119 -> 0 | E119: =Results!E119 -> 0 | F119: =Results!F119 -> 0 | G119: =Results!G119 -> 0
B120: =Results!B120 -> Total Surface Water Reduction | C120: =Results!C120 -> -0.006024395161 | D120: =Results!D120 -> -0.002078669951 | E120: =Results!E120 -> 0 | F120: =Results!F120 -> 0 | G120: =Results!G120 -> 0
B121: =Results!B121 -> Storm Reduction | C121: =Results!C121 -> -0.006024395161 | D121: =Results!D121 -> -0.002078669951 | E121: =Results!E121 -> 0 | F121: =Results!F121 -> 0 | G121: =Results!G121 -> 0
B122: =Results!B122 -> Non-Storm Reduction | C122: =Results!C122 -> 0 | D122: =Results!D122 -> 0 | E122: =Results!E122 -> 0 | F122: =Results!F122 -> 0 | G122: =Results!G122 -> 0
B123: =Results!B123 -> Reductions to Groundwater Loads | C123: =Results!C123 -> 0 | D123: =Results!D123 -> 0 | E123: =Results!E123 -> 0 | F123: =Results!F123 -> 0 | G123: =Results!G123 -> 0
B124: =Results!B124 -> Turf Management | C124: =Results!C124 -> -0.06128165323 | D124: =Results!D124 -> -0.00433137931 | E124: =Results!E124 -> 0 | F124: =Results!F124 -> 0 | G124: =Results!G124 -> 0
B125: =Results!B125 -> Riparian Buffers | C125: =Results!C125 -> 0 | D125: =Results!D125 -> 0 | E125: =Results!E125 -> 0 | F125: =Results!F125 -> 0 | G125: =Results!G125 -> 0
B126: =Results!B126 -> Structural Stormwater Management Practices | C126: =Results!C126 -> 0 | D126: =Results!D126 -> 0 | E126: =Results!E126 -> 0 | F126: =Results!F126 -> 0 | G126: =Results!G126 -> 0
B127: =Results!B127 -> Total Groundwater Reduction | C127: =Results!C127 -> -0.06128165323 | D127: =Results!D127 -> -0.00433137931 | E127: =Results!E127 -> 0 | F127: =Results!F127 -> 0 | G127: =Results!G127 -> 0
B129: =Results!B129 -> This table summarizes the pollutant loads and runoff volumes in the Existing Condition, which includes the loads on the "Sources" tab, minus the benefits of the practices on the "Existing Practices" tab. The purple cells summarize loads from each broad category of sources. Note that, while the summary table presents only the Total Surface Water loads, this table also breaks out the difference between loads during storm events (i.e., the Storm Load) and the loads occurring during dry weather conditions (i.e., the Non-Stormwater Load).Also note that the "Urban Land" category represents a summary of all residential, commercial, industrial and transportation land uses included in the "Sources" tab, minus all practices that reduce the load from urban Primary Sources. | C129: =Results!C129 -> 0 | D129: =Results!D129 -> 0 | E129: =Results!E129 -> 0 | F129: =Results!F129 -> 0 | G129: =Results!G129 -> 0
B130: =Results!B130 -> Loads with Existing Practices | C130: =Results!C130 -> 0 | D130: =Results!D130 -> 0 | E130: =Results!E130 -> 0 | F130: =Results!F130 -> 0 | G130: =Results!G130 -> 0
C131: =Results!C131 -> TN (lb/year) | D131: =Results!D131 -> TP (lb/year) | E131: =Results!E131 -> TSS (lb/year) | F131: =Results!F131 -> Fecal Coliform (billion/year) | G131: =Results!G131 -> Runoff Volume (acre-feet/year)
B132: =Results!B132 -> Loads to Surface Waters | C132: =Results!C132 -> 0 | D132: =Results!D132 -> 0 | E132: =Results!E132 -> 0 | F132: =Results!F132 -> 0 | G132: =Results!G132 -> 0
B133: =Results!B133 -> Urban Land | C133: =Results!C133 -> 0.006024395161 | D133: =Results!D133 -> 0.002078669951 | E133: =Results!E133 -> 0 | F133: =Results!F133 -> 0 | G133: =Results!G133 -> 0
B134: =Results!B134 -> Active Construction | C134: =Results!C134 -> 0 | D134: =Results!D134 -> 0 | E134: =Results!E134 -> 0 | F134: =Results!F134 -> 0 | G134: =Results!G134 -> 0
B135: =Results!B135 -> SSOs | C135: =Results!C135 -> 0 | D135: =Results!D135 -> 0 | E135: =Results!E135 -> 0 | F135: =Results!F135 -> 0 | G135: =Results!G135 -> 0
B136: =Results!B136 -> CSOs | C136: =Results!C136 -> 0 | D136: =Results!D136 -> 0 | E136: =Results!E136 -> 0 | F136: =Results!F136 -> 0 | G136: =Results!G136 -> 0
B137: =Results!B137 -> Channel Erosion | C137: =Results!C137 -> 0 | D137: =Results!D137 -> 0 | E137: =Results!E137 -> 0 | F137: =Results!F137 -> 0 | G137: =Results!G137 -> 0
B138: =Results!B138 -> Road Sanding | C138: =Results!C138 -> 0 | D138: =Results!D138 -> 0 | E138: =Results!E138 -> 0 | F138: =Results!F138 -> 0 | G138: =Results!G138 -> 0
B139: =Results!B139 -> Forest | C139: =Results!C139 -> 0 | D139: =Results!D139 -> 0 | E139: =Results!E139 -> 0 | F139: =Results!F139 -> 0 | G139: =Results!G139 -> 0
B140: =Results!B140 -> Rural Land | C140: =Results!C140 -> 0 | D140: =Results!D140 -> 0 | E140: =Results!E140 -> 0 | F140: =Results!F140 -> 0 | G140: =Results!G140 -> 0
B141: =Results!B141 -> Livestock | C141: =Results!C141 -> 0 | D141: =Results!D141 -> 0 | E141: =Results!E141 -> 0 | F141: =Results!F141 -> 0 | G141: =Results!G141 -> 0
B142: =Results!B142 -> Illicit Connections | C142: =Results!C142 -> 0 | D142: =Results!D142 -> 0 | E142: =Results!E142 -> 0 | F142: =Results!F142 -> 0 | G142: =Results!G142 -> 0
B143: =Results!B143 -> Marinas | C143: =Results!C143 -> 0 | D143: =Results!D143 -> 0 | E143: =Results!E143 -> 0 | F143: =Results!F143 -> 0 | G143: =Results!G143 -> 0
B144: =Results!B144 -> Point Sources | C144: =Results!C144 -> 0 | D144: =Results!D144 -> 0 | E144: =Results!E144 -> 0 | F144: =Results!F144 -> 0 | G144: =Results!G144 -> 0
B145: =Results!B145 -> OSDS - Surface | C145: =Results!C145 -> 0 | D145: =Results!D145 -> 0 | E145: =Results!E145 -> 0 | F145: =Results!F145 -> 0 | G145: =Results!G145 -> 0
B146: =Results!B146 -> Open Water | C146: =Results!C146 -> 0 | D146: =Results!D146 -> 0 | E146: =Results!E146 -> 0 | F146: =Results!F146 -> 0 | G146: =Results!G146 -> 0
B147: =Results!B147 -> Total Surface Water Load | C147: =Results!C147 -> 0.006024395161 | D147: =Results!D147 -> 0.002078669951 | E147: =Results!E147 -> 0 | F147: =Results!F147 -> 0 | G147: =Results!G147 -> 0
B148: =Results!B148 -> Total Storm Load | C148: =Results!C148 -> 0.006024395161 | D148: =Results!D148 -> 0.002078669951 | E148: =Results!E148 -> 0 | F148: =Results!F148 -> 0 | G148: =Results!G148 -> 0
B149: =Results!B149 -> Total Non-Storm Load | C149: =Results!C149 -> 0 | D149: =Results!D149 -> 0 | E149: =Results!E149 -> 0 | F149: =Results!F149 -> 0 | G149: =Results!G149 -> 0
B150: =Results!B150 -> Groundwater Loads | C150: =Results!C150 -> 0 | D150: =Results!D150 -> 0 | E150: =Results!E150 -> 0 | F150: =Results!F150 -> 0 | G150: =Results!G150 -> 0
B151: =Results!B151 -> Urban Land | C151: =Results!C151 -> 0.06128165323 | D151: =Results!D151 -> 0.00433137931 | E151: =Results!E151 -> 0 | F151: =Results!F151 -> 0 | G151: =Results!G151 -> 0
B152: =Results!B152 -> OSDS - Subsurface | C152: =Results!C152 -> 0 | D152: =Results!D152 -> 0 | E152: =Results!E152 -> 0 | F152: =Results!F152 -> 0 | G152: =Results!G152 -> 0
B153: =Results!B153 -> Total Groundwater Load | C153: =Results!C153 -> 0.06128165323 | D153: =Results!D153 -> 0.00433137931 | E153: =Results!E153 -> 0 | F153: =Results!F153 -> 0 | G153: =Results!G153 -> 0
B155: =Results!B155 -> Future Practices | C155: =Results!C155 -> 0 | D155: =Results!D155 -> 0 | E155: =Results!E155 -> 0 | F155: =Results!F155 -> 0 | G155: =Results!G155 -> 0
B156: =Results!B156 -> This table summarizes the Net pollutant load and runoff reductions achieved by practices included in the "Future Practices" tab. The reductions presented in this table include only the benefits beyond the practices already in place in the Existing Conditions. So, for example, an improvement to an existing education program would include only the additional load reduction achieved by improving the program. The purple cells summarize the total load reduction from all practices, while the grey cells report the benefits of individual practices. Note that, while the summary table presents only the Total Surface Water loads, this table also breaks out the reductions from loads during storm events (i.e., the Storm Load) and the loads occurring during dry weather conditions (i.e., the Non-Stormwater Load). In some cases, a negative load reduction may be reported. This represents an increase in load, which would occur if a program or practice was made less effective in the future condition. | C156: =Results!C156 -> 0 | D156: =Results!D156 -> 0 | E156: =Results!E156 -> 0 | F156: =Results!F156 -> 0 | G156: =Results!G156 -> 0
B157: =Results!B157 -> Net Benefit (Load Reductions) of Future Practices | C157: =Results!C157 -> 0 | D157: =Results!D157 -> 0 | E157: =Results!E157 -> 0 | F157: =Results!F157 -> 0 | G157: =Results!G157 -> 0
C158: =Results!C158 -> TN (lbs/year) | D158: =Results!D158 -> TP (lbs/year) | E158: =Results!E158 -> TSS (lbs/year) | F158: =Results!F158 -> Bacteria (billion/year) | G158: =Results!G158 -> Runoff Reduction (acre-ft/yr)
B159: =Results!B159 -> Reductions to Surface Water Loads
B160: =Results!B160 -> Lawn Care Education Surface | C160: =Results!C160 -> 0 | D160: =Results!D160 -> 0 | E160: =Results!E160 -> 0 | F160: =Results!F160 -> 0 | G160: =Results!G160 -> 0
B161: =Results!B161 -> Pet Waste Education | C161: =Results!C161 -> 0 | D161: =Results!D161 -> 0 | E161: =Results!E161 -> 0 | F161: =Results!F161 -> 0 | G161: =Results!G161 -> 0
B162: =Results!B162 -> Erosion and Sediment Control | C162: =Results!C162 -> 0 | D162: =Results!D162 -> 0 | E162: =Results!E162 -> 0 | F162: =Results!F162 -> 0 | G162: =Results!G162 -> 0
B163: =Results!B163 -> Street Sweeping | C163: =Results!C163 -> 0 | D163: =Results!D163 -> 0 | E163: =Results!E163 -> 0 | F163: =Results!F163 -> 0 | G163: =Results!G163 -> 0
B164: =Results!B164 -> Street Sweeping - Sanding | C164: =Results!C164 -> 0 | D164: =Results!D164 -> 0 | E164: =Results!E164 -> 0 | F164: =Results!F164 -> 0 | G164: =Results!G164 -> 0
B165: =Results!B165 -> Riparian Buffers | C165: =Results!C165 -> 0 | D165: =Results!D165 -> 0 | E165: =Results!E165 -> 0 | F165: =Results!F165 -> 0 | G165: =Results!G165 -> 0
B166: =Results!B166 -> Catch Basin Cleanouts | C166: =Results!C166 -> 0 | D166: =Results!D166 -> 0 | E166: =Results!E166 -> 0 | F166: =Results!F166 -> 0 | G166: =Results!G166 -> 0
B167: =Results!B167 -> Marina Pumpouts | C167: =Results!C167 -> 0 | D167: =Results!D167 -> 0 | E167: =Results!E167 -> 0 | F167: =Results!F167 -> 0 | G167: =Results!G167 -> 0
B168: =Results!B168 -> Urban Downsizing | C168: =Results!C168 -> 0 | D168: =Results!D168 -> 0 | E168: =Results!E168 -> 0 | F168: =Results!F168 -> 0 | G168: =Results!G168 -> 0
B169: =Results!B169 -> Redevelopment With Improvements | C169: =Results!C169 -> 0 | D169: =Results!D169 -> 0 | E169: =Results!E169 -> 0 | F169: =Results!F169 -> 0 | G169: =Results!G169 -> 0
B170: =Results!B170 -> Stormwater Retrofits | C170: =Results!C170 -> 0 | D170: =Results!D170 -> 0 | E170: =Results!E170 -> 0 | F170: =Results!F170 -> 0 | G170: =Results!G170 -> 0
B171: =Results!B171 -> Illicit Connection Removal | C171: =Results!C171 -> 0 | D171: =Results!D171 -> 0 | E171: =Results!E171 -> 0 | F171: =Results!F171 -> 0 | G171: =Results!G171 -> 0
B172: =Results!B172 -> CSO Repair/ Abatement | C172: =Results!C172 -> 0 | D172: =Results!D172 -> 0 | E172: =Results!E172 -> 0 | F172: =Results!F172 -> 0 | G172: =Results!G172 -> 0
B173: =Results!B173 -> SSO Repair/ Abatement | C173: =Results!C173 -> 0 | D173: =Results!D173 -> 0 | E173: =Results!E173 -> 0 | F173: =Results!F173 -> 0 | G173: =Results!G173 -> 0
B174: =Results!B174 -> OSDS Programs - Surface | C174: =Results!C174 -> 0 | D174: =Results!D174 -> 0 | E174: =Results!E174 -> 0 | F174: =Results!F174 -> 0 | G174: =Results!G174 -> 0
B175: =Results!B175 -> Stream Restoration | C175: =Results!C175 -> 0 | D175: =Results!D175 -> 0 | E175: =Results!E175 -> 0 | F175: =Results!F175 -> 0 | G175: =Results!G175 -> 0
B176: =Results!B176 -> Point Source Reduction | C176: =Results!C176 -> 0 | D176: =Results!D176 -> 0 | E176: =Results!E176 -> 0 | F176: =Results!F176 -> 0 | G176: =Results!G176 -> 0
B177: =Results!B177 -> Total Surface Water Reduction | C177: =Results!C177 -> 0 | D177: =Results!D177 -> 0 | E177: =Results!E177 -> 0 | F177: =Results!F177 -> 0 | G177: =Results!G177 -> 0
B178: =Results!B178 -> Storm Load Reduction | C178: =Results!C178 -> 0 | D178: =Results!D178 -> 0 | E178: =Results!E178 -> 0 | F178: =Results!F178 -> 0 | G178: =Results!G178 -> 0
B179: =Results!B179 -> Non-Storm Load Reduction | C179: =Results!C179 -> 0 | D179: =Results!D179 -> 0 | E179: =Results!E179 -> 0 | F179: =Results!F179 -> 0 | G179: =Results!G179 -> 0
B180: =Results!B180 -> Reductions to Groundwater Loads
B181: =Results!B181 -> Urban Turf | C181: =Results!C181 -> 0 | D181: =Results!D181 -> 0 | E181: =Results!E181 -> 0 | F181: =Results!F181 -> 0 | G181: =Results!G181 -> 0
B182: =Results!B182 -> Riparian Buffers | C182: =Results!C182 -> 0 | D182: =Results!D182 -> 0 | E182: =Results!E182 -> 0 | F182: =Results!F182 -> 0 | G182: =Results!G182 -> 0
B183: =Results!B183 -> Stormwater Retrofits | C183: =Results!C183 -> 0 | D183: =Results!D183 -> 0 | E183: =Results!E183 -> 0 | F183: =Results!F183 -> 0 | G183: =Results!G183 -> 0
B184: =Results!B184 -> OSDSs | C184: =Results!C184 -> 0 | D184: =Results!D184 -> 0 | E184: =Results!E184 -> 0 | F184: =Results!F184 -> 0 | G184: =Results!G184 -> 0
B185: =Results!B185 -> Total Groundwater Load Reduction | C185: =Results!C185 -> 0 | D185: =Results!D185 -> 0 | E185: =Results!E185 -> 0 | F185: =Results!F185 -> 0 | G185: =Results!G185 -> 0
B187: =Results!B187 -> This table summarizes the pollutant loads and runoff volumes in the Future Condition, which includes the loads on the "Sources" tab, minus the benefits of the practices on the "Existing Practices" and "Future Practices" tabs. The purple cells summarize loads from each broad category of sources. Note that, while the summary table presents only the Total Surface Water loads, this table also breaks out the difference between loads during storm events (i.e., the Storm Load) and the loads occurring during dry weather conditions (i.e., the Non-Stormwater Load).Also note that the "Urban Land" category represents a summary of all residential, commercial, industrial and transportation land uses included in the "Sources" tab, minus all practices that reduce the load from urban Primary Sources. | C187: =Results!C187 -> 0 | D187: =Results!D187 -> 0 | E187: =Results!E187 -> 0 | F187: =Results!F187 -> 0 | G187: =Results!G187 -> 0
B188: =Results!B188 -> Loads with Future Practices in Place | C188: =Results!C188 -> 0 | D188: =Results!D188 -> 0 | E188: =Results!E188 -> 0 | F188: =Results!F188 -> 0 | G188: =Results!G188 -> 0
C189: =Results!C189 -> TN (lb/year) | D189: =Results!D189 -> TP (lb/year) | E189: =Results!E189 -> TSS (lb/year) | F189: =Results!F189 -> Fecal Coliform (billion/year) | G189: =Results!G189 -> Runoff Volume (acre-feet/year)
B190: =Results!B190 -> Loads to Surface Waters | C190: =Results!C190 -> 0 | D190: =Results!D190 -> 0 | E190: =Results!E190 -> 0 | F190: =Results!F190 -> 0 | G190: =Results!G190 -> 0
B191: =Results!B191 -> Urban Land | C191: =Results!C191 -> 0.006024395161 | D191: =Results!D191 -> 0.002078669951 | E191: =Results!E191 -> 0 | F191: =Results!F191 -> 0 | G191: =Results!G191 -> 0
B192: =Results!B192 -> Active Construction | C192: =Results!C192 -> 0 | D192: =Results!D192 -> 0 | E192: =Results!E192 -> 0 | F192: =Results!F192 -> 0 | G192: =Results!G192 -> 0
B193: =Results!B193 -> SSOs | C193: =Results!C193 -> 0 | D193: =Results!D193 -> 0 | E193: =Results!E193 -> 0 | F193: =Results!F193 -> 0 | G193: =Results!G193 -> 0
B194: =Results!B194 -> CSOs | C194: =Results!C194 -> 0 | D194: =Results!D194 -> 0 | E194: =Results!E194 -> 0 | F194: =Results!F194 -> 0 | G194: =Results!G194 -> 0
B195: =Results!B195 -> Channel Erosion | C195: =Results!C195 -> 0 | D195: =Results!D195 -> 0 | E195: =Results!E195 -> 0 | F195: =Results!F195 -> 0 | G195: =Results!G195 -> 0
B196: =Results!B196 -> Road Sanding | C196: =Results!C196 -> 0 | D196: =Results!D196 -> 0 | E196: =Results!E196 -> 0 | F196: =Results!F196 -> 0 | G196: =Results!G196 -> 0
B197: =Results!B197 -> Forest | C197: =Results!C197 -> 0 | D197: =Results!D197 -> 0 | E197: =Results!E197 -> 0 | F197: =Results!F197 -> 0 | G197: =Results!G197 -> 0
B198: =Results!B198 -> Rural Land | C198: =Results!C198 -> 0 | D198: =Results!D198 -> 0 | E198: =Results!E198 -> 0 | F198: =Results!F198 -> 0 | G198: =Results!G198 -> 0
B199: =Results!B199 -> Livestock | C199: =Results!C199 -> 0 | D199: =Results!D199 -> 0 | E199: =Results!E199 -> 0 | F199: =Results!F199 -> 0 | G199: =Results!G199 -> 0
B200: =Results!B200 -> Illicit Connections | C200: =Results!C200 -> 0 | D200: =Results!D200 -> 0 | E200: =Results!E200 -> 0 | F200: =Results!F200 -> 0 | G200: =Results!G200 -> 0
B201: =Results!B201 -> Marinas | C201: =Results!C201 -> 0 | D201: =Results!D201 -> 0 | E201: =Results!E201 -> 0 | F201: =Results!F201 -> 0 | G201: =Results!G201 -> 0
B202: =Results!B202 -> Point Sources | C202: =Results!C202 -> 0 | D202: =Results!D202 -> 0 | E202: =Results!E202 -> 0 | F202: =Results!F202 -> 0 | G202: =Results!G202 -> 0
B203: =Results!B203 -> OSDS - Surface | C203: =Results!C203 -> 0 | D203: =Results!D203 -> 0 | E203: =Results!E203 -> 0 | F203: =Results!F203 -> 0 | G203: =Results!G203 -> 0
B204: =Results!B204 -> Open Water | C204: =Results!C204 -> 0 | D204: =Results!D204 -> 0 | E204: =Results!E204 -> 0 | F204: =Results!F204 -> 0 | G204: =Results!G204 -> 0
B205: =Results!B205 -> Total Surface Water Load | C205: =Results!C205 -> 0.006024395161 | D205: =Results!D205 -> 0.002078669951 | E205: =Results!E205 -> 0 | F205: =Results!F205 -> 0 | G205: =Results!G205 -> 0
B206: =Results!B206 -> Total Storm Load | C206: =Results!C206 -> 0.006024395161 | D206: =Results!D206 -> 0.002078669951 | E206: =Results!E206 -> 0 | F206: =Results!F206 -> 0 | G206: =Results!G206 -> 0
B207: =Results!B207 -> Total Non-Storm Load | C207: =Results!C207 -> 0 | D207: =Results!D207 -> 0 | E207: =Results!E207 -> 0 | F207: =Results!F207 -> 0 | G207: =Results!G207 -> 0
B208: =Results!B208 -> Groundwater Loads | C208: =Results!C208 -> 0 | D208: =Results!D208 -> 0 | E208: =Results!E208 -> 0 | F208: =Results!F208 -> 0 | G208: =Results!G208 -> 0
B209: =Results!B209 -> Urban Land | C209: =Results!C209 -> 0.06128165323 | D209: =Results!D209 -> 0.00433137931 | E209: =Results!E209 -> 0 | F209: =Results!F209 -> 0 | G209: =Results!G209 -> 0
B210: =Results!B210 -> OSDSs | C210: =Results!C210 -> 0 | D210: =Results!D210 -> 0 | E210: =Results!E210 -> 0 | F210: =Results!F210 -> 0 | G210: =Results!G210 -> 0
B211: =Results!B211 -> Total Groundwater Load | C211: =Results!C211 -> 0.06128165323 | D211: =Results!D211 -> 0.00433137931 | E211: =Results!E211 -> 0 | F211: =Results!F211 -> 0 | G211: =Results!G211 -> 0
B215: =Results!B215 -> Loads With New Development | C215: =Results!C215 -> 0 | D215: =Results!D215 -> 0 | E215: =Results!E215 -> 0 | F215: =Results!F215 -> 0 | G215: =Results!G215 -> 0
B217: =Results!B217 -> This table summarizes the pollutant loads and runoff volumes in the Existing Condition, which includes the loads on the "Sources" tab, minus the benefits of the practices on the "Existing Practices" and "Future Practices" tabs. The purple cells summarize loads from each broad category of sources. Note that, while the summary table presents only the Total Surface Water loads, this table also breaks out the difference between loads during storm events (i.e., the Storm Load) and the loads occurring during dry weather conditions (i.e., the Non-Stormwater Load).Also note that the "Urban Land" category represents a summary of all residential, commercial, industrial and transportation land uses included in the "Sources" tab, minus all practices that reduce the load from urban Primary Sources.
B218: =Results!B218 -> Loads to Surface Waters with Projected New Development
C219: =Results!C219 -> TN | D219: =Results!D219 -> TP | E219: =Results!E219 -> TSS | F219: =Results!F219 -> Fecal Coliform | G219: =Results!G219 -> Runoff Volume
B220: =Results!B220 -> Surface Water Loads
B221: =Results!B221 -> Urban Land
B222: =Results!B222 -> Active Construction
B223: =Results!B223 -> SSOs
... 18 more rows

Sheet Defaults (hidden)
B19: On this sheet, you may change default values by modifying the blue cells. In addition, you may add land use categories by adding a description in the "Detailed Description" category, along with an associated impervious cover. In addition, you may add new BMPs by entering data in the "User Defined" row of the BMP Efficiency Defaults.
B20: Source Related
B22: PRIMARY SOURCES - Land Use | F22: Concentrations | J22: Annual Loading Rates
B23: Watershed | D23: Impervious Cover (%) | E23: Turf Cover (%) | F23: TN | G23: TP | H23: TSS | I23: FC | J23: TN | K23: TP | L23: TSS | M23: FC
B24: Category | C24: Detailed Description | F24: (mg/l) | G24: (mg/l) | H24: (mg/l) | I24: (MPN/100 ml) | J24: (lb/acre) | K24: (lb/acre) | L24: (lbs/acre) | M24: (# billion/acre)
B25: Residential | C25: LDR (<1du/acre) | D25: 0.12 | E25: =IF(D25>0,(1-D25)*0.8,0) -> 0.704 | F25: 2.1 | G25: 0.31 | H25: 49 | I25: 20000
B26: Residential | C26: MDR (1-4 du/acre) | D26: 0.21 | E26: 0.632 | F26: 2.1 | G26: 0.31 | H26: 49 | I26: 20000
B27: Residential | C27: HDR (>4 du/acre) | D27: 0.33 | E27: 0.536 | F27: 2.1 | G27: 0.31 | H27: 49 | I27: 20000
B28: Residential | C28: Multifamily | D28: 0.44 | E28: 0.448 | F28: 2.1 | G28: 0.31 | H28: 49 | I28: 20000
B29: Residential | E29: 0 | F29: 2.1 | G29: 0.31 | H29: 49 | I29: 20000
B30: Residential | E30: 0 | F30: 2.1 | G30: 0.31 | H30: 49 | I30: 20000
B31: Residential | E31: 0 | F31: 2.1 | G31: 0.31 | H31: 49 | I31: 20000
B32: Residential | E32: 0 | F32: 2.1 | G32: 0.31 | H32: 49 | I32: 20000
B33: Residential | E33: 0 | F33: 2.1 | G33: 0.31 | H33: 49 | I33: 20000
B34: Residential | E34: 0 | F34: 2.1 | G34: 0.31 | H34: 49 | I34: 20000
B35: Commercial | C35: Commercial | D35: 0.72 | E35: 0.224 | F35: 2.1 | G35: 0.22 | H35: 43 | I35: 20000
B36: Commercial | E36: 0 | F36: 2.1 | G36: 0.22 | H36: 43 | I36: 20000
B37: Commercial | E37: 0 | F37: 2.1 | G37: 0.22 | H37: 43 | I37: 20000
B38: Commercial | E38: 0 | F38: 2.1 | G38: 0.22 | H38: 43 | I38: 20000
B39: Commercial | E39: 0 | F39: 2.1 | G39: 0.22 | H39: 43 | I39: 20000
B40: Roadway | C40: Roadway | D40: 0.8 | E40: 0.16 | F40: 2.3 | G40: 0.25 | H40: 134 | I40: 20000
B41: Roadway | E41: 0 | F41: 2.3 | G41: 0.25 | H41: 134 | I41: 20000
B42: Roadway | E42: 0 | F42: 2.3 | G42: 0.25 | H42: 134 | I42: 20000
B43: Roadway | E43: 0 | F43: 2.3 | G43: 0.25 | H43: 134 | I43: 20000
B44: Roadway | E44: 0 | F44: 2.3 | G44: 0.25 | H44: 134 | I44: 20000
B45: Industrial | C45: Industrial | D45: 0.53 | E45: 0.376 | F45: 2.2 | G45: 0.25 | H45: 81 | I45: 20000
B46: Industrial | E46: 0 | F46: 2.2 | G46: 0.25 | H46: 81 | I46: 20000
B47: Industrial | E47: 0 | F47: 2.2 | G47: 0.25 | H47: 81 | I47: 20000
B48: Industrial | E48: 0 | F48: 2.2 | G48: 0.25 | H48: 81 | I48: 20000
B49: Industrial | E49: 0 | F49: 2.2 | G49: 0.25 | H49: 81 | I49: 20000
B50: Forest | C50: Forest | J50: 2.5 | K50: 0.2 | L50: 100 | M50: 12
B51: Forest | J51: 2.5 | K51: 0.2 | L51: 100 | M51: 12
B52: Forest | J52: 2.5 | K52: 0.2 | L52: 100 | M52: 12
B53: Forest | J53: 2.5 | K53: 0.2 | L53: 100 | M53: 12
B54: Forest | J54: 2.5 | K54: 0.2 | L54: 100 | M54: 12
B55: Rural | C55: Rural | J55: 4.6 | K55: 0.7 | L55: 100 | M55: 39
B56: Rural | J56: 4.6 | K56: 0.7 | L56: 100 | M56: 39
B57: Rural | J57: 4.6 | K57: 0.7 | L57: 100 | M57: 39
B58: Rural | J58: 4.6 | K58: 0.7 | L58: 100 | M58: 39
B59: Rural | J59: 4.6 | K59: 0.7 | L59: 100 | M59: 39
B60: Rural | J60: 4.6 | K60: 0.7 | L60: 100 | M60: 39
B61: Rural | J61: 4.6 | K61: 0.7 | L61: 100 | M61: 39
B62: Rural | J62: 4.6 | K62: 0.7 | L62: 100 | M62: 39
B63: Rural | J63: 4.6 | K63: 0.7 | L63: 100 | M63: 39
B64: Rural | J64: 4.6 | K64: 0.7 | L64: 100 | M64: 39
B65: Open Water | C65: Open Water | J65: 12.8 | K65: 0.5 | L65: =155 -> 155
B66: Active Construction | C66: Active Construction | F66: 1 | G66: 0.2 | H66: 680 | I66: 0
B69: Partitioning Coefficients for Rural and Forest Land
B70: Pollutant | C70: TN | D70: TP | E70: TSS | F70: FC
B71: Fraction as Storm Load | C71: 0.5 | D71: 0.7 | E71: 0.9 | F71: 1
B73: Soils Information | C73: Runoff Coefficients | G73: Land-Use Specific Runoff Coefficients
C74: Impervious | D74: Turf | E74: Forest | F74: Rural | G74: Active Construction | H74: =IF($C51<>"",IF($C51<>$C74,IF($C51<>$D74,IF($C51<>$E74,IF($C51<>$F74,IF($C51<>$G74,$C51,""),""),""),""),""),"") ->  | I74: =IF($C52<>"",IF($C52<>$C74,IF($C52<>$D74,IF($C52<>$E74,IF($C52<>$F74,IF($C52<>$G74,$C52,""),""),""),""),""),"") ->  | J74: =IF($C53<>"",IF($C53<>$C74,IF($C53<>$D74,IF($C53<>$E74,IF($C53<>$F74,IF($C53<>$G74,$C53,""),""),""),""),""),"") ->  | K74: =IF($C54<>"",IF($C54<>$C74,IF($C54<>$D74,IF($C54<>$E74,IF($C54<>$F74,IF($C54<>$G74,$C54,""),""),""),""),""),"") ->  | L74: =IF($C56<>"",IF($C56<>$C74,IF($C56<>$D74,IF($C56<>$E74,IF($C56<>$F74,IF($C56<>$G74,$C56,""),""),""),""),""),"") ->  | M74: =IF($C57<>"",IF($C57<>$C74,IF($C57<>$D74,IF($C57<>$E74,IF($C57<>$F74,IF($C57<>$G74,$C57,""),""),""),""),""),"") ->  | N74: =IF($C58<>"",IF($C58<>$C74,IF($C58<>$D74,IF($C58<>$E74,IF($C58<>$F74,IF($C58<>$G74,$C58,""),""),""),""),""),"") ->  | O74: =IF($C59<>"",IF($C59<>$C74,IF($C59<>$D74,IF($C59<>$E74,IF($C59<>$F74,IF($C59<>$G74,$C59,""),""),""),""),""),"") ->  | P74: =IF($C60<>"",IF($C60<>$C74,IF($C60<>$D74,IF($C60<>$E74,IF($C60<>$F74,IF($C60<>$G74,$C60,""),""),""),""),""),"") ->  | Q74: =IF($C61<>"",IF($C61<>$C74,IF($C61<>$D74,IF($C61<>$E74,IF($C61<>$F74,IF($C61<>$G74,$C61,""),""),""),""),""),"") ->  | R74: =IF($C62<>"",IF($C62<>$C74,IF($C62<>$D74,IF($C62<>$E74,IF($C62<>$F74,IF($C62<>$G74,$C62,""),""),""),""),""),"") ->  | S74: =IF($C63<>"",IF($C63<>$C74,IF($C63<>$D74,IF($C63<>$E74,IF($C63<>$F74,IF($C63<>$G74,$C63,""),""),""),""),""),"") ->  | T74: =IF($C64<>"",IF($C64<>$C74,IF($C64<>$D74,IF($C64<>$E74,IF($C64<>$F74,IF($C64<>$G74,$C64,""),""),""),""),""),"") -> 
B76: HYDROLOGIC SOIL GROUP
B77: A Soils | C77: 0.95 | D77: 0.15 | E77: 0.02 | F77: =E77 -> 0.02 | G77: 0.5 | H77: 0.1
B78: B Soils | C78: 0.95 | D78: 0.2 | E78: 0.03 | F78: =E78 -> 0.03 | G78: 0.5 | H78: 0.1
B79: C Soils | C79: 0.95 | D79: 0.22 | E79: 0.04 | F79: =E79 -> 0.04 | G79: 0.5 | H79: 0.1
B80: D Soils | C80: 0.95 | D80: 0.25 | E80: 0.05 | F80: =E80 -> 0.05 | G80: 0.5 | H80: 0.1
B82: Groundwater Depth | C82: TN | D82: TP | E82: TSS | F82: Bacteria
B83: <3 Feet | C83: 0 | D83: 0.5 | E83: 1 | F83: 0.5
B84: 3-5 Feet | C84: 0.1 | D84: 0.8 | E84: 1 | F84: 1
B85: >5 Feet | C85: 0.2 | D85: 1 | E85: 1 | F85: 1
B87: SECONDARY SOURCES
B89: Wastewater Characteristics
B90: Individuals/Dwelling Unit | C90: 2.7
B91: Water Use (gpcd) | C91: 70
B92: Pollutant | C92: TN (mg/l) | D92: TP (mg/l) | E92: TSS (mg/l) | F92: FC (MPN/100 ml)
B93: Concentration | C93: 60 | D93: 10 | E93: 400 | F93: 10000000
B95: Nutrient Concentration in Stream Channels
B96: Pollutant | C96: Soil P(%) | D96: Soil TN (%)
B97: Enrichment Factor | C97: 2 | D97: 2
B99: On-Site Sewage Disposal Systems
B101: Failure Rates | C101: =0.1+IF(Sources!C117=D115,0.1,IF(Sources!C117=D117,-0.05,0))+IF(Sources!C119=B83,0.05,0)+IF(Sources!C120=C115,0,0.05) -> 0.05
C103: Normal | D103: Adjacent to Waterway
B104: Bacteria decay | C104: =0.002 -> 0.002 | D104: 0.13
B105: Delivery ratio | C105: 0.5 | D105: 1
B107: Sytstem Type | C107: TN Efficiency | D107: TP Efficiency | E107: TSS Efficiency | F107: Bacteria Log Reduction
B108: 1.Conventional | C108: 0.28 | D108: 0.57 | E108: 0.72 | F108: 3.5
B109: 2.Intermittent Sand Filter | C109: 0.55 | D109: 0.8 | E109: 0.92 | F109: 3.2
B110: 3.Recirculating Sand Filter | C110: 0.64 | D110: 0.8 | E110: 0.9 | F110: 2.9
B111: 4.Water Separation System | C111: 0.83 | D111: 0.3 | E111: 0.6 | F111: 3
B112: 5.Other | C112: 0 | D112: 0 | E112: 0 | F112: 0
B113: On-site Sewage Disposal System Drop down options
B114: Soil Texture | C114: Density | D114: System Management
B115: Sandy | C115: <1/acre | D115: Low. No inspection at installation, no incentives or programs for ongoing maintenance.
B116: Clay/Mixed Soils | C116: 1-2/acre | D116: Medium. Inspection at installation, education to encourage ongoing maintenance
C117: >2/acre | D117: High. Inspection at installation, ongoing inspection, incentives to correct failing systems.
B120: SSOs
B121: Fraction of Load as Storm Flow | C121: 0.5
B122: Overflows/1,000 Miles of Sewer | C122: 140
B123: Volume per Overflow (gallons) | C123: 90000
B125: CSOs
B126: Capacity of CS system (rainfall depth in inches) | C126: 0.1
B127: Characteristics of CSOs
B128: TN (mg/l) | C128: 10
B129: TP (mg/l) | C129: 2
B130: TSS (mg/l) | C130: 200
B131: FC (MPN/100 ml) | C131: 6400000
B133: Illicit Connections
C134: TN | D134: TP | E134: TSS | F134: FC
B135: Wash Water Concentrations | C135: 15 | D135: 10 | E135: 150 | F135: 0
B136: Total Flow Concentrations | C136: 30 | D136: 10 | E136: 225 | F136: 3300000
C139: Urban Channel Erosion (Applies only to Urban Stream Reaches)
B140: Method 1. Estimate based on typical estimates of channel erosion rates | C140: Low: 25% of watershed sediment load. Channels largely armored, or stable. | D140: =1/3 -> 0.3333333333
B141: Method 2. Back calculate based on known watershed sediment loading | C141: Moderate: 50% of watershed sediment load. Channels show signs of degradation, with some areas of severe channel erosion. | D141: 1
B142: Method 3. Estimate based on other sediment study results | C142: High: 75% of watershed sediment load. Channels significant areas of severe channel erosion. | D142: 3
B144: Livestock | C144: % Exposed to Runoff | D144: N (lbs/animal/year) | E144: P (lbs/animal/year) | F144: Bacteria (billions/animal/year)
B145: Dairy Cattle | C145: 1 | D145: 175 | E145: 30 | F145: 2000
B146: Layers | C146: 0.15 | D146: 0.9 | E146: =100/250 -> 0.4 | F146: 88
B147: Broilers | C147: 0.15 | D147: 0.8 | E147: 0.2 | F147: 88
B148: Turkeys | C148: 0.15 | D148: 3 | E148: 0.8 | F148: 47
B149: Pigs | C149: 1 | D149: 32 | E149: 7.4 | F149: 3200
B150: Delivery Ratios | D150: 0.15 | E150: 0.1 | F150: 0.05
B153: Marinas
B154: Typical occupancy (fraction of season) | C154: 0.5
B155: flow rates (gpcd) | C155: 8
B156: individuals per boat | C156: 2
B158: Road Sanding
B159: Delivery ratio for Closed Section Roads | C159: 0.9
B160: Delivery ratio for Open Section Roads | C160: 0.35
B162: BMP Efficiencies | C162: Efficiencies | G162: Runoff Reduction (%) | M162: ET% of RO Red
B163: BMP Type | C163: TN | D163: TP | E163: TSS | F163: Bacteria | G163: C Soils | H163: D Soils | I163: A Soils | J163: B Soils | K163: C/D Soils | L163: A/B Soils
B164: Dry Water Quantity Pond | C164: 0.05 | D164: 0.1 | E164: 0.1 | F164: 0 | G164: 0 | H164: 0 | I164: 0 | J164: 0 | K164: 0 | L164: 0 | M164: 0
B165: Dry Extended Detention Pond | C165: 0.1 | D165: 0.15 | E165: 0.7 | F165: 0 | G165: 0 | H165: 0 | I165: 0.15 | J165: 0.15 | K165: 0 | L165: 0.15 | M165: 0
B166: Wet Pond | C166: 0.4 | D166: 0.75 | E166: 0.85 | F166: 0.7 | G166: 0 | H166: 0 | I166: 0 | J166: 0 | K166: 0 | L166: 0 | M166: 0
B167: Wetland | C167: 0.55 | D167: 0.75 | E167: 0.85 | F167: 0.8 | G167: 0 | H167: 0 | I167: 0 | J167: 0 | K167: 0 | L167: 0 | M167: 0
B168: Filters | C168: 0.45 | D168: 0.65 | E168: 0.9 | F168: 0.8 | G168: 0 | H168: 0 | I168: 0 | J168: 0 | K168: 0 | L168: 0 | M168: 0
B169: Green Roof | C169: 0 | D169: 0 | E169: 0 | F169: 0 | G169: 0.6 | H169: 0.6 | I169: 0.6 | J169: 0.6 | K169: 0.6 | L169: 0.6 | M169: 1
B170: Rooftop Disconnection | C170: 0 | D170: 0 | E170: 0 | F170: 0 | G170: 0.25 | H170: 0.25 | I170: 0.5 | J170: 0.5 | K170: 0.25 | L170: 0.5 | M170: 0
B171: Permeable Pavement | C171: 0.25 | D171: 0.25 | E171: 0.25 | F171: 0 | G171: 0.45 | H171: 0.45 | I171: 0.75 | J171: 0.75 | K171: 0.45 | L171: 0.75 | M171: 0
B172: Grass (open) Channel | C172: 0.2 | D172: 0.15 | E172: 0.4 | F172: 0 | G172: 0.1 | H172: 0.1 | I172: 0.2 | J172: 0.2 | K172: 0.1 | L172: 0.2 | M172: 0
B173: Dry Swale (bioswale, WQ swale) | C173: 0.35 | D173: 0.4 | E173: 0.4 | F173: 0 | G173: 0.4 | H173: 0.4 | I173: 0.6 | J173: 0.6 | K173: 0.4 | L173: 0.6 | M173: 0
B174: Wet Swale | C174: 0.35 | D174: 0.4 | E174: 0.4 | F174: 0 | G174: 0 | H174: 0 | I174: 0 | J174: 0 | K174: 0 | L174: 0 | M174: 0
B175: Raintanks and Cisterns | C175: 0 | D175: 0 | E175: 0 | F175: 0 | G175: 0.4 | H175: 0.4 | I175: 0.4 | J175: 0.4 | K175: 0.4 | L175: 0.4 | M175: 1
B176: Soil Amendments | C176: 0 | D176: 0 | E176: 0 | F176: 0 | G176: 0.75 | H176: 0.75 | I176: 0.5 | J176: 0.5 | K176: 0.75 | L176: 0.5 | M176: 0
B177: Sheetflow to Open Space (excluding riparian buffers) | C177: 0 | D177: 0 | E177: 0 | F177: 0 | G177: 0.5 | H177: 0.5 | I177: 0.75 | J177: 0.75 | K177: 0.5 | L177: 0.75 | M177: 0
B178: Grassed Filter Strips | C178: 0 | D178: 0 | E178: 0 | F178: 0 | G178: 0.5 | H178: 0.5 | I178: 0.75 | J178: 0.75 | K178: 0.5 | L178: 0.75 | M178: 0
B179: Bioretention | C179: 0.6 | D179: 0.5 | E179: 0.5 | F179: 0.5 | G179: 0.4 | H179: 0.4 | I179: 0.8 | J179: 0.8 | K179: 0.4 | L179: 0.8 | M179: 0
B180: Infiltration Practices | C180: 0.15 | D180: 0.25 | E180: 0.5 | F180: 0.85 | G180: 0.5 | H180: 0.5 | I180: 0.9 | J180: 0.9 | K180: 0.5 | L180: 0.9 | M180: 0
B181: User Defined | C181: 0 | D181: 0 | E181: 0 | F181: 0 | G181: 0 | H181: 0 | I181: 0 | J181: 0 | K181: 0 | L181: 0 | M181: 0
B182: User Defined | C182: 0 | D182: 0 | E182: 0 | F182: 0 | G182: 0 | H182: 0 | I182: 0 | J182: 0 | K182: 0 | L182: 0 | M182: 0
B185: Practice Related
B187: Turf Condition and Management Practices - Residential
B188: Typical # of Applications/Year | C188: 1.1
B189: Baseline (Recommended) Fertilizer Rate (N lb/acre) | C189: 150
B192: Form | C192: % of Fertilizer Use (N Application) | D192: N | E192: P
B193: Organic | C193: 0 | D193: 0.8 | E193: 0.3
B194: Soluble/Urea | C194: 0.5 | D194: 35 | E194: 3
B195: Slow Release | C195: 0.5 | D195: 24 | E195: 5
B196: Phosphorus Free | C196: 0 | D196: 10 | E196: 0
C198: Loss Table
C199: Surface | E199: Subsurface
C200: N | D200: P | E200: N | F200: P
B201: Organic | C201: 0.0008656716418 | D201: 0.0009714285714 | E201: 0.01082089552 | F201: 0.01165714286
B202: Soluble/Urea | C202: 0.00825 | D202: 0.009126436782 | E202: 0.20625 | F202: 0.1277701149
B203: Slow Release | C203: 0.01274193548 | D203: 0.01536 | E203: 0.2548387097 | F203: 0.05376
B204: Phosphorus Free | C204: 0.00825 | D204: 0 | E204: 0.20625 | F204: 0
B207: Pet Waste Education
B208: Fraction of Households with a Dog | C208: 0.4
B209: Owners who Walk their Dogs (percent) | C209: 0.5
B210: Owners who Clean Up (percent) | C210: 0.6
B211: Owners willing to change behavior (percent) | C211: 0.6
B212: Waste Production (lbs/dog-day) | C212: 0.32
B213: N Concentration (lb/lb) | C213: 0.23
B214: N Delivery Factor | C214: 0.25
B215: P Concentration (lb/lb) | C215: 0.01
B216: P Delivery Factor | C216: 0.75
B217: Bacteria Concentration(billion/lb) | C217: 10
B218: Bacteria Delivery Factor | C218: =Defaults!F150 -> 0.05
B220: Erosion and Sediment Control
B221: Program Efficiency | C221: 0.7
B223: Street Sweeping - Efficiencies
B224: Efficiencies - Residential | D224: Efficiencies - Other roads
B225: Sweeper Type | C225: Nutrients | D225: TSS | E225: Nutrients | F225: TSS
B226: Mechanical | C226: 0.24 | D226: 0.3 | E226: 0.04 | F226: 0.05
B227: Regenerative Air | C227: 0.51 | D227: 0.64 | E227: 0.18 | F227: 0.22
B228: Vacuum Assisted | C228: 0.62 | D228: 0.78 | E228: 0.63 | F228: 0.79
B230: Street Sweeping Frequency
B231: Monthly | C231: 0.6
B232: Weekly | C232: 1
B234: Impervious Cover Disconnection Program - Residential
B235: Typical Roof Footprint (square feet) | C235: 2000
B236: Fraction Willing to Participate | C236: 0.1
B239: Catch Basin Cleanouts
C240: Efficiencies
C241: Nutrients | D241: TSS
B242: Monthly Cleaning | C242: 0.15 | D242: 0.25
B243: Semi-Annual Cleaning | C243: 0.08 | D243: 0.13
B247: Residential Lawn Care Education
B248: Goals of the Program | C248: Ease of Implementation (Percentage of Owners that would Implement)
B249: Reduce Fertilizer Use to Recommended Levels | C249: 0.5
B250: Switch to Non-Phosphorus Fertilizer | C250: 0.25
B251: Change to Organic Fertilizer | C251: 0.1
B252: Add Soil Amendments to Lawns | C252: 0.1
B253: Convert 25% of lawn to forest or native vegetation | C253: 0.1
B254: No fertilizer | C254: 0.1
B258: Management Compared to Residential Turf | C258: Factor
B259: Better management/ nutrient management | C259: 0.8
B260: Comparatively High Management/ Input | C260: 1.5
B261: Same | C261: 1
B264: Water Quality Volumes
... 16 more rows

Sheet Calculations (hidden)
B1: Source Related
B2: PRIMARY SOURCES - Land Use | D2: Annual Load | H2: Annual Runoff Volume
B3: Watershed | D3: TN | E3: TP | F3: TSS | G3: FC | J3: Runoff
B4: Category | C4: Detailed Description | D4: (lb/year) | E4: (lb/year) | F4: (lbs/year) | G4: (# billion/year) | H4: (ac-inches) | I4: (acre-feet) | J4: (in/year)
B5: Residential | C5: =IF(Defaults!C25<>"",Defaults!C25,"") -> LDR (<1du/acre) | D5: =Sources!$D29*Sources!E29 -> 0 | E5: =Sources!$D29*Sources!F29 -> 0 | F5: =Sources!$D29*Sources!G29 -> 0 | G5: =Sources!H29*Sources!D29 -> 0 | H5: =Calculations!J5*Sources!D29 -> 0 | I5: =H5/12 -> 0 | J5: =Sources!$C$21*0.9*($C$57*Defaults!$D25+$D$57*Defaults!$E25+$E$57*(1-Defaults!$E25-Defaults!$D25)) -> 0
C6: =IF(Defaults!C26<>"",Defaults!C26,"") -> MDR (1-4 du/acre) | D6: =Sources!$D30*Sources!E30 -> 0 | E6: =Sources!$D30*Sources!F30 -> 0 | F6: =Sources!$D30*Sources!G30 -> 0 | G6: =Sources!H30*Sources!D30 -> 0 | H6: =Calculations!J6*Sources!D30 -> 0 | I6: 0 | J6: =Sources!$C$21*0.9*($C$57*Defaults!$D26+$D$57*Defaults!$E26+$E$57*(1-Defaults!$E26-Defaults!$D26)) -> 0
C7: =IF(Defaults!C27<>"",Defaults!C27,"") -> HDR (>4 du/acre) | D7: =Sources!$D31*Sources!E31 -> 0 | E7: =Sources!$D31*Sources!F31 -> 0 | F7: =Sources!$D31*Sources!G31 -> 0 | G7: =Sources!H31*Sources!D31 -> 0 | H7: =Calculations!J7*Sources!D31 -> 0 | I7: 0 | J7: =Sources!$C$21*0.9*($C$57*Defaults!$D27+$D$57*Defaults!$E27+$E$57*(1-Defaults!$E27-Defaults!$D27)) -> 0
C8: =IF(Defaults!C28<>"",Defaults!C28,"") -> Multifamily | D8: =Sources!$D32*Sources!E32 -> 0 | E8: =Sources!$D32*Sources!F32 -> 0 | F8: =Sources!$D32*Sources!G32 -> 0 | G8: =Sources!H32*Sources!D32 -> 0 | H8: =Calculations!J8*Sources!D32 -> 0 | I8: 0 | J8: =Sources!$C$21*0.9*($C$57*Defaults!$D28+$D$57*Defaults!$E28+$E$57*(1-Defaults!$E28-Defaults!$D28)) -> 0
C9: =IF(Defaults!C29<>"",Defaults!C29,"") ->  | D9: =Sources!$D33*Sources!E33 -> 0 | E9: =Sources!$D33*Sources!F33 -> 0 | F9: =Sources!$D33*Sources!G33 -> 0 | G9: =Sources!H33*Sources!D33 -> 0 | H9: =Calculations!J9*Sources!D33 -> 0 | I9: 0 | J9: =Sources!$C$21*0.9*($C$57*Defaults!$D29+$D$57*Defaults!$E29+$E$57*(1-Defaults!$E29-Defaults!$D29)) -> 0
C10: =IF(Defaults!C30<>"",Defaults!C30,"") ->  | D10: =Sources!$D34*Sources!E34 -> 0 | E10: =Sources!$D34*Sources!F34 -> 0 | F10: =Sources!$D34*Sources!G34 -> 0 | G10: =Sources!H34*Sources!D34 -> 0 | H10: =Calculations!J10*Sources!D34 -> 0 | I10: 0 | J10: =Sources!$C$21*0.9*($C$57*Defaults!$D30+$D$57*Defaults!$E30+$E$57*(1-Defaults!$E30-Defaults!$D30)) -> 0
C11: =IF(Defaults!C31<>"",Defaults!C31,"") ->  | D11: =Sources!$D35*Sources!E35 -> 0 | E11: =Sources!$D35*Sources!F35 -> 0 | F11: =Sources!$D35*Sources!G35 -> 0 | G11: =Sources!H35*Sources!D35 -> 0 | H11: =Calculations!J11*Sources!D35 -> 0 | I11: 0 | J11: =Sources!$C$21*0.9*($C$57*Defaults!$D31+$D$57*Defaults!$E31+$E$57*(1-Defaults!$E31-Defaults!$D31)) -> 0
C12: =IF(Defaults!C32<>"",Defaults!C32,"") ->  | D12: =Sources!$D36*Sources!E36 -> 0 | E12: =Sources!$D36*Sources!F36 -> 0 | F12: =Sources!$D36*Sources!G36 -> 0 | G12: =Sources!H36*Sources!D36 -> 0 | H12: =Calculations!J12*Sources!D36 -> 0 | I12: 0 | J12: =Sources!$C$21*0.9*($C$57*Defaults!$D32+$D$57*Defaults!$E32+$E$57*(1-Defaults!$E32-Defaults!$D32)) -> 0
C13: =IF(Defaults!C33<>"",Defaults!C33,"") ->  | D13: =Sources!$D37*Sources!E37 -> 0 | E13: =Sources!$D37*Sources!F37 -> 0 | F13: =Sources!$D37*Sources!G37 -> 0 | G13: =Sources!H37*Sources!D37 -> 0 | H13: =Calculations!J13*Sources!D37 -> 0 | I13: 0 | J13: =Sources!$C$21*0.9*($C$57*Defaults!$D33+$D$57*Defaults!$E33+$E$57*(1-Defaults!$E33-Defaults!$D33)) -> 0
C14: =IF(Defaults!C34<>"",Defaults!C34,"") ->  | D14: =Sources!$D38*Sources!E38 -> 0 | E14: =Sources!$D38*Sources!F38 -> 0 | F14: =Sources!$D38*Sources!G38 -> 0 | G14: =Sources!H38*Sources!D38 -> 0 | H14: =Calculations!J14*Sources!D38 -> 0 | I14: 0 | J14: =Sources!$C$21*0.9*($C$57*Defaults!$D34+$D$57*Defaults!$E34+$E$57*(1-Defaults!$E34-Defaults!$D34)) -> 0
B15: Commercial | C15: =IF(Defaults!C35<>"",Defaults!C35,"") -> Commercial | D15: =Sources!$D39*Sources!E39 -> 0 | E15: =Sources!$D39*Sources!F39 -> 0 | F15: =Sources!$D39*Sources!G39 -> 0 | G15: =Sources!H39*Sources!D39 -> 0 | H15: =Calculations!J15*Sources!D39 -> 0 | I15: 0 | J15: =Sources!$C$21*0.9*($C$57*Defaults!$D35+$D$57*Defaults!$E35+$E$57*(1-Defaults!$E35-Defaults!$D35)) -> 0
C16: =IF(Defaults!C36<>"",Defaults!C36,"") ->  | D16: =Sources!$D40*Sources!E40 -> 0 | E16: =Sources!$D40*Sources!F40 -> 0 | F16: =Sources!$D40*Sources!G40 -> 0 | G16: =Sources!H40*Sources!D40 -> 0 | H16: =Calculations!J16*Sources!D40 -> 0 | I16: 0 | J16: =Sources!$C$21*0.9*($C$57*Defaults!$D36+$D$57*Defaults!$E36+$E$57*(1-Defaults!$E36-Defaults!$D36)) -> 0
C17: =IF(Defaults!C37<>"",Defaults!C37,"") ->  | D17: =Sources!$D41*Sources!E41 -> 0 | E17: =Sources!$D41*Sources!F41 -> 0 | F17: =Sources!$D41*Sources!G41 -> 0 | G17: =Sources!H41*Sources!D41 -> 0 | H17: =Calculations!J17*Sources!D41 -> 0 | I17: 0 | J17: =Sources!$C$21*0.9*($C$57*Defaults!$D37+$D$57*Defaults!$E37+$E$57*(1-Defaults!$E37-Defaults!$D37)) -> 0
C18: =IF(Defaults!C38<>"",Defaults!C38,"") ->  | D18: =Sources!$D42*Sources!E42 -> 0 | E18: =Sources!$D42*Sources!F42 -> 0 | F18: =Sources!$D42*Sources!G42 -> 0 | G18: =Sources!H42*Sources!D42 -> 0 | H18: =Calculations!J18*Sources!D42 -> 0 | I18: 0 | J18: =Sources!$C$21*0.9*($C$57*Defaults!$D38+$D$57*Defaults!$E38+$E$57*(1-Defaults!$E38-Defaults!$D38)) -> 0
C19: =IF(Defaults!C39<>"",Defaults!C39,"") ->  | D19: =Sources!$D43*Sources!E43 -> 0 | E19: =Sources!$D43*Sources!F43 -> 0 | F19: =Sources!$D43*Sources!G43 -> 0 | G19: =Sources!H43*Sources!D43 -> 0 | H19: =Calculations!J19*Sources!D43 -> 0 | I19: 0 | J19: =Sources!$C$21*0.9*($C$57*Defaults!$D39+$D$57*Defaults!$E39+$E$57*(1-Defaults!$E39-Defaults!$D39)) -> 0
B20: Roadway | C20: =IF(Defaults!C40<>"",Defaults!C40,"") -> Roadway | D20: =Sources!$D44*Sources!E44 -> 0 | E20: =Sources!$D44*Sources!F44 -> 0 | F20: =Sources!$D44*Sources!G44 -> 0 | G20: =Sources!H44*Sources!D44 -> 0 | H20: =Calculations!J20*Sources!D44 -> 0 | I20: 0 | J20: =Sources!$C$21*0.9*($C$57*Defaults!$D40+$D$57*Defaults!$E40+$E$57*(1-Defaults!$E40-Defaults!$D40)) -> 0
C21: =IF(Defaults!C41<>"",Defaults!C41,"") ->  | D21: =Sources!$D45*Sources!E45 -> 0 | E21: =Sources!$D45*Sources!F45 -> 0 | F21: =Sources!$D45*Sources!G45 -> 0 | G21: =Sources!H45*Sources!D45 -> 0 | H21: =Calculations!J21*Sources!D45 -> 0 | I21: 0 | J21: =Sources!$C$21*0.9*($C$57*Defaults!$D41+$D$57*Defaults!$E41+$E$57*(1-Defaults!$E41-Defaults!$D41)) -> 0
C22: =IF(Defaults!C42<>"",Defaults!C42,"") ->  | D22: =Sources!$D46*Sources!E46 -> 0 | E22: =Sources!$D46*Sources!F46 -> 0 | F22: =Sources!$D46*Sources!G46 -> 0 | G22: =Sources!H46*Sources!D46 -> 0 | H22: =Calculations!J22*Sources!D46 -> 0 | I22: 0 | J22: =Sources!$C$21*0.9*($C$57*Defaults!$D42+$D$57*Defaults!$E42+$E$57*(1-Defaults!$E42-Defaults!$D42)) -> 0
C23: =IF(Defaults!C43<>"",Defaults!C43,"") ->  | D23: =Sources!$D47*Sources!E47 -> 0 | E23: =Sources!$D47*Sources!F47 -> 0 | F23: =Sources!$D47*Sources!G47 -> 0 | G23: =Sources!H47*Sources!D47 -> 0 | H23: =Calculations!J23*Sources!D47 -> 0 | I23: 0 | J23: =Sources!$C$21*0.9*($C$57*Defaults!$D43+$D$57*Defaults!$E43+$E$57*(1-Defaults!$E43-Defaults!$D43)) -> 0
C24: =IF(Defaults!C44<>"",Defaults!C44,"") ->  | D24: =Sources!$D48*Sources!E48 -> 0 | E24: =Sources!$D48*Sources!F48 -> 0 | F24: =Sources!$D48*Sources!G48 -> 0 | G24: =Sources!H48*Sources!D48 -> 0 | H24: =Calculations!J24*Sources!D48 -> 0 | I24: 0 | J24: =Sources!$C$21*0.9*($C$57*Defaults!$D44+$D$57*Defaults!$E44+$E$57*(1-Defaults!$E44-Defaults!$D44)) -> 0
B25: Industrial | C25: =IF(Defaults!C45<>"",Defaults!C45,"") -> Industrial | D25: =Sources!$D49*Sources!E49 -> 0 | E25: =Sources!$D49*Sources!F49 -> 0 | F25: =Sources!$D49*Sources!G49 -> 0 | G25: =Sources!H49*Sources!D49 -> 0 | H25: =Calculations!J25*Sources!D49 -> 0 | I25: 0 | J25: =Sources!$C$21*0.9*($C$57*Defaults!$D45+$D$57*Defaults!$E45+$E$57*(1-Defaults!$E45-Defaults!$D45)) -> 0
C26: =IF(Defaults!C46<>"",Defaults!C46,"") ->  | D26: =Sources!$D50*Sources!E50 -> 0 | E26: =Sources!$D50*Sources!F50 -> 0 | F26: =Sources!$D50*Sources!G50 -> 0 | G26: =Sources!H50*Sources!D50 -> 0 | H26: =Calculations!J26*Sources!D50 -> 0 | I26: 0 | J26: =Sources!$C$21*0.9*($C$57*Defaults!$D46+$D$57*Defaults!$E46+$E$57*(1-Defaults!$E46-Defaults!$D46)) -> 0
C27: =IF(Defaults!C47<>"",Defaults!C47,"") ->  | D27: =Sources!$D51*Sources!E51 -> 0 | E27: =Sources!$D51*Sources!F51 -> 0 | F27: =Sources!$D51*Sources!G51 -> 0 | G27: =Sources!H51*Sources!D51 -> 0 | H27: =Calculations!J27*Sources!D51 -> 0 | I27: 0 | J27: =Sources!$C$21*0.9*($C$57*Defaults!$D47+$D$57*Defaults!$E47+$E$57*(1-Defaults!$E47-Defaults!$D47)) -> 0
C28: =IF(Defaults!C48<>"",Defaults!C48,"") ->  | D28: =Sources!$D52*Sources!E52 -> 0 | E28: =Sources!$D52*Sources!F52 -> 0 | F28: =Sources!$D52*Sources!G52 -> 0 | G28: =Sources!H52*Sources!D52 -> 0 | H28: =Calculations!J28*Sources!D52 -> 0 | I28: 0 | J28: =Sources!$C$21*0.9*($C$57*Defaults!$D48+$D$57*Defaults!$E48+$E$57*(1-Defaults!$E48-Defaults!$D48)) -> 0
C29: =IF(Defaults!C49<>"",Defaults!C49,"") ->  | D29: =Sources!$D53*Sources!E53 -> 0 | E29: =Sources!$D53*Sources!F53 -> 0 | F29: =Sources!$D53*Sources!G53 -> 0 | G29: =Sources!H53*Sources!D53 -> 0 | H29: =Calculations!J29*Sources!D53 -> 0 | I29: 0 | J29: =Sources!$C$21*0.9*($C$57*Defaults!$D49+$D$57*Defaults!$E49+$E$57*(1-Defaults!$E49-Defaults!$D49)) -> 0
B30: Forest | C30: =IF(Defaults!C50<>"",Defaults!C50,"") -> Forest | D30: =Sources!$D54*Defaults!J50 -> 0 | E30: =Sources!$D54*Defaults!K50 -> 0 | F30: =Sources!$D54*Defaults!L50 -> 0 | G30: =Sources!$D54*Defaults!M50 -> 0 | H30: =Calculations!J30*Sources!D54 -> 0 | I30: 0 | J30: =Sources!$C$21*0.9*IF(C30<>"",HLOOKUP(C30,$C$55:$X$57,3,FALSE),0) -> 0
C31: =IF(Defaults!C51<>"",Defaults!C51,"") ->  | D31: =Sources!$D55*Defaults!J51 -> 0 | E31: =Sources!$D55*Defaults!K51 -> 0 | F31: =Sources!$D55*Defaults!L51 -> 0 | G31: =Sources!$D55*Defaults!M51 -> 0 | H31: =Calculations!J31*Sources!D55 -> 0 | I31: 0 | J31: =Sources!$C$21*0.9*IF(C31<>"",HLOOKUP(C31,$C$55:$X$57,3,FALSE),0) -> 0
C32: =IF(Defaults!C52<>"",Defaults!C52,"") ->  | D32: =Sources!$D56*Defaults!J52 -> 0 | E32: =Sources!$D56*Defaults!K52 -> 0 | F32: =Sources!$D56*Defaults!L52 -> 0 | G32: =Sources!$D56*Defaults!M52 -> 0 | H32: =Calculations!J32*Sources!D56 -> 0 | I32: 0 | J32: =Sources!$C$21*0.9*IF(C32<>"",HLOOKUP(C32,$C$55:$X$57,3,FALSE),0) -> 0
C33: =IF(Defaults!C53<>"",Defaults!C53,"") ->  | D33: =Sources!$D57*Defaults!J53 -> 0 | E33: =Sources!$D57*Defaults!K53 -> 0 | F33: =Sources!$D57*Defaults!L53 -> 0 | G33: =Sources!$D57*Defaults!M53 -> 0 | H33: =Calculations!J33*Sources!D57 -> 0 | I33: 0 | J33: =Sources!$C$21*0.9*IF(C33<>"",HLOOKUP(C33,$C$55:$X$57,3,FALSE),0) -> 0
C34: =IF(Defaults!C54<>"",Defaults!C54,"") ->  | D34: =Sources!$D58*Defaults!J54 -> 0 | E34: =Sources!$D58*Defaults!K54 -> 0 | F34: =Sources!$D58*Defaults!L54 -> 0 | G34: =Sources!$D58*Defaults!M54 -> 0 | H34: =Calculations!J34*Sources!D58 -> 0 | I34: 0 | J34: =Sources!$C$21*0.9*IF(C34<>"",HLOOKUP(C34,$C$55:$X$57,3,FALSE),0) -> 0
B35: Rural | C35: =IF(Defaults!C55<>"",Defaults!C55,"") -> Rural | D35: =Sources!$D59*Defaults!J55 -> 0 | E35: =Sources!$D59*Defaults!K55 -> 0 | F35: =Sources!$D59*Defaults!L55 -> 0 | G35: =Sources!$D59*Defaults!M55 -> 0 | H35: =Calculations!J35*Sources!D59 -> 0 | I35: 0 | J35: =Sources!$C$21*0.9*IF(C35<>"",HLOOKUP(C35,$C$55:$X$57,3,FALSE),0) -> 0
C36: =IF(Defaults!C56<>"",Defaults!C56,"") ->  | D36: =Sources!$D60*Defaults!J56 -> 0 | E36: =Sources!$D60*Defaults!K56 -> 0 | F36: =Sources!$D60*Defaults!L56 -> 0 | G36: =Sources!$D60*Defaults!M56 -> 0 | H36: =Calculations!J36*Sources!D60 -> 0 | I36: 0 | J36: =Sources!$C$21*0.9*IF(C36<>"",HLOOKUP(C36,$C$55:$X$57,3,FALSE),0) -> 0
C37: =IF(Defaults!C57<>"",Defaults!C57,"") ->  | D37: =Sources!$D61*Defaults!J57 -> 0 | E37: =Sources!$D61*Defaults!K57 -> 0 | F37: =Sources!$D61*Defaults!L57 -> 0 | G37: =Sources!$D61*Defaults!M57 -> 0 | H37: =Calculations!J37*Sources!D61 -> 0 | I37: 0 | J37: =Sources!$C$21*0.9*IF(C37<>"",HLOOKUP(C37,$C$55:$X$57,3,FALSE),0) -> 0
C38: =IF(Defaults!C58<>"",Defaults!C58,"") ->  | D38: =Sources!$D62*Defaults!J58 -> 0 | E38: =Sources!$D62*Defaults!K58 -> 0 | F38: =Sources!$D62*Defaults!L58 -> 0 | G38: =Sources!$D62*Defaults!M58 -> 0 | H38: =Calculations!J38*Sources!D62 -> 0 | I38: 0 | J38: =Sources!$C$21*0.9*IF(C38<>"",HLOOKUP(C38,$C$55:$X$57,3,FALSE),0) -> 0
C39: =IF(Defaults!C59<>"",Defaults!C59,"") ->  | D39: =Sources!$D63*Defaults!J59 -> 0 | E39: =Sources!$D63*Defaults!K59 -> 0 | F39: =Sources!$D63*Defaults!L59 -> 0 | G39: =Sources!$D63*Defaults!M59 -> 0 | H39: =Calculations!J39*Sources!D63 -> 0 | I39: 0 | J39: =Sources!$C$21*0.9*IF(C39<>"",HLOOKUP(C39,$C$55:$X$57,3,FALSE),0) -> 0
C40: =IF(Defaults!C60<>"",Defaults!C60,"") ->  | D40: =Sources!$D64*Defaults!J60 -> 0 | E40: =Sources!$D64*Defaults!K60 -> 0 | F40: =Sources!$D64*Defaults!L60 -> 0 | G40: =Sources!$D64*Defaults!M60 -> 0 | H40: =Calculations!J40*Sources!D64 -> 0 | I40: 0 | J40: =Sources!$C$21*0.9*IF(C40<>"",HLOOKUP(C40,$C$55:$X$57,3,FALSE),0) -> 0
C41: =IF(Defaults!C61<>"",Defaults!C61,"") ->  | D41: =Sources!$D65*Defaults!J61 -> 0 | E41: =Sources!$D65*Defaults!K61 -> 0 | F41: =Sources!$D65*Defaults!L61 -> 0 | G41: =Sources!$D65*Defaults!M61 -> 0 | H41: =Calculations!J41*Sources!D65 -> 0 | I41: 0 | J41: =Sources!$C$21*0.9*IF(C41<>"",HLOOKUP(C41,$C$55:$X$57,3,FALSE),0) -> 0
C42: =IF(Defaults!C62<>"",Defaults!C62,"") ->  | D42: =Sources!$D66*Defaults!J62 -> 0 | E42: =Sources!$D66*Defaults!K62 -> 0 | F42: =Sources!$D66*Defaults!L62 -> 0 | G42: =Sources!$D66*Defaults!M62 -> 0 | H42: =Calculations!J42*Sources!D66 -> 0 | I42: 0 | J42: =Sources!$C$21*0.9*IF(C42<>"",HLOOKUP(C42,$C$55:$X$57,3,FALSE),0) -> 0
C43: =IF(Defaults!C63<>"",Defaults!C63,"") ->  | D43: =Sources!$D67*Defaults!J63 -> 0 | E43: =Sources!$D67*Defaults!K63 -> 0 | F43: =Sources!$D67*Defaults!L63 -> 0 | G43: =Sources!$D67*Defaults!M63 -> 0 | H43: =Calculations!J43*Sources!D67 -> 0 | I43: 0 | J43: =Sources!$C$21*0.9*IF(C43<>"",HLOOKUP(C43,$C$55:$X$57,3,FALSE),0) -> 0
C44: =IF(Defaults!C64<>"",Defaults!C64,"") ->  | D44: =Sources!$D68*Defaults!J64 -> 0 | E44: =Sources!$D68*Defaults!K64 -> 0 | F44: =Sources!$D68*Defaults!L64 -> 0 | G44: =Sources!$D68*Defaults!M64 -> 0 | H44: =Calculations!J44*Sources!D68 -> 0 | I44: 0 | J44: =Sources!$C$21*0.9*IF(C44<>"",HLOOKUP(C44,$C$55:$X$57,3,FALSE),0) -> 0
B45: Open Water | C45: =IF(Defaults!C65<>"",Defaults!C65,"") -> Open Water | D45: =Sources!$D69*Defaults!J65 -> 0 | E45: =Sources!$D69*Defaults!K65 -> 0 | F45: =Sources!$D69*Defaults!L65 -> 0 | G45: =Sources!$D69*Defaults!M65 -> 0 | H45: 0 | I45: 0 | J45: 0
B46: Active Construction | C46: =IF(Defaults!C66<>"",Defaults!C66,"") -> Active Construction | D46: =Sources!$D70*Sources!E70 -> 0 | E46: =Sources!$D70*Sources!F70 -> 0 | F46: =Sources!$D70*Sources!G70 -> 0 | G46: =Sources!$D70*Sources!H70 -> 0 | H46: =Calculations!J46*Sources!D70 -> 0 | I46: 0 | J46: =Sources!$C$21*0.9*IF(C46<>"",HLOOKUP(C46,$C$55:$X$57,3,FALSE),0) -> 0
B47: Total | D47: =SUM(D5:D46) -> 0 | E47: 0 | F47: 0 | G47: 0 | H47: 0 | I47: 0
B48: Stormwater Load | D48: =SUM(D5:D29)+SUM(D30:D34)*Defaults!C$71+Defaults!C$71*SUM(D35:D44)+D45+D46 -> 0 | E48: =SUM(E5:E29)+SUM(E30:E34)*Defaults!D$71+Defaults!D$71*SUM(E35:E44)+E45+E46 -> 0 | F48: =SUM(F5:F29)+SUM(F30:F34)*Defaults!E$71+Defaults!E$71*SUM(F35:F44)+F45+F46 -> 0 | G48: =SUM(G5:G29)+SUM(G30:G34)*Defaults!F$71+Defaults!F$71*SUM(G35:G44)+G45+G46 -> 0 | H48: =H47 -> 0 | I48: =I47 -> 0
B49: Non-Stormwater Load | D49: =(D47-D48) -> 0 | E49: =(E47-E48) -> 0 | F49: =(F47-F48) -> 0 | G49: =(G47-G48) -> 0
B50: Watershed Level Impervious Cover (acres) | C50: =MAX(SUMPRODUCT(Sources!D29:D70,Defaults!D25:D66),0.01) -> 0.01
B51: Watershed Level Turf Cover (acres) | C51: =MAX(SUMPRODUCT(Sources!D29:D70,Defaults!E25:E66),0.01) -> 0.01
B54: Soils Information | C54: =Defaults!C73 -> Runoff Coefficients | G54: =Defaults!G73 -> Land-Use Specific Runoff Coefficients
C55: =Defaults!C74 -> Impervious | D55: =Defaults!D74 -> Turf | E55: =Defaults!E74 -> Forest | F55: =Defaults!F74 -> Rural | G55: =Defaults!G74 -> Active Construction | H55: =Defaults!H74 ->  | I55: =Defaults!I74 ->  | J55: =Defaults!J74 ->  | K55: =Defaults!K74 ->  | L55: =Defaults!L74 ->  | M55: =Defaults!M74 ->  | N55: =Defaults!N74 ->  | O55: =Defaults!O74 ->  | P55: =Defaults!P74 ->  | Q55: =Defaults!Q74 ->  | R55: =Defaults!R74 ->  | S55: =Defaults!S74 ->  | T55: =Defaults!T74 -> 
C57: =SUMPRODUCT(Sources!$C78:$C81,Defaults!C77:C80) -> 0.95 | D57: =SUMPRODUCT(Sources!$C78:$C81,Defaults!D77:D80) -> 0.15 | E57: =SUMPRODUCT(Sources!$C78:$C81,Defaults!E77:E80) -> 0.02 | F57: =SUMPRODUCT(Sources!$C78:$C81,Defaults!F77:F80) -> 0.02 | G57: =SUMPRODUCT(Sources!$C78:$C81,Defaults!G77:G80) -> 0.5 | H57: =IF(SUMPRODUCT(Sources!$C78:$C81,Defaults!H77:H80)>0,SUMPRODUCT(Sources!$C78:$C81,Defaults!H77:H80),$E57) -> 0.1 | I57: =IF(SUMPRODUCT(Sources!$C78:$C81,Defaults!I77:I80)>0,SUMPRODUCT(Sources!$C78:$C81,Defaults!I77:I80),$E57) -> 0.02 | J57: =IF(SUMPRODUCT(Sources!$C78:$C81,Defaults!J77:J80)>0,SUMPRODUCT(Sources!$C78:$C81,Defaults!J77:J80),$E57) -> 0.02 | K57: =IF(SUMPRODUCT(Sources!$C78:$C81,Defaults!K77:K80)>0,SUMPRODUCT(Sources!$C78:$C81,Defaults!K77:K80),$E57) -> 0.02 | L57: =IF(SUMPRODUCT(Sources!$C78:$C81,Defaults!L77:L80)>0,SUMPRODUCT(Sources!$C78:$C81,Defaults!L77:L80),$F57) -> 0.02 | M57: =IF(SUMPRODUCT(Sources!$C78:$C81,Defaults!M77:M80)>0,SUMPRODUCT(Sources!$C78:$C81,Defaults!M77:M80),$F57) -> 0.02 | N57: =IF(SUMPRODUCT(Sources!$C78:$C81,Defaults!N77:N80)>0,SUMPRODUCT(Sources!$C78:$C81,Defaults!N77:N80),$F57) -> 0.02 | O57: =IF(SUMPRODUCT(Sources!$C78:$C81,Defaults!O77:O80)>0,SUMPRODUCT(Sources!$C78:$C81,Defaults!O77:O80),$F57) -> 0.02 | P57: =IF(SUMPRODUCT(Sources!$C78:$C81,Defaults!P77:P80)>0,SUMPRODUCT(Sources!$C78:$C81,Defaults!P77:P80),$F57) -> 0.02 | Q57: =IF(SUMPRODUCT(Sources!$C78:$C81,Defaults!Q77:Q80)>0,SUMPRODUCT(Sources!$C78:$C81,Defaults!Q77:Q80),$F57) -> 0.02 | R57: =IF(SUMPRODUCT(Sources!$C78:$C81,Defaults!R77:R80)>0,SUMPRODUCT(Sources!$C78:$C81,Defaults!R77:R80),$F57) -> 0.02 | S57: =IF(SUMPRODUCT(Sources!$C78:$C81,Defaults!S77:S80)>0,SUMPRODUCT(Sources!$C78:$C81,Defaults!S77:S80),$F57) -> 0.02 | T57: =IF(SUMPRODUCT(Sources!$C78:$C81,Defaults!T77:T80)>0,SUMPRODUCT(Sources!$C78:$C81,Defaults!T77:T80),$F57) -> 0.02
B59: Groundwater Filtering | C59: N Filtering | D59: P Filtering | E59: TSS Filtering | F59: Bacteria Filtering
C60: =SUMPRODUCT(Defaults!C83:C85,Sources!C84:C86)*(1-0.5*Sources!C78) -> 0.1 | D60: =SUMPRODUCT(Defaults!D83:D85,Sources!C84:C86)*(1-0.5*Sources!C78) -> 0.5 | E60: 1 | F60: =SUMPRODUCT(Defaults!F83:F85,Sources!C84:C86)*(1-0.5*Sources!C78) -> 0.5
B63: SECONDARY SOURCES
B65: On-Site Sewage Disposal Systems
B66: Load to Surface | C66: =Calculations!C70*Sources!$C$107*(Defaults!$C105*(1-Sources!$C106)+Defaults!$D105*Sources!$C106) -> 0 | D66: =Calculations!D70*Sources!$C$107*(Defaults!$C105*(1-Sources!$C106)+Defaults!$D105*Sources!$C106) -> 0 | E66: =Calculations!E70*Sources!$C$107*(Defaults!$C105*(1-Sources!$C106)+Defaults!$D105*Sources!$C106) -> 0 | F66: =Calculations!F70*Sources!$C$107*(Defaults!$C105*(1-Sources!$C106)*Defaults!C104+Defaults!$D105*Sources!$C106*Defaults!D104) -> 0
B67: Load to Groundwater | C67: =Calculations!C70*(1-Sources!$C107)*(1-Calculations!C72)*(1-Calculations!C73) -> 0 | D67: =Calculations!D70*(1-Sources!$C107)*(1-Calculations!D72)*(1-Calculations!D73) -> 0 | E67: =Calculations!E70*(1-Sources!$C107)*(1-Calculations!E72)*(1-Calculations!E73) -> 0 | F67: =Calculations!F70*(1-Sources!$C107)*(1-C89)*(1-F73) -> 0
C69: TN | D69: TP | E69: TSS | F69: Bacteria (Billions)
B70: Untreated Sewage Delivered to Septic Systems | C70: =Sources!$C$105*Sources!$C$97*Sources!$C$98*3.04/1000*Defaults!$C$93*Sources!$C$96 -> 0 | D70: =Sources!$C$105*Sources!$C$97*Sources!$C$98*3.04/1000*Defaults!$D$93*Sources!$C$96 -> 0 | E70: =Sources!$C$105*Sources!$C$97*Sources!$C$98*3.04/1000*Defaults!$E$93*Sources!$C$96 -> 0 | F70: =Sources!$C$105*Sources!$C$97*Sources!$C$98*1.38*10^-5*Defaults!$F$93*Sources!$C$96 -> 0
B71: Combined System Efficiency | C71: =SUMPRODUCT(Sources!$C111:$C115,Defaults!C108:C112) -> 0 | D71: =SUMPRODUCT(Sources!$C111:$C115,Defaults!D108:D112) -> 0 | E71: =SUMPRODUCT(Sources!$C111:$C115,Defaults!E108:E112) -> 0 | F71: =-LOG(1-SUMPRODUCT(Sources!$C111*10^-Defaults!F108+Sources!$C112*10^-Defaults!F109+Sources!$C113*10^-Defaults!F110+Sources!$C114*10^-Defaults!F111+Sources!$C115*10^-Defaults!F112)) -> 0
B72: Adjusted Efficiency (density) | C72: =IF(Sources!$C120=Defaults!$C115,C71,2/3*C71) -> 0 | D72: =IF(Sources!$C120=Defaults!$C115,D71,2/3*D71) -> 0 | E72: =IF(Sources!$C120=Defaults!$C115,E71,2/3*E71) -> 0 | F72: =IF(Sources!$C120=Defaults!$C115,F71,F71-1) -> 0
B73: Removal by soil below the leach field | C73: =IF(Sources!$C119=Defaults!B83,0,IF(Sources!$C119=Defaults!B84,0.1,0.2))*IF(Sources!$C108=Defaults!B115,0.5,1) -> 0.05 | D73: =IF(Sources!$C119=Defaults!B83,0.5,IF(Sources!$C119=Defaults!B84,0.8,1))*IF(Sources!$C108=Defaults!B115,0.5,1) -> 0.4 | E73: 1 | F73: =IF(Sources!C119=Defaults!B83,0.5,1)*IF(Sources!C108=Defaults!B115,0.5,1) -> 0.5
B75: On-Site Sewage Disposal Systems Related
B76: Failure: | C76: Default is 10%
B77: Good Inspection: -5%
B78: Bad Inspection: +10%
B79: High GW | C79: +5%
B80: High Density | C80: +5%
C82: =1-10^-Defaults!F108 -> 0.9996837722
C83: =1-10^-Defaults!F109 -> 0.9993690427
C84: =1-10^-Defaults!F110 -> 0.9987410746
C85: =1-10^-Defaults!F111 -> 0.999
C86: =1-10^-Defaults!F112 -> 0
C89: =SUMPRODUCT(Sources!C111:C115,C82:C86) -> 0
C90: =1-(10^(-Calculations!F394)) -> 0.9996837722
C92: Discount Efficiency (Take 1/3 off, or 1 log) for density >1/acre
C95: For TN, | D95: For TP | E95: For TSS | F95: For bacteria
C96: 0% for <3' | D96: 50% for <3' | E96: 100%, no discounts | F96: 50% for <3'
C97: 10% for 3-5' | D97: 80% for 3-5' | F97: 100% otherwise
C98: 20% for>5 | D98: 100% for >5'
C99: 50% discount for sandy soils | D99: 50% discount for sandy soils | F99: 50% discount for sandy soils
C101: Overall Approach
C103: For failing systems, just take raw sewage and apply by delivery ratios and bacteria decay rates
C104: For non-failing systems, apply efficiency, than filtering below the leach field
B107: Livestock
C108: N load (lbs/year) | D108: P Load (lbs/year) | E108: Bacteria Load (billions/year)
B109: Dairy Cattle | C109: =Sources!$C157*Defaults!$C145*Defaults!D145*Defaults!D$150 -> 0 | D109: =Sources!$C157*Defaults!$C145*Defaults!E145*Defaults!E$150 -> 0 | E109: =Sources!$C157*Defaults!$C145*Defaults!F145*Defaults!F$150 -> 0
B110: Layers | C110: =Sources!$C158*Defaults!$C146*Defaults!D146*Defaults!D$150 -> 0 | D110: =Sources!$C158*Defaults!$C146*Defaults!E146*Defaults!E$150 -> 0 | E110: =Sources!$C158*Defaults!$C146*Defaults!F146*Defaults!F$150 -> 0
B111: Broilers | C111: =Sources!$C159*Defaults!$C147*Defaults!D147*Defaults!D$150 -> 0 | D111: =Sources!$C159*Defaults!$C147*Defaults!E147*Defaults!E$150 -> 0 | E111: =Sources!$C159*Defaults!$C147*Defaults!F147*Defaults!F$150 -> 0
B112: Turkeys | C112: =Sources!$C160*Defaults!$C148*Defaults!D148*Defaults!D$150 -> 0 | D112: =Sources!$C160*Defaults!$C148*Defaults!E148*Defaults!E$150 -> 0 | E112: =Sources!$C160*Defaults!$C148*Defaults!F148*Defaults!F$150 -> 0
B113: Pigs | C113: =Sources!$C161*Defaults!$C149*Defaults!D149*Defaults!D$150 -> 0 | D113: =Sources!$C161*Defaults!$C149*Defaults!E149*Defaults!E$150 -> 0 | E113: =Sources!$C161*Defaults!$C149*Defaults!F149*Defaults!F$150 -> 0
B114: Total | C114: =SUM(C109:C113) -> 0 | D114: =SUM(D109:D113) -> 0 | E114: =SUM(E109:E113) -> 0
B116: Marinas
B117: Typical occupancy (fraction of season) | C117: =Defaults!C154 -> 0.5
B118: Flow rates (gpcd) | C118: =Defaults!C155 -> 8
B119: Individuals per boat | C119: =Defaults!C156 -> 2
B121: Road Sanding
B122: Delivery ratio for Closed Section Roads | C122: =Defaults!C159 -> 0.9
B123: Delivery ratio for Open Section Roads | C123: =Defaults!C160 -> 0.35
B126: Non-Stormwater Point Sources
C127: N Load (lbs/year) | D127: P Load (lbs/year) | E127: TSS Load (lbs/year) | F127: Bacteria Load (Billion/year)
B128: Point Source 1 | C128: =Sources!D176*Sources!$C176*3039 -> 0 | D128: =Sources!E176*Sources!$C176*3039 -> 0 | E128: =Sources!F176*Sources!$C176*3039 -> 0 | F128: =Sources!G176*Sources!$C176*13.8 -> 0
B129: Point Source 2 | C129: =Sources!D177*Sources!$C177*3039 -> 0 | D129: =Sources!E177*Sources!$C177*3039 -> 0 | E129: =Sources!F177*Sources!$C177*3039 -> 0 | F129: =Sources!G177*Sources!$C177*13.8 -> 0
B130: Point Source 3 | C130: =Sources!D178*Sources!$C178*3039 -> 0 | D130: =Sources!E178*Sources!$C178*3039 -> 0 | E130: =Sources!F178*Sources!$C178*3039 -> 0 | F130: =Sources!G178*Sources!$C178*13.8 -> 0
B131: Point Source 4 | C131: =Sources!D179*Sources!$C179*3039 -> 0 | D131: =Sources!E179*Sources!$C179*3039 -> 0 | E131: =Sources!F179*Sources!$C179*3039 -> 0 | F131: =Sources!G179*Sources!$C179*13.8 -> 0
B132: Point Source 5 | C132: =Sources!D180*Sources!$C180*3039 -> 0 | D132: =Sources!E180*Sources!$C180*3039 -> 0 | E132: =Sources!F180*Sources!$C180*3039 -> 0 | F132: =Sources!G180*Sources!$C180*13.8 -> 0
B133: Point Source 6 | C133: =Sources!D181*Sources!$C181*3039 -> 0 | D133: =Sources!E181*Sources!$C181*3039 -> 0 | E133: =Sources!F181*Sources!$C181*3039 -> 0 | F133: =Sources!G181*Sources!$C181*13.8 -> 0
B134: Point Source 7 | C134: =Sources!D182*Sources!$C182*3039 -> 0 | D134: =Sources!E182*Sources!$C182*3039 -> 0 | E134: =Sources!F182*Sources!$C182*3039 -> 0 | F134: =Sources!G182*Sources!$C182*13.8 -> 0
B135: Point Source 8 | C135: =Sources!D183*Sources!$C183*3039 -> 0 | D135: =Sources!E183*Sources!$C183*3039 -> 0 | E135: =Sources!F183*Sources!$C183*3039 -> 0 | F135: =Sources!G183*Sources!$C183*13.8 -> 0
B136: Point Source 9 | C136: =Sources!D184*Sources!$C184*3039 -> 0 | D136: =Sources!E184*Sources!$C184*3039 -> 0 | E136: =Sources!F184*Sources!$C184*3039 -> 0 | F136: =Sources!G184*Sources!$C184*13.8 -> 0
B137: Point Source 10 | C137: =Sources!D185*Sources!$C185*3039 -> 0 | D137: =Sources!E185*Sources!$C185*3039 -> 0 | E137: =Sources!F185*Sources!$C185*3039 -> 0 | F137: =Sources!G185*Sources!$C185*13.8 -> 0
B140: Baseline Calculations
B141: Turf Condition and Management Practices - Residential
C142: Nutrient Score
C143: =MIN(IF(Defaults!C188>1.1,Defaults!C188*0.5,0),2) -> 0
C144: ='Existing Practices'!C28*2 -> 0
C145: ='Existing Practices'!C29*2 -> 0
C146: =SUM(C144:C145) -> 0
B148: Base Surface Runoff Residential Lawn | C148: =D148*2.5 -> 0.00445 | D148: ='Existing Practices'!C24*2*0.89 -> 0.00178 | E148: Fertilizer Application by Type (100 lbs/acre)
B149: Total Surface Runoff Residential Lawn | C149: =C148+Calculations!C160 -> 0.006024395161 | D149: =D148+Calculations!D160 -> 0.002078669951 | E149: ='Existing Practices'!B37 -> Organic | F149: ='Existing Practices'!$C37*'Existing Practices'!$C$33/Defaults!D193 -> 0
B150: Base Leachate Residential Lawn | C150: =D150*10 -> 0.0267 | D150: ='Existing Practices'!C24*3*0.89 -> 0.00267 | E150: ='Existing Practices'!B38 -> Soluble/Urea | F150: ='Existing Practices'!$C38*'Existing Practices'!$C$33/Defaults!D194 -> 2.142857143
B151: Total Leachate Residential Lawn | C151: =C150+Calculations!C161 -> 0.06128165323 | D151: =D150+Calculations!D161 -> 0.00433137931 | E151: ='Existing Practices'!B39 -> Slow Release | F151: ='Existing Practices'!$C39*'Existing Practices'!$C$33/Defaults!D195 -> 3.125
B152: Estimate based on urban concentrations | C152: =0.226*Calculations!$D57*Sources!$C$21*SUMPRODUCT(Sources!$D$29:$D$38,Defaults!F$25:F$34)/MAX(SUM(Sources!$D$29:$D$38),0.001)*'Existing Practices'!$C24*0.9 -> 0 | D152: =0.226*Calculations!$D57*Sources!$C$21*SUMPRODUCT(Sources!$D$29:$D$38,Defaults!G$25:G$34)/MAX(SUM(Sources!$D$29:$D$38),0.001)*'Existing Practices'!$C24*0.9 -> 0 | E152: ='Existing Practices'!B40 -> Phosphorus Free | F152: ='Existing Practices'!$C40*'Existing Practices'!$C$33/Defaults!D196 -> 0
B153: Supplemental Surface Load | C153: =C149-C152 -> 0.006024395161 | D153: =D149-D152 -> 0.002078669951
B154: Supplemental Leaching Load | C154: =C151 -> 0.06128165323 | D154: =D151 -> 0.00433137931
C156: N | D156: P
B157: Total Fertilizer Application Rate (Lb/year) | C157: ='Existing Practices'!C24*'Existing Practices'!C33 -> 0.15 | D157: =SUMPRODUCT(Defaults!E193:E196,Calculations!F149:F152)*'Existing Practices'!C24 -> 0.02205357143
B159: Fertilizer Loss | C159: N | D159: P
B160: Runoff (Lb/year) | C160: =Calculations!C$157*Calculations!C187 -> 0.001574395161 | D160: =Calculations!D$157*Calculations!D187 -> 0.0002986699507
B161: Leachate (Lb/year) | C161: =Calculations!C$157*Calculations!E187 -> 0.03458165323 | D161: =Calculations!D$157*Calculations!F187 -> 0.00166137931
B162: Total | C162: =SUM(C160:C161) -> 0.03615604839 | D162: =SUM(D160:D161) -> 0.001960049261
B163: Turf Runoff Coefficient (Modified) | C163: =MIN(SUMPRODUCT(Sources!C78:C81,Defaults!D77:D80)+0.03*'Existing Practices'!C28+'Existing Practices'!C25*0.5,0.5) -> 0.15
B166: Turf Condition and Management Practices - Other
B167: Base Surface Runoff Residential Lawn | C167: =D167*2.5 -> 0 | D167: =SUM('Existing Practices'!C47:C49)*2*0.89 -> 0
B168: Total Surface Runoff Residential Lawn | C168: =C167+Calculations!C181 -> 0 | D168: =D167+Calculations!D181 -> 0
B169: Base Leachate Residential Lawn | C169: =D169*10 -> 0 | D169: =SUM('Existing Practices'!C47:C49)*3*0.89 -> 0
B170: Total Leachate Residential Lawn | C170: =C169+Calculations!C182 -> 0 | D170: =D169+Calculations!D182 -> 0
B171: Current Estimate | C171: =Calculations!C152*SUM('Existing Practices'!$C47:$C49)/'Existing Practices'!$C24 -> 0 | D171: =Calculations!D152*SUM('Existing Practices'!$C47:$C49)/'Existing Practices'!$C24 -> 0
B172: Supplemental Surface Load | C172: =C168-C171 -> 0 | D172: =D168-D171 -> 0
B173: Supplemental Leaching Load | C173: =C170 -> 0 | D173: =D170 -> 0
B175: Management Factor
B176: ='Existing Practices'!B47 -> Commercial | C176: =VLOOKUP('Existing Practices'!D47,Defaults!$B$259:$C$261,2,FALSE) -> 0.8
B177: ='Existing Practices'!B48 -> Roadway | C177: =VLOOKUP('Existing Practices'!D48,Defaults!$B$259:$C$261,2,FALSE) -> 0.8
B178: ='Existing Practices'!B49 -> Industrial | C178: =VLOOKUP('Existing Practices'!D49,Defaults!$B$259:$C$261,2,FALSE) -> 1.5
B180: Fertilizer Loss | C180: N | D180: P
B181: Runoff (Lb/year) | C181: =Calculations!C160*SUMPRODUCT('Existing Practices'!$C$47:$C$49,Calculations!$C$176:$C$178)/'Existing Practices'!$C$24 -> 0 | D181: =Calculations!D160*SUMPRODUCT('Existing Practices'!$C$47:$C$49,Calculations!$C$176:$C$178)/'Existing Practices'!$C$24 -> 0
B182: Leachate (Lb/year) | C182: =Calculations!C161*SUMPRODUCT('Existing Practices'!$C$47:$C$49,Calculations!$C$176:$C$178)/'Existing Practices'!$C$24 -> 0 | D182: =Calculations!D161*SUMPRODUCT('Existing Practices'!$C$47:$C$49,Calculations!$C$176:$C$178)/'Existing Practices'!$C$24 -> 0
B183: Total | C183: =SUM(C181:C182) -> 0 | D183: =SUM(D181:D182) -> 0
C185: Surface | E185: Subsurface
B186: RESIDENTIAL Loss Table | C186: N | D186: P | E186: N | F186: P
B187: Loss (% of Applied) | C187: =SUMPRODUCT('Existing Practices'!$C37:$C40,Defaults!C201:C204) -> 0.01049596774 | D187: =SUMPRODUCT(Defaults!D201:D204,Calculations!F149:F152,Defaults!E193:E196)/SUMPRODUCT(Calculations!F149:F152,Defaults!E193:E196) -> 0.01354292894 | E187: =SUMPRODUCT('Existing Practices'!$C$37:$C$40,Defaults!E201:E204) -> 0.2305443548 | F187: =SUMPRODUCT(F149:F152,Defaults!F201:F204,Defaults!E193:E196)/SUMPRODUCT(Calculations!F149:F152,Defaults!E193:E196) -> 0.07533379869
B190: Street Sweeping | C190: Residential | D190: Other Roadways | E190: Parking Lots
B191: Total Street Area (acres) | C191: =0.35*SUMPRODUCT(Sources!D29:D38,Defaults!D25:D34) -> 0 | D191: =SUMPRODUCT(Sources!D44:D48,Defaults!D40:D44)+0.1*SUMPRODUCT(Sources!D49:D53,Defaults!D45:D49)+0.1*SUMPRODUCT(Sources!D39:D43,Defaults!D35:D39) -> 0 | E191: =0.55*SUMPRODUCT(Sources!D49:D53,Defaults!D45:D49)+0.6*SUMPRODUCT(Sources!D39:D43,Defaults!D35:D39) -> 0
B194: Structural Stormwater Management Practices
B196: BMP Type | C196: Turf Area (acres) | D196: Efficiency (%) | H196: Runoff
D198: TN | E198: TP | F198: TSS | G198: Bacteria | H198: C/D Soils | I198: A/B Soils | J198: Weighted
B199: Dry Water Quantity Pond | C199: ='Existing Practices'!C78-'Existing Practices'!D78 -> 0 | D199: =Defaults!C164 -> 0.05 | E199: =Defaults!D164 -> 0.1 | F199: =Defaults!E164 -> 0.1 | G199: =Defaults!F164 -> 0 | H199: =Defaults!K164 -> 0 | I199: =Defaults!L164 -> 0 | J199: =H199*SUM(Sources!C$80:C$81)+Calculations!I199*SUM(Sources!C$78:C$79) -> 0
B200: Dry Extended Detention Pond | C200: ='Existing Practices'!C79-'Existing Practices'!D79 -> 0 | D200: =Defaults!C165 -> 0.1 | E200: =Defaults!D165 -> 0.15 | F200: =Defaults!E165 -> 0.7 | G200: =Defaults!F165 -> 0 | H200: =Defaults!K165 -> 0 | I200: =Defaults!L165 -> 0.15 | J200: =H200*SUM(Sources!C$80:C$81)+Calculations!I200*SUM(Sources!C$78:C$79) -> 0.15
B201: Wet Pond | C201: ='Existing Practices'!C80-'Existing Practices'!D80 -> 0 | D201: =Defaults!C166 -> 0.4 | E201: =Defaults!D166 -> 0.75 | F201: =Defaults!E166 -> 0.85 | G201: =Defaults!F166 -> 0.7 | H201: =Defaults!K166 -> 0 | I201: =Defaults!L166 -> 0 | J201: =H201*SUM(Sources!C$80:C$81)+Calculations!I201*SUM(Sources!C$78:C$79) -> 0
B202: Wetland | C202: ='Existing Practices'!C81-'Existing Practices'!D81 -> 0 | D202: =Defaults!C167 -> 0.55 | E202: =Defaults!D167 -> 0.75 | F202: =Defaults!E167 -> 0.85 | G202: =Defaults!F167 -> 0.8 | H202: =Defaults!K167 -> 0 | I202: =Defaults!L167 -> 0 | J202: =H202*SUM(Sources!C$80:C$81)+Calculations!I202*SUM(Sources!C$78:C$79) -> 0
B203: Filters | C203: ='Existing Practices'!C82-'Existing Practices'!D82 -> 0 | D203: =Defaults!C168 -> 0.45 | E203: =Defaults!D168 -> 0.65 | F203: =Defaults!E168 -> 0.9 | G203: =Defaults!F168 -> 0.8 | H203: =Defaults!K168 -> 0 | I203: =Defaults!L168 -> 0 | J203: =H203*SUM(Sources!C$80:C$81)+Calculations!I203*SUM(Sources!C$78:C$79) -> 0
B204: Green Roof | C204: ='Existing Practices'!C83-'Existing Practices'!D83 -> 0 | D204: =Defaults!C169 -> 0 | E204: =Defaults!D169 -> 0 | F204: =Defaults!E169 -> 0 | G204: =Defaults!F169 -> 0 | H204: =Defaults!K169 -> 0.6 | I204: =Defaults!L169 -> 0.6 | J204: =H204*SUM(Sources!C$80:C$81)+Calculations!I204*SUM(Sources!C$78:C$79) -> 0.6
B205: Rooftop Disconnection | C205: ='Existing Practices'!C84-'Existing Practices'!D84 -> 0 | D205: =Defaults!C170 -> 0 | E205: =Defaults!D170 -> 0 | F205: =Defaults!E170 -> 0 | G205: =Defaults!F170 -> 0 | H205: =Defaults!K170 -> 0.25 | I205: =Defaults!L170 -> 0.5 | J205: =H205*SUM(Sources!C$80:C$81)+Calculations!I205*SUM(Sources!C$78:C$79) -> 0.5
B206: Permeable Pavement | C206: ='Existing Practices'!C85-'Existing Practices'!D85 -> 0 | D206: =Defaults!C171 -> 0.25 | E206: =Defaults!D171 -> 0.25 | F206: =Defaults!E171 -> 0.25 | G206: =Defaults!F171 -> 0 | H206: =Defaults!K171 -> 0.45 | I206: =Defaults!L171 -> 0.75 | J206: =H206*SUM(Sources!C$80:C$81)+Calculations!I206*SUM(Sources!C$78:C$79) -> 0.75
B207: Grass (open) Channel | C207: ='Existing Practices'!C86-'Existing Practices'!D86 -> 0 | D207: =Defaults!C172 -> 0.2 | E207: =Defaults!D172 -> 0.15 | F207: =Defaults!E172 -> 0.4 | G207: =Defaults!F172 -> 0 | H207: =Defaults!K172 -> 0.1 | I207: =Defaults!L172 -> 0.2 | J207: =H207*SUM(Sources!C$80:C$81)+Calculations!I207*SUM(Sources!C$78:C$79) -> 0.2
B208: Dry Swale (bioswale, WQ swale) | C208: ='Existing Practices'!C87-'Existing Practices'!D87 -> 0 | D208: =Defaults!C173 -> 0.35 | E208: =Defaults!D173 -> 0.4 | F208: =Defaults!E173 -> 0.4 | G208: =Defaults!F173 -> 0 | H208: =Defaults!K173 -> 0.4 | I208: =Defaults!L173 -> 0.6 | J208: =H208*SUM(Sources!C$80:C$81)+Calculations!I208*SUM(Sources!C$78:C$79) -> 0.6
B209: Wet Swale | C209: ='Existing Practices'!C88-'Existing Practices'!D88 -> 0 | D209: =Defaults!C174 -> 0.35 | E209: =Defaults!D174 -> 0.4 | F209: =Defaults!E174 -> 0.4 | G209: =Defaults!F174 -> 0 | H209: =Defaults!K174 -> 0 | I209: =Defaults!L174 -> 0 | J209: =H209*SUM(Sources!C$80:C$81)+Calculations!I209*SUM(Sources!C$78:C$79) -> 0
B210: Raintanks and Cisterns | C210: ='Existing Practices'!C89-'Existing Practices'!D89 -> 0 | D210: =Defaults!C175 -> 0 | E210: =Defaults!D175 -> 0 | F210: =Defaults!E175 -> 0 | G210: =Defaults!F175 -> 0 | H210: =Defaults!K175 -> 0.4 | I210: =Defaults!L175 -> 0.4 | J210: =H210*SUM(Sources!C$80:C$81)+Calculations!I210*SUM(Sources!C$78:C$79) -> 0.4
B211: Soil Amendments | C211: ='Existing Practices'!C90-'Existing Practices'!D90 -> 0 | D211: =Defaults!C176 -> 0 | E211: =Defaults!D176 -> 0 | F211: =Defaults!E176 -> 0 | G211: =Defaults!F176 -> 0 | H211: =Defaults!K176 -> 0.75 | I211: =Defaults!L176 -> 0.5 | J211: =H211*SUM(Sources!C$80:C$81)+Calculations!I211*SUM(Sources!C$78:C$79) -> 0.5
B212: Sheetflow to Open Space (including riparian buffers) | C212: ='Existing Practices'!C91-'Existing Practices'!D91 -> 0 | D212: =Defaults!C177 -> 0 | E212: =Defaults!D177 -> 0 | F212: =Defaults!E177 -> 0 | G212: =Defaults!F177 -> 0 | H212: =Defaults!K177 -> 0.5 | I212: =Defaults!L177 -> 0.75 | J212: =H212*SUM(Sources!C$80:C$81)+Calculations!I212*SUM(Sources!C$78:C$79) -> 0.75
B213: Grassed Filter Strips | C213: ='Existing Practices'!C92-'Existing Practices'!D92 -> 0 | D213: =Defaults!C178 -> 0 | E213: =Defaults!D178 -> 0 | F213: =Defaults!E178 -> 0 | G213: =Defaults!F178 -> 0 | H213: =Defaults!K178 -> 0.5 | I213: =Defaults!L178 -> 0.75 | J213: =H213*SUM(Sources!C$80:C$81)+Calculations!I213*SUM(Sources!C$78:C$79) -> 0.75
B214: Bioretention | C214: ='Existing Practices'!C93-'Existing Practices'!D93 -> 0 | D214: =Defaults!C179 -> 0.6 | E214: =Defaults!D179 -> 0.5 | F214: =Defaults!E179 -> 0.5 | G214: =Defaults!F179 -> 0.5 | H214: =Defaults!K179 -> 0.4 | I214: =Defaults!L179 -> 0.8 | J214: =H214*SUM(Sources!C$80:C$81)+Calculations!I214*SUM(Sources!C$78:C$79) -> 0.8
B215: Infiltration Practices | C215: ='Existing Practices'!C94-'Existing Practices'!D94 -> 0 | D215: =Defaults!C180 -> 0.15 | E215: =Defaults!D180 -> 0.25 | F215: =Defaults!E180 -> 0.5 | G215: =Defaults!F180 -> 0.85 | H215: =Defaults!K180 -> 0.5 | I215: =Defaults!L180 -> 0.9 | J215: =H215*SUM(Sources!C$80:C$81)+Calculations!I215*SUM(Sources!C$78:C$79) -> 0.9
B216: Total | C216: =IF('Existing Practices'!$C$97>0,SUMPRODUCT('Existing Practices'!$C78:$C94,C199:C215)/'Existing Practices'!$C97,0) -> 0 | D216: =IF('Existing Practices'!$C$97>0,SUMPRODUCT('Existing Practices'!$C78:$C94,D199:D215)/'Existing Practices'!$C97,0) -> 0 | E216: =IF('Existing Practices'!$C$97>0,SUMPRODUCT('Existing Practices'!$C78:$C94,E199:E215)/'Existing Practices'!$C97,0) -> 0 | F216: =IF('Existing Practices'!$C$97>0,SUMPRODUCT('Existing Practices'!$C78:$C94,F199:F215)/'Existing Practices'!$C97,0) -> 0 | G216: =IF('Existing Practices'!$C$97>0,SUMPRODUCT('Existing Practices'!$C78:$C94,G199:G215)/'Existing Practices'!$C97,0) -> 0 | H216: =IF('Existing Practices'!$C$97>0,SUMPRODUCT('Existing Practices'!$C78:$C94,H199:H215)/'Existing Practices'!$C97,0) -> 0 | I216: =IF('Existing Practices'!$C$97>0,SUMPRODUCT('Existing Practices'!$C78:$C94,I199:I215)/'Existing Practices'!$C97,0) -> 0 | J216: =IF('Existing Practices'!$C$97>0,SUMPRODUCT('Existing Practices'!$C78:$C94,J199:J215)/'Existing Practices'!$C97,0) -> 0
B217: Average % Filtering of Infiltrated Water | D217: =IF('Existing Practices'!$D97>0,SUMPRODUCT('Existing Practices'!$D78:$D94,D199:D215,$J199:$J215)/MAX(SUMPRODUCT('Existing Practices'!$D78:$D94,$J199:$J215),0.001),0) -> 0 | E217: =IF('Existing Practices'!$D97>0,SUMPRODUCT('Existing Practices'!$D78:$D94,E199:E215,$J199:$J215)/MAX(SUMPRODUCT('Existing Practices'!$D78:$D94,$J199:$J215),0.001),0) -> 0 | F217: =IF('Existing Practices'!$D97>0,SUMPRODUCT('Existing Practices'!$D78:$D94,F199:F215,$J199:$J215)/MAX(SUMPRODUCT('Existing Practices'!$D78:$D94,$J199:$J215),0.001),0) -> 0 | G217: =IF('Existing Practices'!$D97>0,SUMPRODUCT('Existing Practices'!$D78:$D94,G199:G215,$J199:$J215)/MAX(SUMPRODUCT('Existing Practices'!$D78:$D94,$J199:$J215),0.001),0) -> 0
B218: Treatability
B219: =('Existing Practices'!D97*0.95+Calculations!D57*Calculations!C216)/MAX((Calculations!C57*SUMPRODUCT(Sources!D29:D53,Defaults!D25:D49)+Calculations!D57*SUMPRODUCT(Sources!D29:D53,Defaults!E25:E49)),0.001) -> 0
B221: Riparian Buffers
C222: Efficiency
B223: TN | C223: TP | D223: TSS | E223: Bacteria | F223: Runoff Reduction
B224: =Calculations!D212 -> 0 | C224: =Calculations!E212 -> 0 | D224: =Calculations!F212 -> 0 | E224: =Calculations!G212 -> 0 | F224: =Calculations!J212 -> 0.75
B226: Treatability | C226: =MIN(SUMPRODUCT('Existing Practices'!C103:F103,'Existing Practices'!C104:F104)/Calculations!C50*5280/43560,1) -> 0
B228: Catch Basin Cleanouts
C229: Efficiency
C230: Nutrients | D230: TSS
B231: Monthly Cleaning | C231: =Defaults!C242 -> 0.15 | D231: =Defaults!D242 -> 0.25
B232: Semi-Annual Cleaning | C232: =Defaults!C243 -> 0.08 | D232: =Defaults!D243 -> 0.13
B234: Future Calculations
B236: Residential Lawn Care Education
C238: N | D238: P
B239: Total Fertilizer Application Rate (Lb/year) | C239: ='Future Practices'!C33*'Future Practices'!C35 -> 0.15 | D239: =SUMPRODUCT(F244:F247,Defaults!E193:E196)*'Future Practices'!C33 -> 0.02205357143
B243: Fertilizer Loss | C243: N | D243: P | E243: Fertilizer Application by Type (lbs/acre)
B244: Runoff (Lb/year) | C244: =Calculations!C$239*Calculations!C258 -> 0.001574395161 | D244: =Calculations!D258*Calculations!D239 -> 0.0002986699507 | E244: =E149 -> Organic | F244: ='Future Practices'!$C$35*'Future Practices'!C39/Defaults!D193 -> 0
B245: Leachate (Lb/year) | C245: =Calculations!C$239*Calculations!E258 -> 0.03458165323 | D245: =Calculations!D$239*Calculations!F258 -> 0.00166137931 | E245: =E150 -> Soluble/Urea | F245: ='Future Practices'!$C$35*'Future Practices'!C40/Defaults!D194 -> 2.142857143
B246: Net Supplemental Load from Forest Runoff (lb/yr) | C246: ='Future Practices'!$C$34*(Defaults!J$50-1.78*2.5) -> 0 | D246: ='Future Practices'!$C$34*(Defaults!K$50-1.78) -> 0 | E246: =E151 -> Slow Release | F246: ='Future Practices'!$C$35*'Future Practices'!C41/Defaults!D195 -> 3.125
B247: Total | C247: =SUM(C244:C245) -> 0.03615604839 | D247: =SUM(D244:D245) -> 0.001960049261 | E247: =E152 -> Phosphorus Free | F247: ='Future Practices'!$C$35*'Future Practices'!C42/Defaults!D196 -> 0
C249: Loss Table
... 172 more rows
